Workbook

Sheet LDC Info
Z3: 1 | AA3: Alectra Utilities Corporation-Brampton Rate Zone
Z4: 2 | AA4: Alectra Utilities Corporation-Enersource Rate Zone
Z5: 3 | AA5: Alectra Utilities Corporation-Horizon Utilities Rate Zone
Z6: 4 | AA6: Alectra Utilities Corporation-PowerStream Rate Zone
Z7: 5 | AA7: Alectra Utilities Corporation-Guelph Rate Zone
Z8: 6 | AA8: Algoma Power Inc.
Z9: 7 | AA9: Atikokan Hydro Inc.
Z10: 8 | AA10: Bluewater Power Distribution Corporation
Z11: 9 | AA11: Brantford Power Inc.
Z12: 10 | AA12: Burlington Hydro Inc.
Z13: 11 | AA13: Canadian Niagara Power Inc.
D14: Utility Name | E14: Niagara Peninsula Energy Inc. | Z14: 12 | AA14: Centre Wellington Hydro Ltd.
Z15: 13 | AA15: Chapleau Public Utilities Corporation
D16: Assigned EB Number | E16: EB-2020-0040 | Z16: 14 | AA16: Cooperative Hydro Embrun Inc.
Z17: 15 | AA17: E.L.K. Energy Inc.
D18: Name of Contact and Title | E18: Suzanne Wilson, Senior VP Finance | Z18: 16 | AA18: Elexicon Energy Inc.-Whitby Rate Zone
Z19: 17 | AA19: Elexicon Energy Inc.-Veridian Rate Zone
D20: Phone Number | E20: 905-353-6004 | Z20: 18 | AA20: Energy+ Inc.-For Former Brant County Power Service Area
Z21: 19 | AA21: Energy+ Inc.-For Former Cambridge and North Dumfries Hydro Service Area
D22: Email Address | E22: suzanne.wilson@npei.ca | Z22: 20 | AA22: Entegrus Powerlines Inc.-For Entegrus-Main Rate Zone
Z23: 21 | AA23: Entegrus Powerlines Inc.-For Former St. Thomas Energy Rate Zone
D24: Test Year | E24: 2021 | Z24: 22 | AA24: ENWIN Utilities Ltd.
Z25: 23 | AA25: EPCOR Electricity Distribution Ontario Inc.
D26: Bridge Year | E26: =IF(ISBLANK(E24), "", E24-1) -> 2020 | Z26: 24 | AA26: ERTH Power Corporation - ERTH Power Main Rate Zone
Z27: 25 | AA27: ERTH POWER CORPORATION – GODERICH RATE ZONE
D28: Last Rebasing Year | E28: 2015 | Z28: 26 | AA28: Espanola Regional Hydro Distribution Corporation
Z29: 27 | AA29: Essex Powerlines Corporation
A30: Identify the accounting standard used for the test year | Z30: 28 | AA30: Festival Hydro Inc.
E31: MIFRS | Z31: 29 | AA31: Fort Frances Power Corporation
Z32: 30 | AA32: Greater Sudbury Hydro Inc.
A33: ="Did "& E14 &" update its depreciation and capitalization policies?" -> Did Niagara Peninsula Energy Inc. update its depreciation and capitalization policies? | Z33: 31 | AA33: Grimsby Power Incorporated
E34: Yes | Z34: 32 | AA34: Halton Hills Hydro Inc.
Z35: 33 | AA35: Hearst Power Distribution Co. Ltd.
A36: If "yes" to cell E34, were the changes in policies reflected in a prior rebasing application? | Z36: 34 | AA36: Hydro 2000 Inc.
E37: Yes | Z37: 35 | AA37: Hydro Hawkesbury Inc.
Z38: 36 | AA38: Hydro One Networks Inc.
A39: ="When did "&E14&" update its actual depreciation and capitalization policies?" -> When did Niagara Peninsula Energy Inc. update its actual depreciation and capitalization policies? | Z39: 37 | AA39: Hydro One Networks Inc.-Former Haldimand County Hydro Inc. Service Area
E40: 2001-01-01 | F40: 2013 | Z40: 38 | AA40: Hydro One Networks Inc.-Former Norfolk Power Distribution Inc. Service Area
Z41: 39 | AA41: Hydro One Networks Inc.-Former Woodstock Hydro Services Inc. Service Area
A42: Identify the year the applicant adopted IFRS for financial reporting purposes | Z42: 40 | AA42: Hydro One Remote Communites Inc.
E43: 2014 | Z43: 41 | AA43: Hydro Ottawa Limited
Z44: 42 | AA44: InnPower Corporation
Z45: 43 | AA45: Kingston Hydro Corporation
A46: ="Is " & E14 & " applying for cost recovery for the test and/or future year(s) for Green Energy initiatives?" -> Is Niagara Peninsula Energy Inc. applying for cost recovery for the test and/or future year(s) for Green Energy initiatives? | Z46: 44 | AA46: Kitchener-Wilmot Hydro Inc.
E47: No | Z47: 45 | AA47: Lakefront Utilities Inc.
Z48: 46 | AA48: Lakeland Power Distribution Ltd.
A49: ="Is " & E14 & " an embedded distributor?" -> Is Niagara Peninsula Energy Inc. an embedded distributor? | E49: No | Z49: 47 | AA49: Lakeland Power Distribution Ltd.-Parry Sound Service Area
Z50: 48 | AA50: London Hydro Inc.
Z51: 49 | AA51: Milton Hydro Distribution Inc.
B52: Notes | Z52: 50 | AA52: Newmarket-Tay Power Distribution Ltd.-For Former Midland Power Utility Rate Zone
Z53: 51 | AA53: Newmarket-Tay Power Distribution Ltd.-For Newmarket-Tay Power Main Rate Zone
C54: Pale green cells represent input cells. | Z54: 52 | AA54: Niagara Peninsula Energy Inc.
Z55: 53 | AA55: Niagara-on-the-Lake Hydro Inc.
C56: Pale blue cells represent drop-down lists. The applicant should select the appropriate item from the drop-down list. | Z56: 54 | AA56: North Bay Hydro Distribution Limited
Z57: 55 | AA57: Northern Ontario Wires Inc.
C58: White cells contain fixed values, automatically generated values or formulae. | N58: =IF(LEN($G58)>1, (SUMPRODUCT(--($C$81:$C$1003=$C58),--($A$81:$A$1003=$D58), --($B$81:$B$1003=$B58&"_TOTAL"), $L$1:$L$889)), "") ->  | O58: =IF(LEN($G58)>1, (SUMPRODUCT(--($C$81:$C$1003=$C58),--($A$81:$A$1003=$D58), --($B$81:$B$1003=$B58&"_TOTAL"), $M$1:$M$889)), "") ->  | Z58: 56 | AA58: Oakville Hydro Electricity Distribution Inc.
Z59: 57 | AA59: Orangeville Hydro Limited
Z60: 58 | AA60: Orillia Power Distribution Corporation
Z61: 59 | AA61: Oshawa PUC Networks Inc.
Z62: 60 | AA62: Ottawa River Power Corporation
Z63: 61 | AA63: Peterborough Distribution Incorporated
Z64: 62 | AA64: PUC Distribution Inc.
Z65: 63 | AA65: Renfrew Hydro Inc.
Z66: 64 | AA66: Rideau St. Lawrence Distribution Inc.
Z67: 65 | AA67: Sioux Lookout Hydro Inc.
Z68: 66 | AA68: Synergy North Corporation-Kenora Rate Zone
Z69: 67 | AA69: Synergy North Corporation-Thunder Bay Rate Zone
Z70: 68 | AA70: Tillsonburg Hydro Inc.
Z71: 69 | AA71: Toronto Hydro-Electric System Limited
Z72: 70 | AA72: Wasaga Distribution Inc.
Z73: 71 | AA73: Waterloo North Hydro Inc.
Z74: 72 | AA74: Welland Hydro-Electric System Corp.
Z75: 73 | AA75: Wellington North Power Inc.
Z76: 74 | AA76: Westario Power Inc.
Z77: 75

Sheet Index
A15: 1 | B15: LDC Information Sheet | E15: 20 | F15: App.2-G: Service Reliability Indicators
A16: 2 | B16: Index | E16: 21 | F16: App.2-H: Other Operating Revenue (TO BE UPDATED AT THE DRAFT RATE ORDER STAGE)
A17: 3 | B17: Cost of Service Application Flowchart | E17: 22 | F17: App.2-I: Load Forecast CDM Adjustment Workform
A18: 4 | B18: List of Key References | E18: 23 | F18: App.2-IA: Load Forecast Data Instructions
A19: 5 | B19: App.2-A: List of Requested Approvals | E19: 24 | F19: App.2-IB: Actual and Forecast Load and Customer Data
A20: 6 | B20: App.2-AA: Capital Projects Table | E20: 25 | F20: App.2-JA: OM&A Summary Analysis (TO BE UPDATED AT THE DRAFT RATE ORDER STAGE)
A21: 7 | B21: App.2-AB: Capital Expenditures (TO BE UPDATED AT THE DRAFT RATE ORDER STAGE) | E21: 26 | F21: App.2-JB: Recoverable OM&A Cost Driver Table
A22: 8 | B22: App. 2-AC: Customer Engagement Worksheet | E22: 27 | F22: App.2-JC: OM&A Programs Table
A23: 9 | B23: App.2-B: General Accounting Instructions | E23: 28 | F23: App.2-K: Employee Costs (TO BE UPDATED AT THE DRAFT RATE ORDER STAGE)
A24: 10 | B24: App.2-BA: Fixed Asset Continuity Schedule | E24: 29 | F24: App.2-L: Recoverable OM&A Cost per Customer and per FTE
A25: 11 | B25: Appendix 2-BB: Service Life Comparison | E25: 30 | F25: App.2-M: Regulatory Costs Schedule (TO BE UPDATED AT THE DRAFT RATE ORDER STAGE)
A26: 12 | B26: App.2-C_DepExp: Depreciation and Amortization Expense | E26: 31 | F26: App.2-N: Shared Services and Corporate Cost Allocation
A27: 13 | B27: App.2-D: Overhead Expenses | E27: 32 | F27: App.2-OA: Capital Structure and Cost of Capital
A28: 14 | B28: App.2-EA: Account 1575 PP&E Deferral Account (2015 IFRS Adopters) - CONTACT OEB STAFF IF TAB REQUIRED | E28: 33 | F28: App.2-OB: Debt Instruments
A29: 15 | B29: App.2-EB: Account 1576 - Accounting Changes Under CGAAP (2012 Changes) - CONTACT OEB STAFF IF TAB REQUIRED | E29: 34 | F29: App.2-Q: Cost of Serving Embedded Distributor(s)
A30: 16 | B30: App.2-EC: Account 1576 - Accounting Changes Under CGAAP (2013 Changes) - CONTACT OEB STAFF IF TAB REQUIRED | E30: 35 | F30: App.2-R: Loss Factors
A31: 17 | B31: App.2-FA: Renewable Generation Connection Investment Summary (TO BE UPDATED AT THE DRAFT RATE ORDER STAGE) | E31: 36 | F31: App.2-S: Stranded Meter Treatment
A32: 18 | B32: App.2-FB: Calculation of Renewable Generation Connection Direct Benefits/Provincial Amount: Renewable Enabling Improvement Investments (TO BE UPDATED AT THE DRAFT RATE ORDER STAGE) | E32: 37 | F32: App.2-Y: Transition to MIFRS Summary Impact - CONTACT OEB STAFF IF TAB REQUIRED
A33: 19 | B33: App.2-FC: Calculation of Renewable Generation Connection Direct Benefits/Provincial Amount: Renewable Expansion Investments (TO BE UPDATED AT THE DRAFT RATE ORDER STAGE) | E33: 38 | F33: App.2-YA: One-Time Incremental IFRS Transition Costs - CONTACT OEB STAFF IF TAB REQUIRED
E34: 39 | F34: App.2-Z: Commodity Expense
A42: Note: | B42: Appendices for the Tariff of Rates and Charges at Current and Proposed Rates, and for the Bill Impacts are now in a separate spreadsheet model. These appendices were formerly 2-Z and 2-W.

Sheet COS Flowchart
B4: Cost of Service Rate Application Schematic
B6: The Cost of Service Rate Application Schematic is a flowchart that is included as a guide for the components of an application. The schematic demonstrates how demand and costs interrelate to derive the revenue requirement and how the revenue requirement is allocated between classes and through fixed/variable splits to derive rates that will be compensatory for the annual revenue requirement, based on the the forecasted demand. There is no form to be filled out; therefore, this Schedule is not required to be filed.

Sheet List of Key References
B2: List of Key References
A4: A list of key references for understanding the Filing Requirements has been embedded in the document below. To access the list of references and associated hyperlinks double-click the icon below.

Sheet App.2-A_Requested_Approvals
G1: File Number: | H1: =EBNUMBER -> EB-2020-0040
G2: Exhibit: | H2: 1
G3: Tab: | H3: 3
G4: Schedule: | H4: 23
G5: Page:
G7: Date: | H7: 2020-08-31
B9: Appendix 2-A
B10: List of Requested Approvals
B12: The distributor must fill out the following sheet with the complete list of specific approvals requested and relevant section(s) of the legislation must be provided. All approvals, including accounting orders (deferral and variance accounts) new rate classes, revised specific service charges or retail service charges which the applicant is seeking, must be separately identified, as well being clearly documented in the appropriate sections of the application.
B14: Additional requests may be added by copying and pasting blank input rows, as needed.
B16: If additional requests arise, or requested approvals are removed, during the processing of the application, the distributor should update this list.
B18: =CONCATENATE('LDC Info'!E14," is seeking the following approvals in this application:") -> Niagara Peninsula Energy Inc. is seeking the following approvals in this application:
B20: 1 | F20: Approval to align NPEI's rate year to its fiscal and budget year with rates changing from May 1st to January 1st, effective January 1, 2021.
B22: 2 | F22: Approval to charge distribution rates effective January 1, 2021 to recover a service revenue requirement of $37,840,675 which includes a revenue deficiency of $2,395,224 as detailed in Exhibit 6. The schedule of proposed rates is set out in Exhibit 8.
B24: 3 | F24: Approval to adjust the Retail Transmission Rates-Network and Connection as detailed in Exhibit 8.
B26: 4 | F26: Approval to adjust the Low Voltage Rates as detailed in Exhibit 8.
B28: 5 | F28: Approval to adjust the Loss Factors as detailed in Exhibit 8.
B30: 6 | F30: Approval to continue to use the Transformer Allowance and Primary Metering Allowance for transformer losses.
B32: 7 | F32: Approval of the rate riders for disposition of the Group 1 and Group 2 Deferral and Variance Accounts as detailed in Exhibit 9
B34: 8 | F34: Approval to dispose and discontinue the use of the following Deferral and Variance Accounts: a) Lead/Lag Study Variance account-sub-account 1508; b) Incremental Capital Charges (Hydro One) Variance account-sub-account 1508; c) Wireline Pole Attachments account-sub-account 1508; d) RCVA Variance Account-Account 1518; e) RCVA (STR) Service Transaction Variance Account-Account 1548; f) Stranded Meters Variance Account-Account 1555; g) MIST meter reading Variance Account-Account 1557; and h) Accounting Changes under CGAAP-Account 1576 and i) Account 1592 PILS and Tax variance for 2006 and subsequent years-sub-account CCA changes
B36: 9 | F36: Approval of the rate rider for a one-year disposition of the Lost Revenue Adjustment Mechanism Variance Account (LRAMVA) for lost revenue as presented in Exhibits 4 and 9 of this Application.
B38: 10 | F38: Approval of the micro-FIT service classification and monthly service charge proposed in Exhibit 8.
B40: 11 | F40: Approval of the Specific Service Charges proposed in Exhibit 8. NPEI is not requesting any new Specific Service Charges in this Application.
B42: 12 | F42: Approval of the Retail Service Charges proposed in Exhibit 8. NPEI is not requesting any changes to its current Retail Service Charges.

Sheet App.2-AA_Capital Projects
I1: File Number: | N1: =EBNUMBER -> EB-2020-0040
I2: Exhibit: | N2: 2
I3: Tab: | N3: 2
I4: Schedule: | N4: 2
I5: Page:
I7: Date: | N7: 2020-11-19
A9: Appendix 2-AA
A10: Capital Projects Table
J11: IRR 2-Staff-8 | K11: IRR 2-Staff-8, 2-VECC-5, 2-VECC-6 and 1-SEC-1 | L11: IRR 2-Staff-8, 2-VECC-5, 2-VECC-6 and 1-SEC-1 | M11: 2-SEC-12 | N11: 2-SEC-12 | O11: Settlement Proposal
A13: Projects | B13: Reference | C13: =D13-1 -> 2015 | D13: =E13-1 -> 2016 | E13: =F13-1 -> 2017 | F13: =G13-1 -> 2018 | G13: =BridgeYear - 1 -> 2019 | H13: =BridgeYear & " Bridge Year" -> 2020 Bridge Year | I13: =TestYear & " Test Year" -> 2021 Test Year | J13: March to September 2020 | K13: Revised 2020 Bridge Year | L13: Revised 2021 Test Year | M13: YTD Sept 30 2020 | N13: YTD Sept 30 2019 | O13: Revised 2021 Test Year
A14: Reporting Basis | C14: MIFRS | D14: MIFRS | E14: MIFRS | F14: MIFRS | G14: MIFRS | H14: MIFRS | I14: MIFRS | J14: MIFRS | K14: MIFRS | L14: MIFRS | M14: MIFRS | N14: MIFRS | O14: MIFRS
A15: System Access
A16: Customer Driven System Reinforcements for New Commercial Service Connections | B16: 1 | C16: 849328.7012 | D16: 736317.3807 | E16: 933982.6021 | F16: 1104335.786 | G16: 1022511.682 | H16: 2003963.5 | I16: 2301448 | J16: 1600603 | K16: 2714790 | L16: 2301448 | M16: 2124618 | N16: 2194193.4 | O16: 2301448
A17: Commercial Connection Projects Less Than Materiality | B17: 2 | C17: 835479.1022 | D17: 1243722.465 | E17: 1019677.316 | F17: 1428763.192 | G17: 1509201.61
A18: King St. Bell Joint Use Pole Replacement | B18: 3 | C18: 241068.0834
A19: NRWC Wind Farm Line Conflicts | B19: 4 | D19: 607960.8005
A20: Enercon Wind Farm Line Conflicts | B20: 4 | D20: 430071.1934
A21: Eptcon Stringing Conflicts | B21: 4 | D21: 279260.5359
A22: FWRN LP Line Conflicts | B22: 4 | D22: 210544.8
A23: Oldfield Rd 3-Ph Pole Line | B23: 5 | D23: 293937.2718
A24: Mcleod @ Montrose & Oakwood | B24: 6 | E24: 166309.716
A25: Fallsview Entertainment Complex | B25: 7 | F25: 204129.4255
A26: Garner Road Line Rebuild to 3-Phase | B26: 8 | G26: 223043.9943
A27: Motor Vehicle Accidents | B27: 9 | C27: 80382.17118 | D27: 115957.6849 | E27: 258090.7422 | F27: 179627.5042 | G27: 147214.1958
A28: Metering | B28: 10 | C28: 111449.9647 | D28: 138788.7059 | E28: 601440.9795 | F28: 585647.8151 | G28: 481484.22 | H28: 397300 | I28: 405050 | J28: 328949 | K28: 397321 | L28: 405050 | M28: 331321 | N28: =2969.53+378653.95 -> 381623.48 | O28: 405050
A29: Warren Woods Subdivision Phase 3 | B29: 11 | C29: 172666.7233
A30: Oldfield Estates Subdivision Phase 1 | B30: 11 | C30: 160905.1287
A31: Oldfield Estates Subdivision Phase 2 | B31: 11 | D31: 183380.7055
A32: Warren Woods Subdivision Phase 4 | B32: 11 | D32: 171971.7468
A33: Warren Woods Subdivision Phase 4 Stage 2 | B33: 11 | E33: 184982.8919
A34: Warren Woods Subdivision Phase 5 | B34: 11 | F34: 237426.5126
A35: Cherry Heights Extension | B35: 11 | G35: 341970.09
A36: Vista Ridge Phase 1 | B36: 11 | G36: 237541.1639
A37: Warren Woods Phase 5 Stage 2 | B37: 11 | G37: 166031.5902
A38: Terravita Subdivision | B38: 11 | G38: 148562.4868
A39: New Subdivision Projects Below Materiality | B39: 11 | C39: 464908.0333 | D39: 476662.984 | E39: 340921.3571 | F39: 448832.6581 | G39: 660563.6866 | N39: 1298811.86
A40: New Connections in Existing Subdivisions | B40: 11 | C40: 395224.1393 | D40: 564008.3447 | E40: 577899.1242 | F40: 333344.7125 | G40: 429566.3901 | H40: 901692.3 | I40: 915516.3 | J40: 878438 | K40: 1305314 | L40: 915516.3 | M40: 1086902 | N40: 276462.24 | O40: =425342+490174.3 -> 915516.3
A41: Transfer of Expansion Facilities from Customers | B41: 11 | C41: 3160319.09 | D41: 688451.72 | E41: 901555.03 | F41: 913711.35 | G41: 2312131.93 | H41: 1000000 | I41: 1000000 | J41: 0 | K41: 1105600 | L41: 1000000 | O41: 1000000
A42: Road Relocation Projects | B42: 12 | C42: 411611.782 | D42: 142942.12 | E42: 93776.61 | F42: 125864.33 | G42: 120411.98 | H42: 54389.75 | I42: 540922.5 | J42: 185254 | K42: 518512 | L42: 540922.5 | M42: 456273 | N42: 78701.99 | O42: 540922.5
A43: RMN - Reg Rd #18-Mountain Relocation | B43: 12 | C43: 311300.1297
A44: CNF Level St U/G Relocate | B44: 12 | C44: 230733.328
A45: Clifton Hill Primary Upgrade | B45: 13 | D45: 309572.72
A46: KM3 - Link | B46: 14 | G46: 11091.97 | H46: 876667.99 | J46: 14374 | K46: 14374 | M46: 14374 | N46: 10469.15
A47: Pin Oak Main Loop | B47: 15 | H47: 1224074.88 | J47: 532211 | K47: 1079989 | M47: 539044
A48: GPI Feeder Build | B48: 16 | H48: 807177.94 | J48: 1564 | K48: 12447 | L48: 1287851 | M48: 5623 | O48: 1287851.34
A49: Thorold Stone - Bridge Roundabout | B49: 17 | H49: 452235.2 | J49: 0
A50: Jordan UG Relocate | B50: 18 | H50: 1062995.43 | J50: 60450 | K50: 596800 | L50: 466195 | M50: 65273 | O50: 466194.93
A51: RR20 Roundabouts | B51: 19 | H51: 254825.04 | J51: 36444 | K51: 36444 | M51: 36444
A52: Fallsview UG Relocate | B52: 20 | H52: 452244.1 | J52: 263407 | K52: 596534 | M52: 352997
A53: Kalar TS Additional Switchgear | B53: 21 | G53: 110321 | I53: 1699597.44 | J53: 470159 | K53: 470159 | L53: 1300000 | M53: 470159 | N53: 1376 | O53: 1300000
A54: Niagara South Feeders Ph 1 | I54: 1603149.1 | K54: 0 | L54: 0 | N54: 0 | O54: 0
A55: Miscellaneous | B55: 22 | C55: 37540.12 | D55: -103819.08 | E55: 622402.69 | F55: 431219.55 | G55: 52113.95 | J55: 76877 | K55: 152729 | M55: 152729 | N55: 31257.54
A57: Sub-Total | C57: =SUM(C16:C56) -> 7462916.497 | D57: 6489732.099 | E57: 5701039.059 | F57: 5992902.836 | G57: 7973761.939 | H57: 9487566.13 | I57: 8465683.34 | J57: =SUM(J16:J56) -> 4448730 | K57: =SUM(K16:K56) -> 9001013 | L57: =SUM(L16:L56) -> 8216982.8 | M57: 5635757 | N57: 4272895.66 | O57: =SUM(O16:O56) -> 8216983.07
A58: System Renewal
A59: Crawford St. Rebuild - Thorold Stone to Sheldon | B59: 23 | C59: 463166.18
A60: Willodel Rd. - Gonder to Koabel | B60: 24 | C60: 313260.63
A61: Willoughby Dr. - Main to Cattell | B61: 25 | C61: 12798.74 | D61: 458728.92
A62: Willoughby Dr. - Cattell to Weinbrenner | B62: 26 | D62: 375385.21 | E62: 317.5
A63: Transformer Replacements - PCB > 50 ppm | B63: 27 | C63: 235322.16
A64: Downtown core PILCDSTA Decomissioning | B64: 28 | D64: 382898.77 | E64: 469444.1 | F64: 53355.43 | G64: 75377.08
A65: Station 22 Rebuild - Ph 1 Carryover / Phase 2 | B65: 29 | C65: 682134.55 | D65: 202991.58
A66: Beck Road Rebuild - Marshall to Schisler | B66: 30 | C66: 170696.15
A67: Frederica St Rebuild - Dorchester to Drummond | B67: 31 | C67: 14695.58 | D67: 689883.55 | E67: 26364.83
A68: NS&T ROW - Crossing the QEW | B68: 32 | D68: 207136.19 | E68: 159228.88
A69: Jordan Rd Rebuild Phase 2 - Honsberger from Jordan to Thirteenth | B69: 33 | C69: 460242.45
A70: Jordan Rd Rebuild Phase 3 | B70: 33 | D70: 307408.16
A71: Jordan Rd Rebuild Phase 4 | B71: 33 | E71: 582371.2
A72: Kalar TS Protection Equipment Refurbishment | B72: 34 | E72: 56943.41 | F72: 128307.66
A73: Kalar TS Relay Upgrade | B73: 34 | H73: 75000 | J73: 49591 | K73: 76551 | M73: 49591
A74: Dorchester Road Rebuild - McLeod to Dunn | B74: 35 | D74: 377754.73 | E74: 232047.73
A75: Concession 2 Rd - Caistorville Rd to Westbrook Rd | B75: 36 | G75: 157567.88 | N75: 92583.2
A76: Thorold Stone Rd Rebuild - Montrose to Kalar | B76: 37 | F76: 10017.15 | G76: 162767.84 | H76: 349274.1 | J76: 238455 | K76: 445332 | M76: 240707 | N76: 82696.71
A77: Portage Rd. Rebuild - Mountain to Church's Lane | B77: 38 | F77: 119863.29 | G77: 288298.22 | N77: 290396.91
A78: Campden DS Power Tx - Replace with Former Jordan DS Tx | B78: 39 | E78: 35884.07
A79: Station St. DS - Power Transformer Replacement | B79: 40 | E79: 179626.02
A80: Station 14 Voltage Conversion - Phase 1 | B80: 41 | E80: 399195.29 | F80: 2437.08
A81: Station 14 Voltge Conversion Phase 2 | B81: 41 | F81: 712832.04
A82: Station 14 Voltage Conversion - Phase 3 | B82: 41 | G82: 816053.77 | H82: 236611.24 | J82: 329751 | K82: 452602 | M82: 335125 | N82: 788657.29
A83: Victoria Ave South of Fly Rd - Phase 1 | B83: 42 | D83: 8935.93 | E83: 137553.23 | F83: 694068.93
A84: Victoria Ave South of Fly Rd - Phase 2 | B84: 42 | F84: 567881.55
A85: Oakwood Drive - South of Smart Centre to QEW | B85: 43 | E85: 11807.92 | F85: 583572.22
A86: Dorchester Road Rebuild - Mountain to Riall | B86: 44 | D86: 1943.46 | E86: 510844.61 | F86: 204558.01
A87: Chippawa Redundant Supply - Phase 1 | B87: 45 | E87: 279777.13 | F87: 67328.72
A88: Chippawa Redundant Supply - River Crossing | B88: 45 | F88: 492481.94
A89: Murray TS - J Bus Metering | B89: 46 | G89: 430258.41 | L89: 740644 | N89: 263742.5 | O89: 740644
A90: Victoria Ave Rebuild - 7th Ave Phase 2 | B90: 47 | G90: 232171.9 | N90: =233565.62+783.22 -> 234348.84
A91: Campden DS Tx Failure | B91: 48 | G91: 150378.07 | N91: 150640.51
A92: Mountain Road - St. Paul St. to Mewburn | B92: 49 | G92: 297197.95 | J92: 1402 | K92: 181055 | M92: 181055 | N92: 3624.17
A93: Sinnicks Ave Rebuild - Thorold Stone to Swayze | B93: 50 | H93: 824145.14 | J93: 16280 | K93: 130272 | L93: 693873 | M93: 18757 | O93: 802844.7
A94: McRae St. Area Rebuild Ph 1 | B94: 51 | H94: 351194.1 | J94: 0
A95: King St. Rebuild Phase 1 - Bartlett Rd to Sann Rd. | B95: 52 | H95: 344678.79 | J95: 330439 | K95: 436331 | M95: 330439
A96: Cooper - Jill- Jordan - Marie Claude Rebuild | I96: 374855.88 | L96: 374855.88 | O96: 92460.75
A97: Prospect - Brittania - Kitchener Voltage Conversion | I97: 362010.66 | L97: 362010.66
A98: King St Rebuild Phase 2 - Sann Rd to Merritt Rd | I98: 578003.64 | L98: 578003.64
A99: Lundy's Lane OH to UG Rebuild - Phase 1 | I99: 536750 | L99: 536750
A100: Sixteen Road Rebuild Regional Rd 14 to McCollum Rd | I100: 438623.76 | L100: 438623.76 | O100: 450569.27
A101: Regional Road 14 Sixteen Rd to Twenty Rd | I101: 547178.48 | L101: 0 | O101: 0
A102: Cherryhill Rebuild | I102: 433341.86 | L102: 433342 | O102: 445287.37
A103: McRae St. Area Rebuild Ph 2 | I103: 466673.22 | L103: 0 | O103: 0
A104: Pole Replacements | B104: 53 | C104: 546418.04 | D104: 583550.09 | E104: 1009358.34 | F104: 881937.57 | G104: 962984.15 | H104: 700987.63 | I104: 657322.52 | J104: =1171780+20715 -> 1192495 | K104: =1224976+20715 -> 1245691 | L104: 400222 | M104: 1171780 | N104: 917473.74 | O104: 376412.1
A105: Kiosk Replacements | B105: 54 | C105: 311260.3 | D105: 1165578.74 | E105: 937053.82 | F105: 122612.51 | G105: 80094.5 | H105: 52704 | I105: 646096 | J105: 0 | K105: 0 | L105: =58736*5 -> 293680 | N105: 85903.66 | O105: 80762
A106: Switchgear Replacements | B106: 55 | C106: 201851.72 | D106: 222441.11 | E106: 205351.74 | F106: 164315.81 | G106: 308755.17 | H106: 86218 | I106: 380960 | J106: 173412 | K106: 331154 | L106: 380960 | M106: 311154 | N106: 224432.83 | O106: 380960.42
A107: Padmount Transformer Replacements | I107: 277762.23 | J107: 0 | L107: 277762.23 | O107: 137594
A108: Polemount Transformer Replacements | I108: 410463.08 | J108: 0 | L108: 410463.08 | O108: 155975.97
A109: Transformer Collar Replacements | I109: 114635.45 | L109: 114635.45
A110: Pole Mount Step Down Transformer Eliminations - Lincoln / West Lincoln | B110: 56 | H110: 600105.66 | J110: 23581 | K110: 356567 | L110: 365605 | M110: 23581 | O110: 469619.22
A111: Rolling Acres OH to UG Conversion Phase 2 | B111: 57 | C111: 764210.63
A112: Rolling Acres OH to UG Conversion Phase 3 | B112: 57 | D112: 640910.65
A113: Stanley TS - HONI Initiated | B113: 58 | H113: 625765.25 | J113: 1933 | K113: 10563 | L113: 1401148 | M113: 2718 | O113: 1401148
A114: Subdivision Rehabilitation - Phase 1 | B114: 59 | E114: 301743.09
A115: Subdivision Rehabilitation Phase 2 | B115: 59 | F115: 450650.72 | G115: 69938.25 | N115: 70164.58
A116: Subdivision Rehabilitation Phase 3 | I116: 603505.05 | L116: =603505/2 -> 301752.5
A117: Miscellaneous System Renewal | L117: 0 | M117: 20715 | N117: 0 | O117: 0
A118: Sub-Total | C118: =SUM(C59:C117) -> 4176057.13 | D118: 5625547.09 | E118: 5534912.91 | F118: 5256220.63 | G118: 4031843.19 | H118: 4246683.91 | I118: 6828181.83 | J118: =SUM(J59:J117) -> 2357339 | K118: =SUM(K59:K117) -> 3666118 | L118: =SUM(L59:L117) -> 8104331.2 | M118: 2685622 | N118: 3204664.94 | O118: =SUM(O59:O117) -> 5534277.8
A119: System Service
A120: King St. 27.6 kV Extension to Martin Rd | B120: 60 | C120: 130845.14
A121: Heartland Road Extension - Brown Rd to Chippawa Creek | B121: 61 | E121: 109606.52
A122: Grid Modernization Program | B122: 62 | C122: 143148.46 | D122: 575199.52 | E122: -47511.83 | F122: 161240.29 | G122: 225928.64 | H122: 168450 | I122: 209350 | J122: 0 | K122: 14156 | L122: 209350 | O122: 209350
A123: Glenholme to Franklin Ave - 600 MCM UG Install | B123: 63 | D123: 68206.58 | E123: 42618.31
A124: Brown Road Extension - Montrose to Blackburn | B124: 64 | E124: 77945.2
A125: Range Road 2 - East of Allen | B125: 65 | F125: 38951.32
A126: System Sustainment / Minor Betterments | B126: 66 | C126: 1570561.58 | D126: 1089323.09 | E126: 1075853.7 | F126: 931129.25 | G126: 1274030.34 | H126: 873020 | I126: 888460 | J126: 662398 | K126: 872827 | L126: 888460 | M126: 823827 | N126: =21584.6+1023941.43+38503.05 -> 1084029.08 | O126: 888460
A127: Willoughby Road Extension | B127: 67 | F127: 259547.13
A128: Kalar TS Power Transformer Dry Down Equipment | B128: 68 | G128: 72501.16
A129: Greenlane Rd at Ontario - Tie Point | B129: 69 | F129: 1008.32 | H129: 160278.09 | J129: 0
A131: Sub-Total | C131: =SUM(C120:C130) -> 1844555.18 | D131: 1732729.19 | E131: 1258511.9 | F131: 1391876.31 | G131: 1572460.14 | H131: 1201748.09 | I131: 1097810 | J131: =SUM(J120:J130) -> 662398 | K131: =SUM(K120:K130) -> 886983 | L131: =SUM(L120:L130) -> 1097810 | M131: 823827 | N131: 1084029.08 | O131: =SUM(O120:O130) -> 1097810
A132: General Plant
A133: Building | C133: 468659.65 | D133: 52753.45 | E133: 403007.02 | F133: 1024864.22 | G133: 2037896 | H133: 1768100 | I133: 235500 | J133: 1253456 | K133: 1680090 | L133: 235500 | M133: 1523052 | N133: 1505089 | O133: 235500
A134: Hardware | C134: 248788.8 | D134: 241216.89 | E134: 332121.28 | F134: 326559.05 | G134: 193148.85 | H134: 170100 | I134: 338780 | J134: 29648 | K134: 173869 | L134: 338780 | M134: 34502 | N134: 170409 | O134: 338780
A135: Software | C135: 183006.46 | D135: 342477.02 | E135: 710895.69 | F135: 288890.79 | G135: 361772.67 | H135: 341000 | I135: 274300 | J135: 104348 | K135: 197498 | L135: 274300 | M135: 104348 | N135: 89202 | O135: 274300
A136: Vehicles | C136: 490774.46 | D136: 792445.48 | E136: 876512.72 | F136: 518258.45 | G136: 599766.09 | H136: 190000 | I136: 546000 | J136: 0 | K136: 113650 | L136: 546000 | M136: 0 | N136: 295400 | O136: 546000
A137: General Equipment | C137: 146974.06 | D137: 149530.53 | E137: 116015.93 | F137: 186335.44 | G137: 176544.04 | H137: 159000 | I137: 156400 | J137: 184249 | K137: 269101 | L137: 156400 | M137: 200035 | N137: 188020 | O137: 156400
A139: Sub-Total | C139: =SUM(C133:C138) -> 1538203.43 | D139: =SUM(D133:D138) -> 1578423.37 | E139: 2438552.64 | F139: 2344907.95 | G139: 3369127.65 | H139: 2628200 | I139: 1550980 | J139: =SUM(J133:J138) -> 1571701 | K139: =SUM(K133:K138) -> 2434208 | L139: =SUM(L133:L138) -> 1550980 | M139: 1861937 | N139: 2248120 | O139: =SUM(O133:O138) -> 1550980
A141: Total | C141: =SUMPRODUCT(--($A15:$A140="Sub-Total"), C$15:C$140)+C140 -> 15021732.24 | D141: 15426431.75 | E141: 14933016.51 | F141: 14985907.73 | G141: 16947192.92 | H141: 17564198.13 | I141: 17942655.17 | J141: =SUMPRODUCT(--($A15:$A140="Sub-Total"), J$15:J$140)+J140 -> 9040168 | K141: =SUMPRODUCT(--($A15:$A140="Sub-Total"), K$15:K$140)+K140 -> 15988322 | L141: =SUMPRODUCT(--($A15:$A140="Sub-Total"), L$15:L$140)+L140 -> 18970104 | M141: =SUMPRODUCT(--($A15:$A140="Sub-Total"), M$15:M$140)+M140 -> 11007143 | N141: 10809709.68 | O141: =SUMPRODUCT(--($A15:$A140="Sub-Total"), O$15:O$140)+O140 -> 16400050.87
A142: Less Renewable Generation Facility Assets and Other Non-Rate-Regulated Utility Assets (input as negative)
A143: Total | C143: =C141+C142 -> 15021732.24 | D143: =D141+D142 -> 15426431.75 | E143: 14933016.51 | F143: 14985907.73 | G143: 16947192.92 | H143: 17564198.13 | I143: 17942655.17 | J143: =J141+J142 -> 9040168 | K143: =K141+K142 -> 15988322 | L143: =L141+L142 -> 18970104 | M143: 11007143 | N143: 10809709.68 | O143: =O141+O142 -> 16400050.87
A144: Capital Contributions | H144: -3854173 | I144: -2583000 | J144: -1536355 | K144: -2985966 | L144: -3600000 | M144: -1755635 | N144: -2740962 | O144: -3600000
H145: =SUM(H143:H144) -> 13710025.13 | I145: =SUM(I143:I144) -> 15359655.17 | J145: =SUM(J143:J144) -> 7503813 | K145: =SUM(K143:K144) -> 13002356 | L145: =SUM(L143:L144) -> 15370104 | M145: =SUM(M143:M144) -> 9251508 | N145: 8068747.68 | O145: =SUM(O143:O144) -> 12800050.87
A149: Notes:
A151: 1 Please provide a breakdown of the major components of each capital project undertaken in each year. Please ensure that all projects below the materiality threshold are included in the miscellaneous line. Add more projects as required.
A152: 2 The applicant should group projects appropriately and avoid presentations that result in classification of significant components of the capital budget in the miscellaneous category.

Sheet App.2-AB_Capital Expenditures
AE1: File Number: | AG1: =EBNUMBER -> EB-2020-0040
AE2: Exhibit: | AG2: 2
AE3: Tab: | AG3: 2
AE4: Schedule: | AG4: 2
A5: TO BE UPDATED AT THE DRAFT RATE ORDER STAGE | AE5: Page:
AE7: Date: | AG7: 2020-08-31
A9: Appendix 2-AB
A10: Table 2 - Capital Expenditure Summary from Chapter 5 Consolidated Distribution System Plan Filing Requirements
A11: First year of Forecast Period:
A12: =TestYear -> 2021
A13: CATEGORY | B13: Historical Period (previous plan1 & actual) | AC13: Forecast Period (planned)
B14: =E14-1 -> 2012 | E14: =H14-1 -> 2013 | H14: =K14-1 -> 2014 | K14: =N14-1 -> 2015 | N14: =Q14-1 -> 2016 | Q14: =T14-1 -> 2017 | T14: =W14-1 -> 2018 | W14: =Z14-1 -> 2019 | Z14: =AC14-1 -> 2020 | AC14: =A12 -> 2021 | AD14: =AC14+1 -> 2022 | AE14: =AD14+1 -> 2023 | AF14: =AE14+1 -> 2024 | AG14: =AF14+1 -> 2025
B15: Plan | C15: Actual | D15: Var | E15: Plan | F15: Actual | G15: Var | H15: Plan | I15: Actual | J15: Var | K15: Plan | L15: Actual | M15: Var | N15: Plan | O15: Actual | P15: Var | Q15: Plan | R15: Actual | S15: Var | T15: Plan | U15: Actual | V15: Var | W15: Plan | X15: Actual | Y15: Var | Z15: Plan | AA15: Actual2 | AB15: Var
B16: $ '000 | D16: % | E16: $ '000 | G16: % | H16: $ '000 | J16: % | K16: $ '000 | M16: % | N16: $ '000 | P16: % | Q16: $ '000 | S16: % | T16: $ '000 | V16: % | W16: $ '000 | Y16: % | Z16: $ '000 | AB16: % | AC16: $ '000
A17: System Access | D17: =IF(ISERROR((C17-B17)/B17),"--",(C17-B17)/B17) -> -- | G17: =IF(ISERROR((F17-E17)/E17),"--",(F17-E17)/E17) -> -- | J17: =IF(ISERROR((I17-H17)/H17),"--",(I17-H17)/H17) -> -- | K17: 2438.0043 | L17: ='App.2-AA_Capital Projects'!C57/1000+'App.2-AA_Capital Projects'!C140/1000 -> 7462.916497 | M17: =IF(ISERROR((L17-K17)/K17),"--",(L17-K17)/K17) -> 2.061076019 | N17: 2682.543421 | O17: ='App.2-AA_Capital Projects'!D57/1000+'App.2-AA_Capital Projects'!D140/1000 -> 6489.732099 | P17: =IF(ISERROR((O17-N17)/N17),"--",(O17-N17)/N17) -> 1.419245873 | Q17: =+(500000+275000+312004+250000+1124500+343500+200000)/1000 -> 3005.004 | R17: ='App.2-AA_Capital Projects'!E57/1000+'App.2-AA_Capital Projects'!E140/1000 -> 5701.039059 | S17: =IF(ISERROR((R17-Q17)/Q17),"--",(R17-Q17)/Q17) -> 0.8971818537 | T17: =2944242/1000+1000 -> 3944.242 | U17: ='App.2-AA_Capital Projects'!F57/1000+'App.2-AA_Capital Projects'!F140/1000 -> 5992.902836 | V17: =IF(ISERROR((U17-T17)/T17),"--",(U17-T17)/T17) -> 0.5194054615 | W17: 5973.37051 | X17: ='App.2-AA_Capital Projects'!G57/1000+'App.2-AA_Capital Projects'!G140/1000 -> 7973.761939 | Y17: =IF(ISERROR((X17-W17)/W17),"--",(X17-W17)/W17) -> 0.3348848738 | Z17: 9487.51613 | AA17: ='App.2-AA_Capital Projects'!K57/1000+'App.2-AA_Capital Projects'!K140/1000 -> 9001.013 | AB17: =IF(ISERROR((AA17-Z17)/Z17),"--",(AA17-Z17)/Z17) -> -0.05127824009 | AC17: ='App.2-AA_Capital Projects'!O57/1000 -> 8216.98307 | AD17: 6784.31413 | AE17: 6512.21424 | AF17: 6425.93546 | AG17: 5201.19314
A18: System Renewal | D18: =IF(ISERROR((C18-B18)/B18),"--",(C18-B18)/B18) -> -- | G18: =IF(ISERROR((F18-E18)/E18),"--",(F18-E18)/E18) -> -- | J18: =IF(ISERROR((I18-H18)/H18),"--",(I18-H18)/H18) -> -- | K18: 6743.07707 | L18: ='App.2-AA_Capital Projects'!C118/1000 -> 4176.05713 | M18: =IF(ISERROR((L18-K18)/K18),"--",(L18-K18)/K18) -> -0.3806896931 | N18: 3441.591562 | O18: ='App.2-AA_Capital Projects'!D118/1000 -> 5625.54709 | P18: =IF(ISERROR((O18-N18)/N18),"--",(O18-N18)/N18) -> 0.6345771973 | Q18: =+(359131+600819+250000+589623+245151+308719+100000+561614+292171+678670+30000+343719+200000+400000+626236+1001137)/1000 -> 6586.99 | R18: ='App.2-AA_Capital Projects'!E118/1000 -> 5534.91291 | S18: =IF(ISERROR((R18-Q18)/Q18),"--",(R18-Q18)/Q18) -> -0.1597204626 | T18: =5775765/1000 -> 5775.765 | U18: ='App.2-AA_Capital Projects'!F118/1000 -> 5256.22063 | V18: =IF(ISERROR((U18-T18)/T18),"--",(U18-T18)/T18) -> -0.08995247729 | W18: 4726.448 | X18: ='App.2-AA_Capital Projects'!G118/1000 -> 4031.84319 | Y18: =IF(ISERROR((X18-W18)/W18),"--",(X18-W18)/W18) -> -0.146961272 | Z18: 4246.68391 | AA18: ='App.2-AA_Capital Projects'!K118/1000 -> 3666.118 | AB18: =IF(ISERROR((AA18-Z18)/Z18),"--",(AA18-Z18)/Z18) -> -0.1367104127 | AC18: ='App.2-AA_Capital Projects'!O118/1000 -> 5534.2778 | AD18: 7118.44987 | AE18: 7288.21569 | AF18: 6784.1145 | AG18: 8284.38809
A19: System Service | D19: -- | G19: -- | J19: -- | K19: 1028.16597 | L19: ='App.2-AA_Capital Projects'!C131/1000 -> 1844.55518 | M19: 0.7940247332 | N19: 4932.431913 | O19: ='App.2-AA_Capital Projects'!D131/1000 -> 1732.72919 | P19: -0.6487069218 | Q19: =+(189664+73000+114583+820000+300000)/1000 -> 1497.247 | R19: ='App.2-AA_Capital Projects'!E131/1000 -> 1258.5119 | S19: -0.1594493761 | T19: =1561737/1000+115 -> 1676.737 | U19: ='App.2-AA_Capital Projects'!F131/1000 -> 1391.87631 | V19: -0.1698899052 | W19: 1177.375 | X19: ='App.2-AA_Capital Projects'!G131/1000 -> 1572.46014 | Y19: 0.3355644039 | Z19: 1201.74809 | AA19: ='App.2-AA_Capital Projects'!K131/1000 -> 886.983 | AB19: -0.261922688 | AC19: ='App.2-AA_Capital Projects'!O131/1000 -> 1097.81 | AD19: 974.07 | AE19: 1225.33 | AF19: 1477.22 | AG19: 1475.33
A20: General Plant | D20: -- | G20: -- | J20: -- | K20: 1489.49245 | L20: ='App.2-AA_Capital Projects'!C139/1000 -> 1538.20343 | M20: 0.03270307278 | N20: =87+1679-150 -> 1616 | O20: ='App.2-AA_Capital Projects'!D139/1000 -> 1578.42337 | P20: -0.0232528651 | Q20: =193+1499-300+1121 -> 2513 | R20: ='App.2-AA_Capital Projects'!E139/1000 -> 2438.55264 | S20: -0.02962489455 | T20: =2580 -> 2580 | U20: ='App.2-AA_Capital Projects'!F139/1000 -> 2344.90795 | V20: -0.09112094961 | W20: =1634+1187-125+549 -> 3245 | X20: ='App.2-AA_Capital Projects'!G139/1000 -> 3369.12765 | Y20: 0.03825197227 | Z20: 2628.2 | AA20: ='App.2-AA_Capital Projects'!K139/1000 -> 2434.208 | AB20: -0.07381173427 | AC20: ='App.2-AA_Capital Projects'!O139/1000 -> 1550.98 | AD20: 1550.98 | AE20: 1550.98 | AF20: 1550.98 | AG20: 1550.98
A21: TOTAL EXPENDITURE | B21: =SUM(B17:B20) -> 0 | C21: =SUM(C17:C20) -> 0 | D21: -- | E21: =SUM(E17:E20) -> 0 | F21: =SUM(F17:F20) -> 0 | G21: -- | H21: =SUM(H17:H20) -> 0 | I21: =SUM(I17:I20) -> 0 | J21: -- | K21: =SUM(K17:K20) -> 11698.73979 | L21: =SUM(L17:L20) -> 15021.73224 | M21: 0.2840470432 | N21: =SUM(N17:N20) -> 12672.5669 | O21: =SUM(O17:O20) -> 15426.43175 | P21: 0.2173091589 | Q21: 13602.241 | R21: 14933.01651 | S21: 0.09783501917 | T21: 13976.744 | U21: 14985.90773 | V21: 0.07220306292 | W21: 15122.19351 | X21: 16947.19292 | Y21: 0.1206835112 | Z21: 17564.14813 | AA21: 15988.322 | AB21: -0.08971833523 | AC21: 16400.05087 | AD21: 16427.814 | AE21: 16576.73993 | AF21: 16238.24996 | AG21: =SUM(AG17:AG20) -> 16511.89123
A22: Capital Contributions | D22: -- | G22: -- | J22: -- | K22: -826.8 | L22: -5600.23289 | M22: 5.773382789 | N22: -800 | O22: -4031.45087 | P22: 4.039313588 | Q22: -1537 | R22: -2471.48383 | S22: 0.607992082 | T22: -2135 | U22: -2538.03416 | V22: 0.1887747822 | W22: -2187 | X22: -5462.67961 | Y22: 1.497795889 | Z22: -3854.1734 | AA22: ='App.2-AA_Capital Projects'!K144/1000 -> -2985.966 | AB22: -0.2252642292 | AC22: ='App.2-AA_Capital Projects'!L144/1000 -> -3600 | AD22: -3600 | AE22: -3600 | AF22: -3600 | AG22: -3600
A23: Net Capital Expenditures | D23: -- | G23: -- | J23: -- | K23: =K21+K22 -> 10871.93979 | L23: =L21+L22 -> 9421.499347 | M23: -0.1334113756 | N23: =N21+N22 -> 11872.5669 | O23: 11394.98088 | P23: -0.0402260119 | Q23: =Q21+Q22 -> 12065.241 | R23: =R21+R22 -> 12461.53268 | S23: 0.03284573255 | T23: =T21+T22 -> 11841.744 | U23: 12447.87357 | V23: 0.05118583601 | W23: 12935.19351 | X23: 11484.51331 | Y23: -0.1121498646 | Z23: 13709.97473 | AA23: 13002.356 | AB23: -0.05161342336 | AC23: 12800.05087 | AD23: 12827.814 | AE23: 12976.73993 | AF23: 12638.24996 | AG23: 12911.89123
A24: System O&M | D24: -- | G24: -- | J24: -- | K24: ='App.2-JA_OM&A_Summary_Analys'!B25/1000 -> 16424.99476 | L24: ='App.2-JA_OM&A_Summary_Analys'!C25/1000 -> 16873.44095 | M24: 0.02730266839 | N24: =6167+234+4770+5263 -> 16434 | O24: ='App.2-JA_OM&A_Summary_Analys'!G25/1000 -> 17146.51973 | P24: 0.0433564397 | Q24: =6694+264+5487+5226 -> 17671 | R24: ='App.2-JA_OM&A_Summary_Analys'!H25/1000 -> 18268.43785 | S24: 0.03380894403 | T24: =6796+209+5700+5299 -> 18004 | U24: ='App.2-JA_OM&A_Summary_Analys'!I25/1000 -> 18020.59474 | V24: 0.0009217251722 | W24: =7335+266+6143+5668 -> 19412 | X24: ='App.2-JA_OM&A_Summary_Analys'!J25/1000 -> 19158.806 | Y24: -0.01304316917 | Z24: ='App.2-JA_OM&A_Summary_Analys'!K25/1000 -> 19623.39187 | AA24: ='App.2-JA_OM&A_Summary_Analys'!K25/1000 -> 19623.39187 | AB24: 0 | AC24: ='App.2-JA_OM&A_Summary_Analys'!L25/1000 -> 19734.01 | AD24: =AC24*1.02 -> 20128.6902 | AE24: =AD24*1.02 -> 20531.264 | AF24: 20941.88928 | AG24: 21360.72707
A26: Notes to the Table:
A27: 1. Historical “previous plan” data is not required unless a plan has previously been filed. However, use the last OEB-approved, at least on a Total (Capital) Expenditure basis for the last cost of service rebasing year, and the applicant should include their planned budget in each subsequent historical year up to and including the Bridge Year.
A28: 2. Indicate the number of months of 'actual' data included in the last year of the Historical Period (normally a 'bridge' year):
A30: Explanatory Notes on Variances (complete only if applicable)
A31: Notes on shifts in forecast vs. historical budgets by category
A32: Column AC was updated during the IRR process see 2-Staff-8
A34: Notes on year over year Plan vs. Actual variances for Total Expenditures
A37: Notes on Plan vs. Actual variance trends for individual expenditure categories

Sheet Hidden_CAPEX (hidden)
A1: Utility Name | B1: EB Number | C1: Test Year | D1: Bridge Year | E1: Last Rebasing Year | F1: Category | G1: Year | H1: Plan | I1: Actual
A2: ='LDC Info'!$E$14 -> Niagara Peninsula Energy Inc. | B2: =EBNUMBER -> EB-2020-0040 | C2: =TestYear -> 2021 | D2: =BridgeYear -> 2020 | E2: =RebaseYear -> 2015 | F2: System Access | G2: ='App.2-AB_Capital Expenditures'!B14 -> 2012 | H2: ='App.2-AB_Capital Expenditures'!B17 -> 0 | I2: ='App.2-AB_Capital Expenditures'!C17 -> 0
A3: ='LDC Info'!$E$14 -> Niagara Peninsula Energy Inc. | B3: EB-2020-0040 | C3: 2021 | D3: 2020 | E3: 2015 | F3: System Renewal | G3: ='App.2-AB_Capital Expenditures'!B14 -> 2012 | H3: ='App.2-AB_Capital Expenditures'!B18 -> 0 | I3: ='App.2-AB_Capital Expenditures'!C18 -> 0
A4: ='LDC Info'!$E$14 -> Niagara Peninsula Energy Inc. | B4: EB-2020-0040 | C4: 2021 | D4: 2020 | E4: 2015 | F4: System Service | G4: ='App.2-AB_Capital Expenditures'!B14 -> 2012 | H4: ='App.2-AB_Capital Expenditures'!B19 -> 0 | I4: ='App.2-AB_Capital Expenditures'!C19 -> 0
A5: ='LDC Info'!$E$14 -> Niagara Peninsula Energy Inc. | B5: EB-2020-0040 | C5: 2021 | D5: 2020 | E5: 2015 | F5: General Plant | G5: ='App.2-AB_Capital Expenditures'!B14 -> 2012 | H5: ='App.2-AB_Capital Expenditures'!B20 -> 0 | I5: ='App.2-AB_Capital Expenditures'!C20 -> 0
A6: ='LDC Info'!$E$14 -> Niagara Peninsula Energy Inc. | B6: EB-2020-0040 | C6: 2021 | D6: 2020 | E6: 2015 | F6: Total Expenditure | G6: ='App.2-AB_Capital Expenditures'!B14 -> 2012 | H6: ='App.2-AB_Capital Expenditures'!B21 -> 0 | I6: ='App.2-AB_Capital Expenditures'!C21 -> 0
A7: ='LDC Info'!$E$14 -> Niagara Peninsula Energy Inc. | B7: EB-2020-0040 | C7: 2021 | D7: 2020 | E7: 2015 | F7: Capital Contributions | G7: ='App.2-AB_Capital Expenditures'!B14 -> 2012 | H7: ='App.2-AB_Capital Expenditures'!B22 -> 0 | I7: ='App.2-AB_Capital Expenditures'!C22 -> 0
A8: ='LDC Info'!$E$14 -> Niagara Peninsula Energy Inc. | B8: EB-2020-0040 | C8: 2021 | D8: 2020 | E8: 2015 | F8: Net Capital Expenditures | G8: ='App.2-AB_Capital Expenditures'!B14 -> 2012 | H8: ='App.2-AB_Capital Expenditures'!B23 -> 0 | I8: ='App.2-AB_Capital Expenditures'!C23 -> 0
A9: ='LDC Info'!$E$14 -> Niagara Peninsula Energy Inc. | B9: EB-2020-0040 | C9: 2021 | D9: 2020 | E9: 2015 | F9: System O&M | G9: ='App.2-AB_Capital Expenditures'!B14 -> 2012 | H9: ='App.2-AB_Capital Expenditures'!B24 -> 0 | I9: ='App.2-AB_Capital Expenditures'!C24 -> 0
A10: ='LDC Info'!$E$14 -> Niagara Peninsula Energy Inc. | B10: EB-2020-0040 | C10: 2021 | D10: 2020 | E10: 2015 | F10: System Access | G10: ='App.2-AB_Capital Expenditures'!E14 -> 2013 | H10: ='App.2-AB_Capital Expenditures'!E17 -> 0 | I10: ='App.2-AB_Capital Expenditures'!F17 -> 0
A11: ='LDC Info'!$E$14 -> Niagara Peninsula Energy Inc. | B11: EB-2020-0040 | C11: 2021 | D11: 2020 | E11: 2015 | F11: System Renewal | G11: ='App.2-AB_Capital Expenditures'!E14 -> 2013 | H11: ='App.2-AB_Capital Expenditures'!E18 -> 0 | I11: ='App.2-AB_Capital Expenditures'!F18 -> 0
A12: ='LDC Info'!$E$14 -> Niagara Peninsula Energy Inc. | B12: EB-2020-0040 | C12: 2021 | D12: 2020 | E12: 2015 | F12: System Service | G12: ='App.2-AB_Capital Expenditures'!E14 -> 2013 | H12: ='App.2-AB_Capital Expenditures'!E19 -> 0 | I12: ='App.2-AB_Capital Expenditures'!F19 -> 0
A13: ='LDC Info'!$E$14 -> Niagara Peninsula Energy Inc. | B13: EB-2020-0040 | C13: 2021 | D13: 2020 | E13: 2015 | F13: General Plant | G13: ='App.2-AB_Capital Expenditures'!E14 -> 2013 | H13: ='App.2-AB_Capital Expenditures'!E20 -> 0 | I13: ='App.2-AB_Capital Expenditures'!F20 -> 0
A14: ='LDC Info'!$E$14 -> Niagara Peninsula Energy Inc. | B14: EB-2020-0040 | C14: 2021 | D14: 2020 | E14: 2015 | F14: Total Expenditure | G14: ='App.2-AB_Capital Expenditures'!E14 -> 2013 | H14: ='App.2-AB_Capital Expenditures'!E21 -> 0 | I14: ='App.2-AB_Capital Expenditures'!F21 -> 0
A15: ='LDC Info'!$E$14 -> Niagara Peninsula Energy Inc. | B15: EB-2020-0040 | C15: 2021 | D15: 2020 | E15: 2015 | F15: Capital Contributions | G15: ='App.2-AB_Capital Expenditures'!E14 -> 2013 | H15: ='App.2-AB_Capital Expenditures'!E22 -> 0 | I15: ='App.2-AB_Capital Expenditures'!F22 -> 0
A16: ='LDC Info'!$E$14 -> Niagara Peninsula Energy Inc. | B16: EB-2020-0040 | C16: 2021 | D16: 2020 | E16: 2015 | F16: Net Capital Expenditures | G16: ='App.2-AB_Capital Expenditures'!E14 -> 2013 | H16: ='App.2-AB_Capital Expenditures'!E23 -> 0 | I16: ='App.2-AB_Capital Expenditures'!F23 -> 0
A17: ='LDC Info'!$E$14 -> Niagara Peninsula Energy Inc. | B17: EB-2020-0040 | C17: 2021 | D17: 2020 | E17: 2015 | F17: System O&M | G17: ='App.2-AB_Capital Expenditures'!E14 -> 2013 | H17: ='App.2-AB_Capital Expenditures'!E24 -> 0 | I17: ='App.2-AB_Capital Expenditures'!F24 -> 0
A18: ='LDC Info'!$E$14 -> Niagara Peninsula Energy Inc. | B18: EB-2020-0040 | C18: 2021 | D18: 2020 | E18: 2015 | F18: System Access | G18: ='App.2-AB_Capital Expenditures'!H14 -> 2014 | H18: ='App.2-AB_Capital Expenditures'!H17 -> 0 | I18: ='App.2-AB_Capital Expenditures'!I17 -> 0
A19: ='LDC Info'!$E$14 -> Niagara Peninsula Energy Inc. | B19: EB-2020-0040 | C19: 2021 | D19: 2020 | E19: 2015 | F19: System Renewal | G19: ='App.2-AB_Capital Expenditures'!H14 -> 2014 | H19: ='App.2-AB_Capital Expenditures'!H18 -> 0 | I19: ='App.2-AB_Capital Expenditures'!I18 -> 0
A20: ='LDC Info'!$E$14 -> Niagara Peninsula Energy Inc. | B20: EB-2020-0040 | C20: 2021 | D20: 2020 | E20: 2015 | F20: System Service | G20: ='App.2-AB_Capital Expenditures'!H14 -> 2014 | H20: ='App.2-AB_Capital Expenditures'!H19 -> 0 | I20: ='App.2-AB_Capital Expenditures'!I19 -> 0
A21: ='LDC Info'!$E$14 -> Niagara Peninsula Energy Inc. | B21: EB-2020-0040 | C21: 2021 | D21: 2020 | E21: 2015 | F21: General Plant | G21: ='App.2-AB_Capital Expenditures'!H14 -> 2014 | H21: ='App.2-AB_Capital Expenditures'!H20 -> 0 | I21: ='App.2-AB_Capital Expenditures'!I20 -> 0
A22: ='LDC Info'!$E$14 -> Niagara Peninsula Energy Inc. | B22: EB-2020-0040 | C22: 2021 | D22: 2020 | E22: 2015 | F22: Total Expenditure | G22: ='App.2-AB_Capital Expenditures'!H14 -> 2014 | H22: ='App.2-AB_Capital Expenditures'!H21 -> 0 | I22: ='App.2-AB_Capital Expenditures'!I21 -> 0
A23: ='LDC Info'!$E$14 -> Niagara Peninsula Energy Inc. | B23: EB-2020-0040 | C23: 2021 | D23: 2020 | E23: 2015 | F23: Capital Contributions | G23: ='App.2-AB_Capital Expenditures'!H14 -> 2014 | H23: ='App.2-AB_Capital Expenditures'!H22 -> 0 | I23: ='App.2-AB_Capital Expenditures'!I22 -> 0
A24: ='LDC Info'!$E$14 -> Niagara Peninsula Energy Inc. | B24: EB-2020-0040 | C24: 2021 | D24: 2020 | E24: 2015 | F24: Net Capital Expenditures | G24: ='App.2-AB_Capital Expenditures'!H14 -> 2014 | H24: ='App.2-AB_Capital Expenditures'!H23 -> 0 | I24: ='App.2-AB_Capital Expenditures'!I23 -> 0
A25: ='LDC Info'!$E$14 -> Niagara Peninsula Energy Inc. | B25: EB-2020-0040 | C25: 2021 | D25: 2020 | E25: 2015 | F25: System O&M | G25: ='App.2-AB_Capital Expenditures'!H14 -> 2014 | H25: ='App.2-AB_Capital Expenditures'!H24 -> 0 | I25: ='App.2-AB_Capital Expenditures'!I24 -> 0
A26: ='LDC Info'!$E$14 -> Niagara Peninsula Energy Inc. | B26: EB-2020-0040 | C26: 2021 | D26: 2020 | E26: 2015 | F26: System Access | G26: ='App.2-AB_Capital Expenditures'!K14 -> 2015 | H26: ='App.2-AB_Capital Expenditures'!K17 -> 2438.0043 | I26: ='App.2-AB_Capital Expenditures'!L17 -> 7462.916497
A27: ='LDC Info'!$E$14 -> Niagara Peninsula Energy Inc. | B27: EB-2020-0040 | C27: 2021 | D27: 2020 | E27: 2015 | F27: System Renewal | G27: ='App.2-AB_Capital Expenditures'!K14 -> 2015 | H27: ='App.2-AB_Capital Expenditures'!K18 -> 6743.07707 | I27: ='App.2-AB_Capital Expenditures'!L18 -> 4176.05713
A28: ='LDC Info'!$E$14 -> Niagara Peninsula Energy Inc. | B28: EB-2020-0040 | C28: 2021 | D28: 2020 | E28: 2015 | F28: System Service | G28: ='App.2-AB_Capital Expenditures'!K14 -> 2015 | H28: ='App.2-AB_Capital Expenditures'!K19 -> 1028.16597 | I28: ='App.2-AB_Capital Expenditures'!L19 -> 1844.55518
A29: ='LDC Info'!$E$14 -> Niagara Peninsula Energy Inc. | B29: EB-2020-0040 | C29: 2021 | D29: 2020 | E29: 2015 | F29: General Plant | G29: ='App.2-AB_Capital Expenditures'!K14 -> 2015 | H29: ='App.2-AB_Capital Expenditures'!K20 -> 1489.49245 | I29: ='App.2-AB_Capital Expenditures'!L20 -> 1538.20343
A30: ='LDC Info'!$E$14 -> Niagara Peninsula Energy Inc. | B30: EB-2020-0040 | C30: 2021 | D30: 2020 | E30: 2015 | F30: Total Expenditure | G30: ='App.2-AB_Capital Expenditures'!K14 -> 2015 | H30: ='App.2-AB_Capital Expenditures'!K21 -> 11698.73979 | I30: ='App.2-AB_Capital Expenditures'!L21 -> 15021.73224
A31: ='LDC Info'!$E$14 -> Niagara Peninsula Energy Inc. | B31: EB-2020-0040 | C31: 2021 | D31: 2020 | E31: 2015 | F31: Capital Contributions | G31: ='App.2-AB_Capital Expenditures'!K14 -> 2015 | H31: ='App.2-AB_Capital Expenditures'!K22 -> -826.8 | I31: ='App.2-AB_Capital Expenditures'!L22 -> -5600.23289
A32: ='LDC Info'!$E$14 -> Niagara Peninsula Energy Inc. | B32: EB-2020-0040 | C32: 2021 | D32: 2020 | E32: 2015 | F32: Net Capital Expenditures | G32: ='App.2-AB_Capital Expenditures'!K14 -> 2015 | H32: ='App.2-AB_Capital Expenditures'!K23 -> 10871.93979 | I32: ='App.2-AB_Capital Expenditures'!L23 -> 9421.499347
A33: ='LDC Info'!$E$14 -> Niagara Peninsula Energy Inc. | B33: EB-2020-0040 | C33: 2021 | D33: 2020 | E33: 2015 | F33: System O&M | G33: ='App.2-AB_Capital Expenditures'!K14 -> 2015 | H33: ='App.2-AB_Capital Expenditures'!K24 -> 16424.99476 | I33: ='App.2-AB_Capital Expenditures'!L24 -> 16873.44095
A34: ='LDC Info'!$E$14 -> Niagara Peninsula Energy Inc. | B34: =EBNUMBER -> EB-2020-0040 | C34: =TestYear -> 2021 | D34: =BridgeYear -> 2020 | E34: =RebaseYear -> 2015 | F34: System Access | G34: ='App.2-AB_Capital Expenditures'!N14 -> 2016 | H34: ='App.2-AB_Capital Expenditures'!N17 -> 2682.543421 | I34: ='App.2-AB_Capital Expenditures'!O17 -> 6489.732099
A35: ='LDC Info'!$E$14 -> Niagara Peninsula Energy Inc. | B35: EB-2020-0040 | C35: 2021 | D35: 2020 | E35: 2015 | F35: System Renewal | G35: ='App.2-AB_Capital Expenditures'!N14 -> 2016 | H35: ='App.2-AB_Capital Expenditures'!N18 -> 3441.591562 | I35: ='App.2-AB_Capital Expenditures'!O18 -> 5625.54709
A36: ='LDC Info'!$E$14 -> Niagara Peninsula Energy Inc. | B36: EB-2020-0040 | C36: 2021 | D36: 2020 | E36: 2015 | F36: System Service | G36: ='App.2-AB_Capital Expenditures'!N14 -> 2016 | H36: ='App.2-AB_Capital Expenditures'!N19 -> 4932.431913 | I36: ='App.2-AB_Capital Expenditures'!O19 -> 1732.72919
A37: ='LDC Info'!$E$14 -> Niagara Peninsula Energy Inc. | B37: EB-2020-0040 | C37: 2021 | D37: 2020 | E37: 2015 | F37: General Plant | G37: ='App.2-AB_Capital Expenditures'!N14 -> 2016 | H37: ='App.2-AB_Capital Expenditures'!N20 -> 1616 | I37: ='App.2-AB_Capital Expenditures'!O20 -> 1578.42337
A38: ='LDC Info'!$E$14 -> Niagara Peninsula Energy Inc. | B38: EB-2020-0040 | C38: 2021 | D38: 2020 | E38: 2015 | F38: Total Expenditure | G38: ='App.2-AB_Capital Expenditures'!N14 -> 2016 | H38: ='App.2-AB_Capital Expenditures'!N21 -> 12672.5669 | I38: ='App.2-AB_Capital Expenditures'!O21 -> 15426.43175
A39: ='LDC Info'!$E$14 -> Niagara Peninsula Energy Inc. | B39: EB-2020-0040 | C39: 2021 | D39: 2020 | E39: 2015 | F39: Capital Contributions | G39: ='App.2-AB_Capital Expenditures'!N14 -> 2016 | H39: ='App.2-AB_Capital Expenditures'!N22 -> -800 | I39: ='App.2-AB_Capital Expenditures'!O22 -> -4031.45087
A40: ='LDC Info'!$E$14 -> Niagara Peninsula Energy Inc. | B40: EB-2020-0040 | C40: 2021 | D40: 2020 | E40: 2015 | F40: Net Capital Expenditures | G40: ='App.2-AB_Capital Expenditures'!N14 -> 2016 | H40: ='App.2-AB_Capital Expenditures'!N23 -> 11872.5669 | I40: ='App.2-AB_Capital Expenditures'!O23 -> 11394.98088
A41: ='LDC Info'!$E$14 -> Niagara Peninsula Energy Inc. | B41: EB-2020-0040 | C41: 2021 | D41: 2020 | E41: 2015 | F41: System O&M | G41: ='App.2-AB_Capital Expenditures'!N14 -> 2016 | H41: ='App.2-AB_Capital Expenditures'!N24 -> 16434 | I41: ='App.2-AB_Capital Expenditures'!O24 -> 17146.51973
A42: ='LDC Info'!$E$14 -> Niagara Peninsula Energy Inc. | B42: EB-2020-0040 | C42: 2021 | D42: 2020 | E42: 2015 | F42: System Access | G42: ='App.2-AB_Capital Expenditures'!Q14 -> 2017 | H42: ='App.2-AB_Capital Expenditures'!Q17 -> 3005.004 | I42: ='App.2-AB_Capital Expenditures'!R17 -> 5701.039059
A43: ='LDC Info'!$E$14 -> Niagara Peninsula Energy Inc. | B43: EB-2020-0040 | C43: 2021 | D43: 2020 | E43: 2015 | F43: System Renewal | G43: ='App.2-AB_Capital Expenditures'!Q14 -> 2017 | H43: ='App.2-AB_Capital Expenditures'!Q18 -> 6586.99 | I43: ='App.2-AB_Capital Expenditures'!R18 -> 5534.91291
A44: ='LDC Info'!$E$14 -> Niagara Peninsula Energy Inc. | B44: EB-2020-0040 | C44: 2021 | D44: 2020 | E44: 2015 | F44: System Service | G44: ='App.2-AB_Capital Expenditures'!Q14 -> 2017 | H44: ='App.2-AB_Capital Expenditures'!Q19 -> 1497.247 | I44: ='App.2-AB_Capital Expenditures'!R19 -> 1258.5119
A45: ='LDC Info'!$E$14 -> Niagara Peninsula Energy Inc. | B45: EB-2020-0040 | C45: 2021 | D45: 2020 | E45: 2015 | F45: General Plant | G45: ='App.2-AB_Capital Expenditures'!Q14 -> 2017 | H45: ='App.2-AB_Capital Expenditures'!Q20 -> 2513 | I45: ='App.2-AB_Capital Expenditures'!R20 -> 2438.55264
A46: ='LDC Info'!$E$14 -> Niagara Peninsula Energy Inc. | B46: EB-2020-0040 | C46: 2021 | D46: 2020 | E46: 2015 | F46: Total Expenditure | G46: ='App.2-AB_Capital Expenditures'!Q14 -> 2017 | H46: ='App.2-AB_Capital Expenditures'!Q21 -> 13602.241 | I46: ='App.2-AB_Capital Expenditures'!R21 -> 14933.01651
A47: ='LDC Info'!$E$14 -> Niagara Peninsula Energy Inc. | B47: EB-2020-0040 | C47: 2021 | D47: 2020 | E47: 2015 | F47: Capital Contributions | G47: ='App.2-AB_Capital Expenditures'!Q14 -> 2017 | H47: ='App.2-AB_Capital Expenditures'!Q22 -> -1537 | I47: ='App.2-AB_Capital Expenditures'!R22 -> -2471.48383
A48: ='LDC Info'!$E$14 -> Niagara Peninsula Energy Inc. | B48: EB-2020-0040 | C48: 2021 | D48: 2020 | E48: 2015 | F48: Net Capital Expenditures | G48: ='App.2-AB_Capital Expenditures'!Q14 -> 2017 | H48: ='App.2-AB_Capital Expenditures'!Q23 -> 12065.241 | I48: ='App.2-AB_Capital Expenditures'!R23 -> 12461.53268
A49: ='LDC Info'!$E$14 -> Niagara Peninsula Energy Inc. | B49: EB-2020-0040 | C49: 2021 | D49: 2020 | E49: 2015 | F49: System O&M | G49: ='App.2-AB_Capital Expenditures'!Q14 -> 2017 | H49: ='App.2-AB_Capital Expenditures'!Q24 -> 17671 | I49: ='App.2-AB_Capital Expenditures'!R24 -> 18268.43785
A50: ='LDC Info'!$E$14 -> Niagara Peninsula Energy Inc. | B50: EB-2020-0040 | C50: 2021 | D50: 2020 | E50: 2015 | F50: System Access | G50: ='App.2-AB_Capital Expenditures'!T14 -> 2018 | H50: ='App.2-AB_Capital Expenditures'!T17 -> 3944.242 | I50: ='App.2-AB_Capital Expenditures'!U17 -> 5992.902836
A51: ='LDC Info'!$E$14 -> Niagara Peninsula Energy Inc. | B51: EB-2020-0040 | C51: 2021 | D51: 2020 | E51: 2015 | F51: System Renewal | G51: ='App.2-AB_Capital Expenditures'!T14 -> 2018 | H51: ='App.2-AB_Capital Expenditures'!T18 -> 5775.765 | I51: ='App.2-AB_Capital Expenditures'!U18 -> 5256.22063
A52: ='LDC Info'!$E$14 -> Niagara Peninsula Energy Inc. | B52: EB-2020-0040 | C52: 2021 | D52: 2020 | E52: 2015 | F52: System Service | G52: ='App.2-AB_Capital Expenditures'!T14 -> 2018 | H52: ='App.2-AB_Capital Expenditures'!T19 -> 1676.737 | I52: ='App.2-AB_Capital Expenditures'!U19 -> 1391.87631
A53: ='LDC Info'!$E$14 -> Niagara Peninsula Energy Inc. | B53: EB-2020-0040 | C53: 2021 | D53: 2020 | E53: 2015 | F53: General Plant | G53: ='App.2-AB_Capital Expenditures'!T14 -> 2018 | H53: ='App.2-AB_Capital Expenditures'!T20 -> 2580 | I53: ='App.2-AB_Capital Expenditures'!U20 -> 2344.90795
A54: ='LDC Info'!$E$14 -> Niagara Peninsula Energy Inc. | B54: EB-2020-0040 | C54: 2021 | D54: 2020 | E54: 2015 | F54: Total Expenditure | G54: ='App.2-AB_Capital Expenditures'!T14 -> 2018 | H54: ='App.2-AB_Capital Expenditures'!T21 -> 13976.744 | I54: ='App.2-AB_Capital Expenditures'!U21 -> 14985.90773
A55: ='LDC Info'!$E$14 -> Niagara Peninsula Energy Inc. | B55: EB-2020-0040 | C55: 2021 | D55: 2020 | E55: 2015 | F55: Capital Contributions | G55: ='App.2-AB_Capital Expenditures'!T14 -> 2018 | H55: ='App.2-AB_Capital Expenditures'!T22 -> -2135 | I55: ='App.2-AB_Capital Expenditures'!U22 -> -2538.03416
A56: ='LDC Info'!$E$14 -> Niagara Peninsula Energy Inc. | B56: EB-2020-0040 | C56: 2021 | D56: 2020 | E56: 2015 | F56: Net Capital Expenditures | G56: ='App.2-AB_Capital Expenditures'!T14 -> 2018 | H56: ='App.2-AB_Capital Expenditures'!T23 -> 11841.744 | I56: ='App.2-AB_Capital Expenditures'!U23 -> 12447.87357
A57: ='LDC Info'!$E$14 -> Niagara Peninsula Energy Inc. | B57: EB-2020-0040 | C57: 2021 | D57: 2020 | E57: 2015 | F57: System O&M | G57: ='App.2-AB_Capital Expenditures'!T14 -> 2018 | H57: ='App.2-AB_Capital Expenditures'!T24 -> 18004 | I57: ='App.2-AB_Capital Expenditures'!U24 -> 18020.59474
A58: ='LDC Info'!$E$14 -> Niagara Peninsula Energy Inc. | B58: EB-2020-0040 | C58: 2021 | D58: 2020 | E58: 2015 | F58: System Access | G58: ='App.2-AB_Capital Expenditures'!W14 -> 2019 | H58: ='App.2-AB_Capital Expenditures'!W17 -> 5973.37051 | I58: ='App.2-AB_Capital Expenditures'!X17 -> 7973.761939
A59: ='LDC Info'!$E$14 -> Niagara Peninsula Energy Inc. | B59: EB-2020-0040 | C59: 2021 | D59: 2020 | E59: 2015 | F59: System Renewal | G59: ='App.2-AB_Capital Expenditures'!W14 -> 2019 | H59: ='App.2-AB_Capital Expenditures'!W18 -> 4726.448 | I59: ='App.2-AB_Capital Expenditures'!X18 -> 4031.84319
A60: ='LDC Info'!$E$14 -> Niagara Peninsula Energy Inc. | B60: EB-2020-0040 | C60: 2021 | D60: 2020 | E60: 2015 | F60: System Service | G60: ='App.2-AB_Capital Expenditures'!W14 -> 2019 | H60: ='App.2-AB_Capital Expenditures'!W19 -> 1177.375 | I60: ='App.2-AB_Capital Expenditures'!X19 -> 1572.46014
A61: ='LDC Info'!$E$14 -> Niagara Peninsula Energy Inc. | B61: EB-2020-0040 | C61: 2021 | D61: 2020 | E61: 2015 | F61: General Plant | G61: ='App.2-AB_Capital Expenditures'!W14 -> 2019 | H61: ='App.2-AB_Capital Expenditures'!W20 -> 3245 | I61: ='App.2-AB_Capital Expenditures'!X20 -> 3369.12765
A62: ='LDC Info'!$E$14 -> Niagara Peninsula Energy Inc. | B62: EB-2020-0040 | C62: 2021 | D62: 2020 | E62: 2015 | F62: Total Expenditure | G62: ='App.2-AB_Capital Expenditures'!W14 -> 2019 | H62: ='App.2-AB_Capital Expenditures'!W21 -> 15122.19351 | I62: ='App.2-AB_Capital Expenditures'!X21 -> 16947.19292
A63: ='LDC Info'!$E$14 -> Niagara Peninsula Energy Inc. | B63: EB-2020-0040 | C63: 2021 | D63: 2020 | E63: 2015 | F63: Capital Contributions | G63: ='App.2-AB_Capital Expenditures'!W14 -> 2019 | H63: ='App.2-AB_Capital Expenditures'!W22 -> -2187 | I63: ='App.2-AB_Capital Expenditures'!X22 -> -5462.67961
A64: ='LDC Info'!$E$14 -> Niagara Peninsula Energy Inc. | B64: EB-2020-0040 | C64: 2021 | D64: 2020 | E64: 2015 | F64: Net Capital Expenditures | G64: ='App.2-AB_Capital Expenditures'!W14 -> 2019 | H64: ='App.2-AB_Capital Expenditures'!W23 -> 12935.19351 | I64: ='App.2-AB_Capital Expenditures'!X23 -> 11484.51331
A65: ='LDC Info'!$E$14 -> Niagara Peninsula Energy Inc. | B65: EB-2020-0040 | C65: 2021 | D65: 2020 | E65: 2015 | F65: System O&M | G65: ='App.2-AB_Capital Expenditures'!W14 -> 2019 | H65: ='App.2-AB_Capital Expenditures'!W24 -> 19412 | I65: ='App.2-AB_Capital Expenditures'!X24 -> 19158.806
A66: ='LDC Info'!$E$14 -> Niagara Peninsula Energy Inc. | B66: =EBNUMBER -> EB-2020-0040 | C66: =TestYear -> 2021 | D66: =BridgeYear -> 2020 | E66: =RebaseYear -> 2015 | F66: System Access | G66: ='App.2-AB_Capital Expenditures'!Z14 -> 2020 | H66: ='App.2-AB_Capital Expenditures'!Z17 -> 9487.51613 | I66: ='App.2-AB_Capital Expenditures'!AA17 -> 9001.013
A67: ='LDC Info'!$E$14 -> Niagara Peninsula Energy Inc. | B67: EB-2020-0040 | C67: 2021 | D67: 2020 | E67: 2015 | F67: System Renewal | G67: ='App.2-AB_Capital Expenditures'!Z14 -> 2020 | H67: ='App.2-AB_Capital Expenditures'!Z18 -> 4246.68391 | I67: ='App.2-AB_Capital Expenditures'!AA18 -> 3666.118
A68: ='LDC Info'!$E$14 -> Niagara Peninsula Energy Inc. | B68: EB-2020-0040 | C68: 2021 | D68: 2020 | E68: 2015 | F68: System Service | G68: ='App.2-AB_Capital Expenditures'!Z14 -> 2020 | H68: ='App.2-AB_Capital Expenditures'!Z19 -> 1201.74809 | I68: ='App.2-AB_Capital Expenditures'!AA19 -> 886.983
A69: ='LDC Info'!$E$14 -> Niagara Peninsula Energy Inc. | B69: EB-2020-0040 | C69: 2021 | D69: 2020 | E69: 2015 | F69: General Plant | G69: ='App.2-AB_Capital Expenditures'!Z14 -> 2020 | H69: ='App.2-AB_Capital Expenditures'!Z20 -> 2628.2 | I69: ='App.2-AB_Capital Expenditures'!AA20 -> 2434.208
A70: ='LDC Info'!$E$14 -> Niagara Peninsula Energy Inc. | B70: EB-2020-0040 | C70: 2021 | D70: 2020 | E70: 2015 | F70: Total Expenditure | G70: ='App.2-AB_Capital Expenditures'!Z14 -> 2020 | H70: ='App.2-AB_Capital Expenditures'!Z21 -> 17564.14813 | I70: ='App.2-AB_Capital Expenditures'!AA21 -> 15988.322
A71: ='LDC Info'!$E$14 -> Niagara Peninsula Energy Inc. | B71: EB-2020-0040 | C71: 2021 | D71: 2020 | E71: 2015 | F71: Capital Contributions | G71: ='App.2-AB_Capital Expenditures'!Z14 -> 2020 | H71: ='App.2-AB_Capital Expenditures'!Z22 -> -3854.1734 | I71: ='App.2-AB_Capital Expenditures'!AA22 -> -2985.966
A72: ='LDC Info'!$E$14 -> Niagara Peninsula Energy Inc. | B72: EB-2020-0040 | C72: 2021 | D72: 2020 | E72: 2015 | F72: Net Capital Expenditures | G72: ='App.2-AB_Capital Expenditures'!Z14 -> 2020 | H72: ='App.2-AB_Capital Expenditures'!Z23 -> 13709.97473 | I72: ='App.2-AB_Capital Expenditures'!AA23 -> 13002.356
A73: ='LDC Info'!$E$14 -> Niagara Peninsula Energy Inc. | B73: EB-2020-0040 | C73: 2021 | D73: 2020 | E73: 2015 | F73: System O&M | G73: ='App.2-AB_Capital Expenditures'!Z14 -> 2020 | H73: ='App.2-AB_Capital Expenditures'!Z24 -> 19623.39187 | I73: ='App.2-AB_Capital Expenditures'!AA24 -> 19623.39187
A74: ='LDC Info'!$E$14 -> Niagara Peninsula Energy Inc. | B74: EB-2020-0040 | C74: 2021 | D74: 2020 | E74: 2015 | F74: System Access | G74: ='App.2-AB_Capital Expenditures'!AC14 -> 2021 | H74: ='App.2-AB_Capital Expenditures'!AC17 -> 8216.98307
A75: ='LDC Info'!$E$14 -> Niagara Peninsula Energy Inc. | B75: EB-2020-0040 | C75: 2021 | D75: 2020 | E75: 2015 | F75: System Renewal | G75: ='App.2-AB_Capital Expenditures'!AC14 -> 2021 | H75: ='App.2-AB_Capital Expenditures'!AC18 -> 5534.2778
A76: ='LDC Info'!$E$14 -> Niagara Peninsula Energy Inc. | B76: EB-2020-0040 | C76: 2021 | D76: 2020 | E76: 2015 | F76: System Service | G76: ='App.2-AB_Capital Expenditures'!AC14 -> 2021 | H76: ='App.2-AB_Capital Expenditures'!AC19 -> 1097.81
A77: ='LDC Info'!$E$14 -> Niagara Peninsula Energy Inc. | B77: EB-2020-0040 | C77: 2021 | D77: 2020 | E77: 2015 | F77: General Plant | G77: ='App.2-AB_Capital Expenditures'!AC14 -> 2021 | H77: ='App.2-AB_Capital Expenditures'!AC20 -> 1550.98
A78: ='LDC Info'!$E$14 -> Niagara Peninsula Energy Inc. | B78: EB-2020-0040 | C78: 2021 | D78: 2020 | E78: 2015 | F78: Total Expenditure | G78: ='App.2-AB_Capital Expenditures'!AC14 -> 2021 | H78: ='App.2-AB_Capital Expenditures'!AC21 -> 16400.05087
A79: ='LDC Info'!$E$14 -> Niagara Peninsula Energy Inc. | B79: EB-2020-0040 | C79: 2021 | D79: 2020 | E79: 2015 | F79: Capital Contributions | G79: ='App.2-AB_Capital Expenditures'!AC14 -> 2021 | H79: ='App.2-AB_Capital Expenditures'!AC22 -> -3600
A80: ='LDC Info'!$E$14 -> Niagara Peninsula Energy Inc. | B80: EB-2020-0040 | C80: 2021 | D80: 2020 | E80: 2015 | F80: Net Capital Expenditures | G80: ='App.2-AB_Capital Expenditures'!AC14 -> 2021 | H80: ='App.2-AB_Capital Expenditures'!AC23 -> 12800.05087
A81: ='LDC Info'!$E$14 -> Niagara Peninsula Energy Inc. | B81: EB-2020-0040 | C81: 2021 | D81: 2020 | E81: 2015 | F81: System O&M | G81: ='App.2-AB_Capital Expenditures'!AC14 -> 2021 | H81: ='App.2-AB_Capital Expenditures'!AC24 -> 19734.01
A82: ='LDC Info'!$E$14 -> Niagara Peninsula Energy Inc. | B82: EB-2020-0040 | C82: 2021 | D82: 2020 | E82: 2015 | F82: System Access | G82: ='App.2-AB_Capital Expenditures'!AD14 -> 2022 | H82: ='App.2-AB_Capital Expenditures'!AD17 -> 6784.31413
A83: ='LDC Info'!$E$14 -> Niagara Peninsula Energy Inc. | B83: EB-2020-0040 | C83: 2021 | D83: 2020 | E83: 2015 | F83: System Renewal | G83: ='App.2-AB_Capital Expenditures'!AD14 -> 2022 | H83: ='App.2-AB_Capital Expenditures'!AD18 -> 7118.44987
A84: ='LDC Info'!$E$14 -> Niagara Peninsula Energy Inc. | B84: EB-2020-0040 | C84: 2021 | D84: 2020 | E84: 2015 | F84: System Service | G84: ='App.2-AB_Capital Expenditures'!AD14 -> 2022 | H84: ='App.2-AB_Capital Expenditures'!AD19 -> 974.07
A85: ='LDC Info'!$E$14 -> Niagara Peninsula Energy Inc. | B85: EB-2020-0040 | C85: 2021 | D85: 2020 | E85: 2015 | F85: General Plant | G85: ='App.2-AB_Capital Expenditures'!AD14 -> 2022 | H85: ='App.2-AB_Capital Expenditures'!AD20 -> 1550.98
A86: ='LDC Info'!$E$14 -> Niagara Peninsula Energy Inc. | B86: EB-2020-0040 | C86: 2021 | D86: 2020 | E86: 2015 | F86: Total Expenditure | G86: ='App.2-AB_Capital Expenditures'!AD14 -> 2022 | H86: ='App.2-AB_Capital Expenditures'!AD21 -> 16427.814
A87: ='LDC Info'!$E$14 -> Niagara Peninsula Energy Inc. | B87: EB-2020-0040 | C87: 2021 | D87: 2020 | E87: 2015 | F87: Capital Contributions | G87: ='App.2-AB_Capital Expenditures'!AD14 -> 2022 | H87: ='App.2-AB_Capital Expenditures'!AD22 -> -3600
A88: ='LDC Info'!$E$14 -> Niagara Peninsula Energy Inc. | B88: EB-2020-0040 | C88: 2021 | D88: 2020 | E88: 2015 | F88: Net Capital Expenditures | G88: ='App.2-AB_Capital Expenditures'!AD14 -> 2022 | H88: ='App.2-AB_Capital Expenditures'!AD23 -> 12827.814
A89: ='LDC Info'!$E$14 -> Niagara Peninsula Energy Inc. | B89: EB-2020-0040 | C89: 2021 | D89: 2020 | E89: 2015 | F89: System O&M | G89: ='App.2-AB_Capital Expenditures'!AD14 -> 2022 | H89: ='App.2-AB_Capital Expenditures'!AD24 -> 20128.6902
A90: ='LDC Info'!$E$14 -> Niagara Peninsula Energy Inc. | B90: EB-2020-0040 | C90: 2021 | D90: 2020 | E90: 2015 | F90: System Access | G90: ='App.2-AB_Capital Expenditures'!AE14 -> 2023 | H90: ='App.2-AB_Capital Expenditures'!AE17 -> 6512.21424
A91: ='LDC Info'!$E$14 -> Niagara Peninsula Energy Inc. | B91: EB-2020-0040 | C91: 2021 | D91: 2020 | E91: 2015 | F91: System Renewal | G91: ='App.2-AB_Capital Expenditures'!AE14 -> 2023 | H91: ='App.2-AB_Capital Expenditures'!AE18 -> 7288.21569
A92: ='LDC Info'!$E$14 -> Niagara Peninsula Energy Inc. | B92: EB-2020-0040 | C92: 2021 | D92: 2020 | E92: 2015 | F92: System Service | G92: ='App.2-AB_Capital Expenditures'!AE14 -> 2023 | H92: ='App.2-AB_Capital Expenditures'!AE19 -> 1225.33
A93: ='LDC Info'!$E$14 -> Niagara Peninsula Energy Inc. | B93: EB-2020-0040 | C93: 2021 | D93: 2020 | E93: 2015 | F93: General Plant | G93: ='App.2-AB_Capital Expenditures'!AE14 -> 2023 | H93: ='App.2-AB_Capital Expenditures'!AE20 -> 1550.98
A94: ='LDC Info'!$E$14 -> Niagara Peninsula Energy Inc. | B94: EB-2020-0040 | C94: 2021 | D94: 2020 | E94: 2015 | F94: Total Expenditure | G94: ='App.2-AB_Capital Expenditures'!AE14 -> 2023 | H94: ='App.2-AB_Capital Expenditures'!AE21 -> 16576.73993
A95: ='LDC Info'!$E$14 -> Niagara Peninsula Energy Inc. | B95: EB-2020-0040 | C95: 2021 | D95: 2020 | E95: 2015 | F95: Capital Contributions | G95: ='App.2-AB_Capital Expenditures'!AE14 -> 2023 | H95: ='App.2-AB_Capital Expenditures'!AE22 -> -3600
A96: ='LDC Info'!$E$14 -> Niagara Peninsula Energy Inc. | B96: EB-2020-0040 | C96: 2021 | D96: 2020 | E96: 2015 | F96: Net Capital Expenditures | G96: ='App.2-AB_Capital Expenditures'!AE14 -> 2023 | H96: ='App.2-AB_Capital Expenditures'!AE23 -> 12976.73993
A97: ='LDC Info'!$E$14 -> Niagara Peninsula Energy Inc. | B97: EB-2020-0040 | C97: 2021 | D97: 2020 | E97: 2015 | F97: System O&M | G97: ='App.2-AB_Capital Expenditures'!AE14 -> 2023 | H97: ='App.2-AB_Capital Expenditures'!AE24 -> 20531.264
A98: ='LDC Info'!$E$14 -> Niagara Peninsula Energy Inc. | B98: =EBNUMBER -> EB-2020-0040 | C98: =TestYear -> 2021 | D98: =BridgeYear -> 2020 | E98: =RebaseYear -> 2015 | F98: System Access | G98: ='App.2-AB_Capital Expenditures'!AF14 -> 2024 | H98: ='App.2-AB_Capital Expenditures'!AF17 -> 6425.93546
A99: ='LDC Info'!$E$14 -> Niagara Peninsula Energy Inc. | B99: EB-2020-0040 | C99: 2021 | D99: 2020 | E99: 2015 | F99: System Renewal | G99: ='App.2-AB_Capital Expenditures'!AF14 -> 2024 | H99: ='App.2-AB_Capital Expenditures'!AF18 -> 6784.1145
A100: ='LDC Info'!$E$14 -> Niagara Peninsula Energy Inc. | B100: EB-2020-0040 | C100: 2021 | D100: 2020 | E100: 2015 | F100: System Service | G100: ='App.2-AB_Capital Expenditures'!AF14 -> 2024 | H100: ='App.2-AB_Capital Expenditures'!AF19 -> 1477.22
A101: ='LDC Info'!$E$14 -> Niagara Peninsula Energy Inc. | B101: EB-2020-0040 | C101: 2021 | D101: 2020 | E101: 2015 | F101: General Plant | G101: ='App.2-AB_Capital Expenditures'!AF14 -> 2024 | H101: ='App.2-AB_Capital Expenditures'!AF20 -> 1550.98
A102: ='LDC Info'!$E$14 -> Niagara Peninsula Energy Inc. | B102: EB-2020-0040 | C102: 2021 | D102: 2020 | E102: 2015 | F102: Total Expenditure | G102: ='App.2-AB_Capital Expenditures'!AF14 -> 2024 | H102: ='App.2-AB_Capital Expenditures'!AF21 -> 16238.24996
A103: ='LDC Info'!$E$14 -> Niagara Peninsula Energy Inc. | B103: EB-2020-0040 | C103: 2021 | D103: 2020 | E103: 2015 | F103: Capital Contributions | G103: ='App.2-AB_Capital Expenditures'!AF14 -> 2024 | H103: ='App.2-AB_Capital Expenditures'!AF22 -> -3600
A104: ='LDC Info'!$E$14 -> Niagara Peninsula Energy Inc. | B104: EB-2020-0040 | C104: 2021 | D104: 2020 | E104: 2015 | F104: Net Capital Expenditures | G104: ='App.2-AB_Capital Expenditures'!AF14 -> 2024 | H104: ='App.2-AB_Capital Expenditures'!AF23 -> 12638.24996
A105: ='LDC Info'!$E$14 -> Niagara Peninsula Energy Inc. | B105: EB-2020-0040 | C105: 2021 | D105: 2020 | E105: 2015 | F105: System O&M | G105: ='App.2-AB_Capital Expenditures'!AF14 -> 2024 | H105: ='App.2-AB_Capital Expenditures'!AF24 -> 20941.88928
A106: ='LDC Info'!$E$14 -> Niagara Peninsula Energy Inc. | B106: EB-2020-0040 | C106: 2021 | D106: 2020 | E106: 2015 | F106: System Access | G106: ='App.2-AB_Capital Expenditures'!AG14 -> 2025 | H106: ='App.2-AB_Capital Expenditures'!AG17 -> 5201.19314
A107: ='LDC Info'!$E$14 -> Niagara Peninsula Energy Inc. | B107: EB-2020-0040 | C107: 2021 | D107: 2020 | E107: 2015 | F107: System Renewal | G107: ='App.2-AB_Capital Expenditures'!AG14 -> 2025 | H107: ='App.2-AB_Capital Expenditures'!AG18 -> 8284.38809
A108: ='LDC Info'!$E$14 -> Niagara Peninsula Energy Inc. | B108: EB-2020-0040 | C108: 2021 | D108: 2020 | E108: 2015 | F108: System Service | G108: ='App.2-AB_Capital Expenditures'!AG14 -> 2025 | H108: ='App.2-AB_Capital Expenditures'!AG19 -> 1475.33
A109: ='LDC Info'!$E$14 -> Niagara Peninsula Energy Inc. | B109: EB-2020-0040 | C109: 2021 | D109: 2020 | E109: 2015 | F109: General Plant | G109: ='App.2-AB_Capital Expenditures'!AG14 -> 2025 | H109: ='App.2-AB_Capital Expenditures'!AG20 -> 1550.98
A110: ='LDC Info'!$E$14 -> Niagara Peninsula Energy Inc. | B110: EB-2020-0040 | C110: 2021 | D110: 2020 | E110: 2015 | F110: Total Expenditure | G110: ='App.2-AB_Capital Expenditures'!AG14 -> 2025 | H110: ='App.2-AB_Capital Expenditures'!AG21 -> 16511.89123
A111: ='LDC Info'!$E$14 -> Niagara Peninsula Energy Inc. | B111: EB-2020-0040 | C111: 2021 | D111: 2020 | E111: 2015 | F111: Capital Contributions | G111: ='App.2-AB_Capital Expenditures'!AG14 -> 2025 | H111: ='App.2-AB_Capital Expenditures'!AG22 -> -3600
A112: ='LDC Info'!$E$14 -> Niagara Peninsula Energy Inc. | B112: EB-2020-0040 | C112: 2021 | D112: 2020 | E112: 2015 | F112: Net Capital Expenditures | G112: ='App.2-AB_Capital Expenditures'!AG14 -> 2025 | H112: ='App.2-AB_Capital Expenditures'!AG23 -> 12911.89123
A113: ='LDC Info'!$E$14 -> Niagara Peninsula Energy Inc. | B113: EB-2020-0040 | C113: 2021 | D113: 2020 | E113: 2015 | F113: System O&M | G113: ='App.2-AB_Capital Expenditures'!AG14 -> 2025 | H113: ='App.2-AB_Capital Expenditures'!AG24 -> 21360.72707

Sheet App.2-AC_Customer Engagement
B1: File Number: | C1: =EBNUMBER -> EB-2020-0040
B2: Exhibit: | C2: 1
B3: Tab: | C3: 7
B4: Schedule: | C4: 1
B5: Page:
B7: Date: | C7: 2020-08-31
A9: Appendix 2-AC
A10: Customer Engagement Activities Summary
A12: Provide a list of customer engagement activities | B12: Provide a list of customer needs and preferences identified through each engagement activity | C12: Actions taken to respond to identified needs and preferences. If no action was taken, explain why.
A13: Residential & Small Commercial Exploratory Customer Focus Groups On June 26, and 27th, 2019, NPEI held 4 focus groups, each moderated by Innovative Research Group. 2 focus groups were held in Niagara Falls, and 2 focus groups were held in Lincoln.The focus groups were divided, one with a group of residential customers, one with a group of small business customers. In total, 33 customers attended the focus groups. The objective was to obtain insights into what customers expect of NPEI particularly in terms of what represents value to customers and what customer priorities for NPEI are, both in context of valued outcomes and choices impacting customers. | B13: Customers identified, and ranked the following priorities they wanted NPEI to focus on in its upcoming plan: • Price/Cost Efficiency • System Maintenance/Reliability • Greening the Grid/Microgeneration • Need for Education • Customer Service/Tools • Supporting Local Community/Small Business • Planning for Growth/Increased Demand • Preparing System for Climate Change | C13: The priorities discussed by NPEI customers in the focus groups were developed into themes to be tested amongst a larger group of customers in online and telephone reference surveys: • Delivering electricity at reasonable distribution rates • Finding internal efficiencies and ways to find cost savings • Ensuring reliable electrical service • Proactively replacing aging infrastructure that is beyond its useful life • Providing tools and services that allow customers to better manage their electricity usage • Providing quality customer service and enhanced communications • Support the local economy and community groups through new incentives programs • Upgrading the electrical system to better respond to and withstand the impact of adverse weather
A14: Telephone and Online Reference Surveys Telephone surveys were fielded from July 9th to 26th, 2019 amongst a random sample of 500 residential, and 87 small business customers. Online Surveys were fielded from July 12th to 29th 2019 amongst 939 residential and 71 small business customers. The survey focused on understanding the gap between the services and experience customers want and the services and experience customers are receiving, and on customer views about the outcomes the utility should focus on, priorities among those outcomes, and trade-offs illustrated by choices on specific programs or the pacing and prioritization of investments. | B14: • Customers don’t expect NPEI to just focus on one outcome. • Among competing outcomes, price, reliability, and finding internal cost efficiencies are the top three priorities for both residential and small business customers. When ranked relative to other priorities, NPEI customers see price as the top outcome that the utility should focus on. • While keeping price at a reasonable and affordable level is an important priority for customers, the majority feel that investing in the grid to maintain reliability, is preferable to deferring investments to keep bills low. • Residential and small business customers have consistent priorities when it comes to reliability. Reducing the overall number of outages, the overall length of outages, and improving restoration time are the top three priorities for both rate classes. • The majority of residential and small business customers are supportive of NPEI making investments in aging infrastructure in order to maintain reliability, even if that results in small rate increases • The majority of residential and small business customers are willing to consider paying more to invest in maintaining reliability, equipping staff with equipment and IT systems, proactively investing in system capacity, and modernizing the grid knowing that it could eventually save money. | C14: A draft plan was developed that identified 7 investment areas where pacing could be accelerated, or slowed down, based on customer needs and expectations. The plan was developed this way so more specific customer feedback could be obtained through an online workbook before finalizing spending decisions. The 7 investment areas were: • Underground Cable Replacement • Overhead Pole Replacement • Overhead Transformer Replacement • Grid Modernization • Converting Outdated Underground Kiosk Transformers • Subdivision Underground Rehabilitation • Overhead Rebuilds
A15: Online Workbook Survey (residential, small commercial, and large commercial customers) An Online Workbook/Survey was created and made accessible for all NPEI customers from November 21st to December 17th, 2019, and customers were offered the chance to win a $500 cash prize. The workbook was developed using feedback already received through the Exploratory Customer Focus groups, and Telephone and Online Reference Surveys. The workbook was designed to both educate customers on NPEI’s role in the electricity system and its draft business plans, as well as to gather feedback on trade-offs between seven specific investments. Tailored workbooks for Residential, Small Business, and GS>50 kW were deployed to all customers with an email address on file, as well as promoted through a generic link on NPEI’s website. In total 1,488 residential, 65 small business, and 32 large commercial customers who represent 74 unique accounts, completed the workbook. | B15: • Overall, NPEI’s customers were supportive of its 2021-2025 draft plan as it was presented during the customer engagement process. In each of the three workbooks (Residential, Small Business and GS > 50 kW), the majority of customers surveyed indicated a preference for NPEI to either maintain the proposed rate increase to deliver a program that focuses on the priorities of its draft plan, or to improve service even if that means an increase that exceeds what is proposed in the draft plan. • The customer support for maintaining the proposed level of rate increase included in the draft plan was greater than the customer support for improving service even if that means an increase that exceeds what is proposed in the draft plan. • Specific attention has been paid to how those whose electricity bill has a significant impact on their households’ (or business’) finances opinions vary from the broader customer base. Reflecting their financial capacity, those who agree that their electricity bill has a significant impact on their household’s finances are less supportive of investments than the average customer but still generally support NPEI’s draft plan and the associated impacts. Among Vulnerable Residential customers, only a minority (29%) indicated that NPEI should keep increases below what is proposed in the draft plan. | C15: In determining whether to adjust the overall level of spending proposed in its draft plan, NPEI has considered the following factors: • Balancing customer preferences in general against the preferences expressed by the more vulnerable Residential customers. • The resulting level of bill impacts to all customer classes. • Internal resource constraints: whether or not an increase in the overall level of proposed capital projects or programs may require additional engineering or operations resources beyond NPEI’s current staffing levels. • Financial leverage: whether or not an increase in the overall level of proposed capital projects or programs may require NPEI to incur additional debt. Based on the above considerations, NPEI has decided to maintain the overall proposed level of capital spending consistent with what was included in the draft plan.
A16: Online Workbook Survey - Overhead Pole Replacement A recent asset health condition assessment shows that 575 or approximately 3% of the poles in NPEI’s distribution system are in poor or very poor condition. Each year, new poles enter this condition, and NPEI takes an approach that proactively replaces poles as to not create a large backlog. As a general rule, pole failure only causes an outage when something happens outside of the utility’s control, most frequently due to trees knocking them down or a motor vehicle accident. On average, since 2014, NPEI has replaced approximately 88 poles per year. This pace has effectively maintained reliability over this period. NPEI is proposing to replace most of these 575 poles in poor and very poor condition over the course of the next five years, however, there is an opportunity to replace these poles more quickly or slowly. NPEI must continue to invest in overhead pole replacement, therefore, this is a matter of whether customers would rather pay more during the upcoming period, or push some level of investment beyond the next five years. | B16: Among Residential customers, a plurality (47%) indicated a preference for an accelerated pace, while among Vulnerable Residential customers, a plurality (43%) indicated a preference for a slower pace than what was proposed in the draft plan. Among Small Business Customers, a majority (56%) indicated a preference for an accelerated pace. Of the GS>50 kW respondents, 15 of 32 indicated a preference for the pace that was included in the draft plan. | C16: In considering the overall customer preferences from each rate class, as well as the specific preferences of the more vulnerable Residential customers, NPEI has decided to maintain its proposed plan for Overhead Pole Replacement.
A17: Online Workbook Survey - Overhead Transformer Replacement A recent asset health condition assessment shows that 1,251 or approximately 21% of the overhead transformers in NPEI’s distribution system are in poor or very poor condition. Since 2014, overhead transformer failure has directly resulted in approximately 15 outages per year. That said, in most cases, when an overhead transformer fails, it only impacts a small amount of customers and the equipment can be replaced within 2-3 hours depending on the circumstances. However, when these outages do occur, it can take NPEI crews an extended period of time to replace the cable and restore power to affected households and businesses. NPEI is proposing a new program to proactively replace 250 of the 677 or 37% of the overhead transformers identified as very poor condition before they fail over the course of the next five years. As with distribution poles, NPEI will proactively invest in overhead transformer replacement, therefore, this is a matter of whether customers would rather pay more during the upcoming period, or push some level of investment beyond the next five years. | B17: Among Residential customers, a plurality (47%) indicated a preference for an accelerated pace, while among Vulnerable Residential customers, a plurality (38%) indicated a preference for a slower pace than what was proposed in the draft plan. Among Small Business Customers, a majority (53%) indicated a preference for an accelerated pace. Of the GS>50 kW respondents, 14 of 32 indicated a preference for an accelerated pace and 12 of 32 indicated a preference for what was included in the draft plan. | C17: Although there is an apparent overall preference for an accelerated pace, Vulnerable Residential customers prefer a slower pace. In addition, the majority of Residential and GS>50 kW customers preferred either the draft plan or slower pace. Therefore, NPEI has decided to maintain its proposed Overhead Transformer Replacement.
A18: Online Workbook Survey - Converting Outdated Underground Kiosk Transformers NPEI’s system features a type of underground transformer that was popular in the 1940s to 1970s which no longer meets construction and safety standards. While this equipment still functions, it is becoming increasingly difficult to safely and effectively maintain. When this equipment does fail, it can result in lengthy outages due to the limited accessibility due to the original method of construction. On average, since 2014, NPEI has converted approximately 9 kiosk transformers per year. Between 2018 and 2019, the pace of this program was slowed due to an increase in system access customer demand projects, and today, there remains 75 transformers in need of replacement. NPEI is proposing to convert all of this equipment within the next seven years, with 55 being converted in the next five year period. That said, there is an opportunity to convert these kiosk transformers more slowly. | B18: Among Residential customers, a majority (56%) indicated a preference for the pace that was included in the draft plan, while among Vulnerable Residential customers, a strong majority (73%) indicated a preference for either a reduced pace, or an even slower pace. Among Small Business Customers, a majority (60%) indicated a preference for the pace that was included in the draft plan. Of the GS>50 kW respondents, 21 of 32 indicated a preference for the pace that was included in the draft plan. | C18: Although there is an apparent overall preference for the pace that was included in the draft plan, 73% of Vulnerable Residential exhibited a preference for a reduced pace or an even slower pace. In response, NPEI has reduced the proposed Conversion of Outdated Underground Kiosk Transformers Program from replacing 11 units per year to 8 units per year, resulting in a reduction of $242,000 in the test year capital plan.
A19: Online Workbook Survey - Underground Cable Replacement Many neighbourhoods across NPEI’s service territory are serviced by underground cables. Historically, NPEI has taken a “run-to-failure” approach with this equipment; that is, a cable will be replaced only once it has failed. The age of this equipment is now becoming a concern, with approximately 78 km or 18% of underground cable operating beyond its estimated useful life of 35 years. Since 2014, underground cable failure has directly resulted in approximately ten outages per year, and when these outages do occur, it can take NPEI crews an extended period to replace the cable and restore power to affected households and businesses. Between 2021 and 2025, NPEI is proposing a new program that will replace cable that has been identified as past end of life when completing other associated work. NPEI believes that this could help reduce the number and length of outages caused by underground cable failure, as well as to start getting ahead of the ongoing age issue. That said, there is an opportunity to take a more proactive approach to addressing some of the older cable in the system. | B19: Among Residential customers, a majority (65%) indicated a preference for an accelerated pace, or an even further accelerated pace, while among Vulnerable Residential customers, a majority (58%) indicated a preference for an accelerated pace, or an even further accelerated pace. Among Small Business Customers, a majority (68%) indicated a preference for an accelerated pace, or an even further accelerated pace. Of the GS>50 kW respondents, 16 of 32 indicated a preference for the pace that was included in the draft plan, 14 of 32 indicated a preference for an accelerated pace and 2 of 32 preferred a further accelerated pace | C19: In response to the overall preference amongst all customer types for an accelerated pace or an even further accelerated pace, NPEI has increased the level of its Underground Cable Replacement Program. In order to maintain the overall level of proposed capital spending, NPEI has increased the proposed Underground Cable Replacement budget by $242,000, which corresponds to the reduction made to the Conversion of Outdated Underground Kiosk Transformers Program. This proposed increase will allow NPEI to proactively replace approximately 0.3 km of additional underground cable annually.
A20: Online Workbook Survey - Subdivision Underground Rehabilitation 71 of the subdivisions in NPEI’s service territory were constructed with direct buried cable which refers to a type of construction where cables are laid directly in underground trenches without a protective barrier. While this was typical construction at the time, 40 of these subdivisions were built 40 or more years ago, and the cables are now approaching the end of their recommended life. In this upcoming plan, NPEI is proposing a new program to start preparing to upgrade the service in the subdivisions with the most pressing needs. In order to keep costs down, NPEI is proposing to start rehabilitation of the underground “system” by installing ducts that will eventually carry underground cables over the next five years. The cables would be installed as needed (upon failure) or once all of the old subdivisions have had the duct installed. Completing this work in two phases will not only save costs now, but also help ensure that NPEI will be able to rehabilitate the most subdivisions in the shortest time. Between 2021 and 2025, NPEI is proposing to proactively install ducts in approximately 10 subdivisions. Which subdivisions receive investment first will predominantly be based on age. That said, there is an opportunity to either accelerate or slow down the pace of this new program. | B20: Among Residential customers, a plurality (45%) indicated a preference for the pace that was included in the draft plan, while among Vulnerable Residential customers, a plurality (45%) indicated a preference for a slower pace. Among Small Business Customers, a majority (52%) indicated a preference for the pace that was included in the draft plan.Of the GS>50 kW respondents, 14 of 32 indicated a preference for a slower pace. | C20: In considering the overall customer preferences from each rate class, as well as the more vulnerable Residential customers, NPEI has decided to maintain its proposed plan for Subdivision Underground Rehabilitation.
A21: Online Workbook Survey - Overhead Rebuilds Beyond replacing overhead poles, NPEI has a program that rebuilds the overhead system for entire streets and neighbourhoods. This includes poles, wires, and all other equipment that goes into operating the overhead system. A recent asset health condition assessment identified a total of 60 areas within NPEI’s service territory that require complete overhead rebuilds. Most of this equipment is either beyond its recommended age or deteriorated due to weather and other factors. This infrastructure is in addition to the poles identified in the earlier section. This program is intended to contribute to the “betterment” of the overhead system by; •Improving system performance by installing animal guards and higher capacity transformers to reduce the likelihood of outages, and; •Improving system aesthetics with new and taller poles. On average, each of the projects would replace approximately 30-40 poles, depending on the population density of the area being worked on. NPEI’s draft plan would rebuild 40 out of 60 areas in the 2021 to 2025 period. NPEI must continue to invest in overhead rebuilds, therefore, this is a matter of whether customers would rather pay more during the upcoming period or push some level of investment beyond the next five years. | B21: Among Residential customers, a narrow majority (50%) indicated a preference for the pace that was included in the draft plan, while among Vulnerable Residential customers, a plurality (39%) indicated a preference for the pace that was included in the draft plan. Among Small Business Customers, a plurality (45%) indicated a preference for the pace that was included in the draft plan. Of the GS>50 kW respondents, 19 of 32 indicated a preference for the pace that was included in the draft plan. | C21: Due to the agreement of overall customer preferences for the pace that was included in the draft plan, NPEI has decided to maintain its proposed plan for Overhead Rebuilds.
A22: Online Workbook Survey - Grid Modernization New technology has changed the way that NPEI can manage and monitor the distribution system. Supervisory Control and Data Acquisition (SCADA) systems allow NPEI staff the ability to remotely monitor and trace system faults and re-close switches from a control room rather than sending a repair crew to patrol the lines. These systems are particularly effective where there are larger distances between customers, for instance, in more rural areas of the western region of NPEI’s service territory. This equipment can have significant positive impacts on restoration times when an outage does occur, particularly in instances such as during a severe weather event. On average, since 2014, NPEI has installed approximately two remote devices per year, with focus on more rural, lower density areas. That said, there is an opportunity to install this monitoring and control equipment more quickly or slowly. | B22: Among Residential customers, a plurality (44%) indicated a preference for the pace that was included in the draft plan, and among Vulnerable Residential customers, a plurality (38%) also indicated a preference for the pace that was included in the draft plan. Among Small Business Customers, an equal number (41%) indicated a preference for the pace that was included in the draft plan as those who indicated a preference for an accelerated pace. Of the GS>50 kW respondents, 14 of 32 indicated a preference for the pace that was included in the draft plan and 12 of 32 indicated a preference for an accelerated pace. | C22: Due to the agreement of overall customer preferences for the pace that was included in the draft plan, NPEI has decided to maintain its proposed plan for Grid Modernization.
A23: Online Workbook Survey - Commercial GS>50 kW Rate Design Currently, distribution rates for the GS>50 kW rate class are split on a 15% fixed and 85% variable rate basis. In order to improve cost certainty, some customers have expressed a desire to move to a more fixed distribution rate. In its current draft plan, NPEI is proposing a fixed portion of the distribution charge of 21.5% and a variable charge of 78.5%. Not only does this create more cost certainty for customers, but it also provides revenue certainty for NPEI to operate and maintain the distribution system. For customers who have predictable electricity usage habits, this change likely wouldn’t have much of an impact, while creating more certainty for those whose electricity usage fluctuates more regularly. | B23: NPEI asked its GS > 50 kW customers if they would prefer the: • Status Quo - 15% fixed; 85% variable • Included in Draft Plan – 21% fixed; 79% variable • Higher Fixed Distribution Charge – 33% fixed; 66% variable Results of the survey for this question were as follows: • Status Quo – 11 in favour • Included in Draft Plan – 20 in favour • Higher Fixed Distribution Charge – 1 in favour | C23: NPEI is proposing a fixed/variable split of 21.5% fixed and 78.5% variable as calculated in the 2021 Cost Allocation model using the Minimum System with PLCC Adjustment similar to the 2015 Cost of Service rate application and consistent with the results from NPEI’s customer engagement.
A24: Public Safety Survey In 2016 and 2018, NPEI engaged a third party to conduct a bi-annual survey to assess public safety awareness of the risks associated with electricity. NPEI reviews the results of these surveys closely. | B24: NPEI scored an 84% Public Safety Awareness Index score in 2016. This decreased by one per cent in 2018 when NPEI scored an 83%. There were improvements in awareness in some key areas, including: • The importance of calling for an underground locate (56.6% definitely would call in 2016 versus 62.2% definitely would call in 2018) • Impact of touching an overhead power line (92.6% said it was very dangerous in 2016 versus 95.9% said it was very dangerous in 2018) • Proximity to a downed power line (78% said to stay at least 10 meters away in 2016 versus 81.3% said to stay at least 10 meters away in 2018) There were decreases in awareness in a couple of areas, including: • Proximity to an overhead power line (20.7% were aware they needed to remain 3-6 meters away from an overhead power line in 2016 versus 18.6% in 2018) • Danger of tampering with electrical equipment (90.7% said it was very dangerous in 2016 versus 86.7% in 2018) • What to do if a power line falls on your vehicle when you are inside (90% said stay in your car until the hydro could be turned off in 2016 versus 86.9% in 2018) | C24: To improve customer awareness of electrical safety, starting in 2017, NPEI in partnership with other GridSmartCity co-operative members, developed a series of six safety videos featuring Lucky the Squirrel, a squirrel who finds himself getting into trouble because he isn’t aware of the hazards of electricity and what he can do to ensure he stays safe in the future. Lucky helps people learn about the importance of calling for a free underground cable locate before you dig, limits of approach for both overhead and downed power lines, what to do if a power line falls on your car, and the dangers of equipment inside padmount transformers and on a power line. Forty-five utilities and the ESA partnered on the development of the videos, helping to keep costs low and amplifying the messages across Ontario. The videos are used in NPEI’s electrical safety school program, which is delivered at no charge to Grade 5 and 6 students each year in NPEI’s service territory. In 2018, it was a priority for NPEI to improve safety communication efforts. NPEI as a member of the GridSmartCity co-operative, supplemented the standard safety questions with extra questions to discover where the public finds information related to electrical safety and how many actively speak to their children about electrical safety. This revealed that 20.2% of survey respondents had school-aged children and of that 20.2%, only 57.1% claimed to have had conversations with their children about electrical safety. The inclusion of the supplementary questions supplied by the GridSmartCity Communications Committee revealed that 63% of respondents get their electrical safety information online, either from searches (29.9%) or from their local electricity distributor website (33.1%). NPEI used this information to enhance its power outage pages to include links to safety information and the videos.
A25: Customer Transactional Survey As a way to evaluate and ensure quality customer service, NPEI attaches a short, customer satisfaction survey to all email correspondences it has with customers. This survey is a way to collect feedback about the service a customer recently received and to provide them with an opportunity to add additional comments or suggestions. | B25: The survey helps to identify and track trends in customer needs and preferences, and once analyzed, NPEI’s Customer Service department staff review the replies in order to take any action that may be required. Certain comments or concerns are followed up on with the customers if they have chosen to identify themselves or ask to be contacted. NPEI regularly receives positive feedback from this survey. This includes: • Praising specific Customer Service Representatives or Linemen for their work. • The effectiveness of informative communications sent out to customers. • General praise for NPEI as a company and the work being done by staff as a whole. Some of the main concerns NPEI heard about from customers through this survey were: • The NPEI My Account portal is not user-friendly and customers do not enjoy using it with its current look and feel. • The need to make it easier to transition from the e-bill email notification to the website and to view the bill online. • The need for more education for customers in regards to how the bill is calculated and billed, and how electricity is transmitted. • The cost of electricity. | C25: From these concerns, NPEI has undertaken the following to improve Customer Service in these areas: • NPEI launched a new online customer portal on February 10, 2020 called Customer Connect, as an upgrade to the current My Account portal (more information below). • In 2019 NPEI developed a new informational handout to educate customers on the bill breakdown and how prices are determined. Generation, transmission and local distribution are outlined to give customers a better understanding of these costs and who is responsible for each. It also defines the portion of each bill that NPEI retains, and the amount that is distributed to different companies and government agencies. • NPEI’s Communications Coordinator receives an email notification when a Google review is posted. This staff member follows up with the Customer Service department if any follow-up is required. • As part of the 2020 Customer Engagement Plan, NPEI will explore options to create a series of informational and instructional videos to be featured on the NPEI website, social media, and YouTube. The videos will cover topics such as safety, conservation, how to view/pay your bill online, and more.
A26: Updating My Account Online My Account provided customers with online resources to manage their electricity consumption and view usage, view and print current and past bills and view current bill amounts. The portal was launched on the precipice of a postal strike in June 2011 and provided customers with an alternative means to access their account and billing information. In the years since My Account was launched, over 21,000 customers have signed up for the online portal. | B26: Through the Customer Transactional Survey, NPEI has heard from customers over the past few years that My Account had become very outdated and customers wanted an updated, refreshed version of My Account. They wanted the platform to be more user friendly and to have increased functionality. In the Customer Service Transactional Survey, 77 out of the 289 comments received since 2017 were regarding the old My Account service and expressed a desire for an update. | C26: NPEI developed and went live with an updated My Account Portal called Customer Connect in February 2020. Customer Connect is a new and updated online portal that gives customers more ease of use. Improved self-serve functions will allow customers to update and manage their billing and account information without the need to contact or visit the NPEI office. With a new user-friendly interface, customers will be able to keep track of their bills and manage their consumption and usage in a more straightforward and less complicated manner. Customer Connect puts customer security and privacy as a top priority, with end-to-end encryption as well as user authentication and time-outs to ensure that only authorized users obtain access, which means both customer and utility information remain protected and secure. Features of Customer Connect that build upon the existing features of My Account include: • New Service Connection Set Up • Move/Transfer Premises • Pay Now • Request a Service Call • Display Billed Demand and kWh Usage • Enhanced display of bill history and transaction history
A27: Bi-Annual Customer Satisfaction Survey On a bi-annual basis, NPEI engages a third party to survey its customers to assess customer satisfaction with the service NPEI provides and tracks the results year over year to analyze trends and determine where improvement is needed. | B27: NPEI consistently exceeds industry, national and provincial standards in many key areas. In 2019, NPEI conducted their most recent survey with a third party to gauge customer satisfaction. NPEI scored higher than the provincial and national average in all categories: • Customer Satisfaction: Initial 96% • Customer Satisfaction: Post 95% • Communication Score 82% • Overall Satisfaction with the most recent experience 84% • Convenience of Services Score 82% • Customer Experience Performance Rating (CEPr) 88% • Customer Centric Engagement Index (CCEI) 87% • Credibility & Trust Index 88% • UtilityPulse Report Card A | C27: While NPEI is very pleased with these results, we realize that customer expectations are constantly evolving. In order to maintain high scores, NPEI will need to take a proactive approach in improving communications and maintaining service and reliability standards. Website enhancements including mobile optimization, increasing customer self-service options, and improving outage communications are important priorities for NPEI. Customer feedback will continue to be gathered on an ongoing basis through various surveys so that NPEI is able to respond quickly to changing customer preferences. As well, NPEI will continue to maintain and upgrade its existing infrastructure to ensure power outages are resolved quickly and customers continue to experience reliable service.
A28: Community Events As the local hydro provider, NPEI places great importance on being actively involved in the various communities they service. Participating at home shows, Touch a Truck events, and other community activities is a key customer engagement tool in which NPEI is able to meet and engage with customers that may not have had the opportunity to make contact with the office. | B28: During these events, staff are able to communicate with customers about things they may not have previously heard about, such as new services, billing changes, low income support programs, safety awareness and energy-efficiency best practices. The events also provide an opportunity for NPEI to obtain and respond to customer feedback, and report back to the office with ideas for customer service and communication improvements. | C28: NPEI employees receive lots of feedback during community events. If a customer specifically requests a follow-up, NPEI staff will ensure that a staff member reaches out to the customer to make sure they get the information they are looking for. Because these face-to-face interactions are so well received, NPEI is exploring opportunities to participate in more community events in the coming years.
A29: Public Information Nights In 2018 NPEI held a Public Information Night to provide information on the planned capital project to install ducts within the Rolla Woods subdivision. The meeting was coordinated with the City of Niagara Falls, who were also planning roadwork within the same area. NPEI presented the proposed designs and provided a full explanation of the project plans in order to obtain feedback from property owners in attendance. | B29: A total of 27 participants attended. The general feedback received was positive and NPEI encouraged property owners to contact the office with any concerns that may arise throughout the duration of the project. Customers indicated that the format of the event worked well, and they appreciated the opportunity to discuss the project with NPEI staff in person. | C29: As a result of the positive customer feedback regarding the style of this event, NPEI will continue to offer Public Information Nights. The NPEI engineering department is currently working with the Town of Lincoln to coordinate an event in Q2 of 2020 for the Jordan underground rebuild project.
A45: Note: Use "ALT-ENTER" to go to the next line within a cell

Sheet App.2-B_Acctg Instructions
A1: General Instructions to MIFRS Appendices
A2: Types of Schedules to File
A4: The purpose of this tab is to provide general instructions. The specific instructions to each appendix are listed in footnotes of each appendix.
A6: The typical applicant is expected to have made capitalization and depreciation policy changes under CGAAP as permitted by the OEB on January 1, 2012 or mandated by the OEB by January 1, 2013, and adopted IFRS for reporting purposes on January 1, 2015 (transition date January 1, 2014). Most distributors filing for 2020 rates have rebased with these accounting changes reflected in a prior rebasing application. If that is the case, information relating to pre-accounting policy changes is not generally required. Some distributors may have rebased under MIFRS. If that is the case, information related to the accounting standard used prior to IFRS is not generally required. The information to be provided by applicants will depend on when the accounting policy changes were made and when they last rebased. In general, applicants should provide the following information in the appendices:
E9: Reflecting Accounting Policy Changes in Current Application | G9: Reflected Accounting Policy Changes in Prior Application3 | H9: Rebased under MIFRS in Prior Application3
E10: Accounting Policy Changes in 2012 and Adopted IFRS in 2015 | F10: Accounting Policy Changes in 2013 and Adopted IFRS in 2015 | G10: Adopted IFRS in 2015 | H10: IFRS Since 2015
A11: Information to be filed in 2019 CoS Application | B11: 2020 | C11: Test | E11: MIFRS | F11: MIFRS | G11: MIFRS | H11: MIFRS
B12: 2019 | C12: Bridge | E12: MIFRS | F12: MIFRS | G12: MIFRS | H12: MIFRS
B13: 2018 | C13: Historical | E13: MIFRS | F13: MIFRS | G13: MIFRS | H13: MIFRS
B14: 2017 | C14: Historical | E14: MIFRS | F14: MIFRS | G14: MIFRS | H14: MIFRS
B15: 2016 | C15: Historical | E15: MIFRS | F15: MIFRS | G15: MIFRS | H15: MIFRS
B16: 2015 | C16: Historical | E16: MIFRS and Revised CGAAP1 | F16: MIFRS and Revised CGAAP1 | G16: MIFRS and Revised CGAAP1 | H16: N/A
B17: 2014 | C17: Historical | E17: Revised CGAAP | F17: CGAAP and Revised CGAAP2 | G17: N/A | H17: N/A
B18: 2013 | C18: Historical | E18: CGAAP and Revised CGAAP2 | F18: N/A | G18: N/A | H18: N/A
A20: 1) For the transition year (2014), the applicant may file two appendices, one under Revised CGAAP and one under MIFRS, depending on the materiality of impacts. See the specific instructions under each appendix below for further details.
A21: 2) For applicants that are reflecting accounting policy changes for the first time in a rebasing application, the applicant must file two appendices in the year that the applicant implemented changes to its capitalization and depreciation policies (2012 or 2013), one before and one after the policy changes.
A22: 3) Applicants should provide CGAAP and Revised CGAAP schedules (i.e. as indicated in the first two columns of the above table) to support balances in Account 1576 if the account has yet to be disposed of.
A25: Appendix 2-BA - Fixed Asset Schedule
A27: Applicants are to provide Appendix 2-BA in accordance with the years and corresponding accounting standards noted in the above table to provide a year over year continuity in fixed assets.
A28: If this is the first application where the applicant is rebasing under MIFRS, the applicant should file two appendices, one under Revised CGAAP and one under MIFRS for the transition year (2014), if the change between Revised CGAAP and MIFRS is material. If the change from the accounting standards is not material, the applicant may choose to only provide one appendix under MIFRS. However, the applicant must also indicate the fixed asset net book value balance under Revised CGAAP, the total dollar value of the change and explain why it is not material.
A32: The applicant must establish the continuity of historical cost for gross assets and accumulated depreciation by asset class by ensuring that the opening balance in the year agrees to the closing balance in the prior year.
A35: Appendix 2-Cx - Depreciation and Amortization
A37: Applicants are to provide Appendix 2-C in accordance with the years and corresponding accounting standards listed in the above table.
A38: Appendix 2-C is to be used under all of the scenarios presented in the table above. In the appendix, the applicant will need to indicate which scenario applies. The appendix is to be duplicated for each year and for each accounting standard required as per the above table.
A39: Depreciation accounting policy changes were mandated by the OEB by January 1, 2013. In general, no further changes to an applicant's depreciation policy (i.e. assets' service lives) are expected after the OEB mandated changes by January 1, 2013, unless a change is determined to be necessary in accordance with the depreciation review required under IFRS. If the applicant has made any changes to its depreciation policy subsequent to the OEB mandated changes, for the year of the change, applicants must quantify the change in depreciation. If there are significant changes to multiple asset classes, the applicant must complete Appendix 2-C before and after the change. Applicants must also explain the nature of the change, the reason for the change, quantify the impact of the change.
A41: Appendix 2-E - Account 1575, IFRS-CGAAP Transitional PP&E Amounts (2-EA), Account 1576, Accounting Changes Under CGAAP (2-EB, 2-EC) CONTACT OEB STAFF IF TAB REQUIRED
A43: 1) For an applicant that has a balance in Account 1576 to dispose:
A44: · | B44: If an applicant changed capitalization and depreciation policies effective January 1, 2012, the applicant must complete Appendix 2-EB
A45: · | B45: If an applicant changed capitalization and depreciation policies effective January 1, 2013, the applicant must complete Appendix 2-EC
A47: 2) For an applicant that has a balance in Account 1575 to dispose:
A48: · | B48: The applicant must complete 2-EA
A49: If the applicant did not make any further PP&E accounting policy changes beyond the capitalization and depreciation policy changes as mandated by the OEB by January 1, 2013 (i.e. no further changes made on transition to IFRS), the applicant must indicate this and does not need to complete Appendix 2-EA.
A53: Appendix 2-Y - Summary of Impacts to Revenue Requirement from Transition to MIFRS CONTACT OEB STAFF IF TAB REQUIRED
A55: Applicants must complete Appendix 2-Y if this is the first rebasing application under MIFRS. An applicant must provide a summary of the dollar impacts of MIFRS to each component of the revenue requirement (e.g. rate base, operating costs, etc.), including the overall impact on the proposed revenue requirement. Accordingly, the applicant must identify financial differences and resulting revenue requirement impacts arising from the adoption of MIFRS as compared to CGAAP. If the applicant is reflecting the changes in capitalization and depreciation policies for the first time in a rebasing application as well, then a comparison between MIFRS and CGAAP before the change in accounting policies should be completed. If the applicant changed capitalization and depreciation policies and reflected these changes in a prior rebasing application, then a comparison between MIFRS and CGAAP after the change in accounting policies should be completed.

Sheet App.2-BA_Fixed Asset Cont
L1: File Number: | M1: =EBNUMBER -> EB-2020-0040
L2: Exhibit: | M2: 2
L3: Tab: | M3: 1
L4: Schedule: | M4: 1
L5: Page:
L7: Date: | M7: 2020-08-31
A9: Appendix 2-BA
A10: Fixed Asset Continuity Schedule 1
E12: Accounting Standard | F12: MIFRS
E13: Year | F13: 2015
D15: Cost | J15: Accumulated Depreciation
A16: CCA Class 2 | B16: OEB Account 3 | C16: Description 3 | D16: Opening Balance | E16: Additions 4 | F16: Disposals 6 | G16: Closing Balance | I16: Opening Balance | J16: Additions | K16: Disposals 6 | L16: Closing Balance | M16: Net Book Value
B17: 1609 | C17: Capital Contributions Paid | G17: =D17+E17+F17 -> 0 | L17: =I17+J17+K17 -> 0 | M17: =G17+L17 -> 0
A18: 12 | B18: 1611 | C18: Computer Software (Formally known as Account 1925) | D18: 3229308.26 | E18: 183006 | G18: =D18+E18+F18 -> 3412314.26 | I18: -2858895.44 | J18: -199344.1 | L18: =I18+J18+K18 -> -3058239.54 | M18: =G18+L18 -> 354074.72
A19: CEC | B19: 1612 | C19: Land Rights (Formally known as Account 1906) | D19: 1604396.55 | G19: =D19+E19+F19 -> 1604396.55 | I19: -925260.66 | J19: -57098.95 | L19: =I19+J19+K19 -> -982359.61 | M19: =G19+L19 -> 622036.94
A20: N/A | B20: 1805 | C20: Land | D20: 507272.79 | G20: =D20+E20+F20 -> 507272.79 | L20: =I20+J20+K20 -> 0 | M20: =G20+L20 -> 507272.79
A21: 47 | B21: 1808 | C21: Buildings | D21: 111638.13 | G21: =D21+E21+F21 -> 111638.13 | I21: -111638.13 | J21: 0 | L21: =I21+J21+K21 -> -111638.13 | M21: =G21+L21 -> 0
A22: 13 | B22: 1810 | C22: Leasehold Improvements | G22: 0 | L22: 0 | M22: 0
A23: 47 | B23: 1815 | C23: Transformer Station Equipment >50 kV | D23: 6651423.35 | E23: 1380 | G23: 6652803.35 | I23: -1553198.54 | J23: -161713.78 | L23: -1714912.32 | M23: 4937891.03
A24: 47 | B24: 1820 | C24: Distribution Station Equipment <50 kV | D24: 6867625.7 | G24: 6867625.7 | I24: -3060144.37 | J24: -143013.56 | L24: -3203157.93 | M24: 3664467.77
A25: 47 | B25: 1825 | C25: Storage Battery Equipment | G25: 0 | L25: 0 | M25: 0
A26: 47 | B26: 1830 | C26: Poles, Towers & Fixtures | D26: 45208940.44 | E26: 2144405 | G26: 47353345.44 | I26: -25075923.93 | J26: -490600.95 | L26: -25566524.88 | M26: 21786820.56
A27: 47 | B27: 1835 | C27: Overhead Conductors & Devices | D27: 30044276.65 | E27: 2068453 | G27: 32112729.65 | I27: -10922655.56 | J27: -599142.32 | L27: -11521797.88 | M27: 20590931.77
A28: 47 | B28: 1840 | C28: Underground Conduit | D28: 10359257.73 | E28: 781297 | G28: 11140554.73 | I28: -2533445.15 | J28: -188875.58 | L28: -2722320.73 | M28: 8418234
A29: 47 | B29: 1845 | C29: Underground Conductors & Devices | D29: 68835404.6 | E29: 4768414 | G29: 73603818.6 | I29: -40281085.1 | J29: -1336391.55 | L29: -41617476.65 | M29: 31986341.95
A30: 47 | B30: 1850 | C30: Line Transformers | D30: 38491416.02 | E30: 2318687 | F30: -191527.58 | G30: 40618575.44 | I30: -22218278.14 | J30: -774286.81 | K30: 191528 | L30: -22801036.95 | M30: 17817538.49
A31: 47 | B31: 1855 | C31: Services (Overhead & Underground) | D31: 6275832.36 | E31: 1006637 | G31: 7282469.36 | I31: -1545081.82 | J31: -271165.29 | L31: -1816247.11 | M31: 5466222.25
A32: 47 | B32: 1860 | C32: Meters | D32: 3339303.28 | E32: 184577.31 | G32: 3523880.59 | I32: -1203524.6 | J32: -201532.27 | L32: -1405056.87 | M32: 2118823.72
A33: 47 | B33: 1860 | C33: Meters (Smart Meters) | D33: 6201235.22 | E33: 144015.4 | G33: 6345250.62 | I33: -1445169.09 | J33: -419688.25 | L33: -1864857.34 | M33: 4480393.28
A34: 47 | B34: 1875 | C34: Street Lighting and Signal Systems | D34: 21835.21 | G34: 21835.21 | I34: -8019.68 | J34: -873.36 | L34: =I34+J34+K34 -> -8893.04 | M34: =G34+L34 -> 12942.17
A35: N/A | B35: 1905 | C35: Land | D35: 508969.83 | G35: 508969.83 | L35: 0 | M35: 508969.83
A36: 47 | B36: 1908 | C36: Buildings & Fixtures | D36: 16730502.84 | E36: 468660 | G36: 17199162.84 | I36: -2949144.8 | J36: -286695.88 | L36: -3235840.68 | M36: 13963322.16
A37: 13 | B37: 1910 | C37: Leasehold Improvements | D37: 120252.32 | G37: 120252.32 | I37: -120252.32 | J37: 0 | L37: -120252.32 | M37: 0
A38: 8 | B38: 1915 | C38: Office Furniture & Equipment (10 years) | D38: 1670223.59 | E38: 25554 | G38: 1695777.59 | I38: -1033663.51 | J38: -105025.39 | L38: -1138688.9 | M38: 557088.69
A39: 8 | B39: 1915 | C39: Office Furniture & Equipment (5 years) | G39: 0 | L39: 0 | M39: 0
A40: 10 | B40: 1920 | C40: Computer Equipment - Hardware | D40: 1257769.3 | G40: 1257769.3 | I40: =-D40 -> -1257769.3 | L40: -1257769.3 | M40: 0
A41: 45 | B41: 1920 | C41: Computer Equip.-Hardware(Post Mar. 22/04) | D41: 320323.46 | G41: 320323.46 | I41: =-D41 -> -320323.46 | L41: -320323.46 | M41: 0
A42: 50 | B42: 1920 | C42: Computer Equip.-Hardware(Post Mar. 19/07) | D42: 2479012.37 | E42: 248789 | G42: 2727801.37 | I42: -1686626.21 | J42: -285181.28 | L42: -1971807.49 | M42: 755993.88
A43: 10 | B43: 1930 | C43: Transportation Equipment | D43: 8790945.97 | E43: 490774.52 | F43: -503537.58 | G43: 8778182.91 | I43: -4406002.44 | J43: -437228.76 | K43: 503537.52 | L43: -4339693.68 | M43: 4438489.23
A44: 8 | B44: 1935 | C44: Stores Equipment | D44: 268477.88 | E44: 54801 | G44: 323278.88 | I44: -208561.42 | J44: -11078.13 | L44: -219639.55 | M44: 103639.33
A45: 8 | B45: 1940 | C45: Tools, Shop & Garage Equipment | D45: 2015322.46 | E45: 66619 | G45: 2081941.46 | I45: -1611239.09 | J45: -80242.62 | L45: -1691481.71 | M45: 390459.75
A46: 8 | B46: 1945 | C46: Measurement & Testing Equipment | D46: 204006.18 | G46: 204006.18 | I46: -199219.47 | J46: -3239.15 | L46: -202458.62 | M46: 1547.56
A47: 8 | B47: 1950 | C47: Power Operated Equipment | G47: 0 | L47: 0 | M47: 0
A48: 8 | B48: 1955 | C48: Communications Equipment | D48: 1075265.93 | E48: 65663 | G48: 1140928.93 | I48: -211989.41 | J48: -47026.41 | L48: -259015.82 | M48: 881913.11
A49: 8 | B49: 1955 | C49: Communication Equipment (Smart Meters) | G49: 0 | L49: 0 | M49: 0
A50: 8 | B50: 1960 | C50: Miscellaneous Equipment | D50: 72951.31 | G50: 72951.31 | I50: -72702.04 | J50: -249.27 | L50: -72951.31 | M50: 0
A51: 47 | B51: 1970 | C51: Load Management Controls Customer Premises | G51: 0 | L51: 0 | M51: 0
A52: 47 | B52: 1975 | C52: Load Management Controls Utility Premises | G52: 0 | L52: 0 | M52: 0
A53: 47 | B53: 1980 | C53: System Supervisor Equipment | D53: 128960.64 | G53: 128960.64 | I53: -128960.64 | J53: 0 | L53: -128960.64 | M53: 0
A54: 47 | B54: 1985 | C54: Miscellaneous Fixed Assets | G54: 0 | L54: 0 | M54: 0
A55: 47 | B55: 1990 | C55: Other Tangible Property | G55: 0 | L55: 0 | M55: 0
A56: 47 | B56: 1995 | C56: Contributions & Grants | G56: 0 | L56: 0 | M56: 0
A57: 47 | B57: 2440 | C57: Deferred Revenue5 | D57: -22390322.15 | E57: -5664428.34 | G57: -28054750.49 | I57: 6850143.75 | J57: 613263 | L57: =I57+J57+K57 -> 7463406.75 | M57: =G57+L57 -> -20591343.74
G58: 0 | L58: 0 | M58: 0
C59: Sub-Total | D59: =SUM(D17:D58) -> 241001828.2 | E59: =SUM(E17:E58) -> 9357303.89 | F59: =SUM(F17:F58) -> -695065.16 | G59: =SUM(G17:G58) -> 249664067 | I59: =SUM(I17:I58) -> -121098630.6 | J59: =SUM(J17:J58) -> -5486430.66 | K59: =SUM(K17:K58) -> 695065.52 | L59: =SUM(L17:L58) -> -125889995.7 | M59: =SUM(M17:M58) -> 123774071.2
C60: Less Socialized Renewable Energy Generation Investments (input as negative) | G60: =D60+E60+F60 -> 0 | L60: =I60+J60+K60 -> 0 | M60: =G60+L60 -> 0
C61: Less Other Non Rate-Regulated Utility Assets (input as negative) | G61: 0 | L61: =I61+J61+K61 -> 0 | M61: 0
C62: Total PP&E | D62: =SUM(D59:D61) -> 241001828.2 | E62: =SUM(E59:E61) -> 9357303.89 | F62: =SUM(F59:F61) -> -695065.16 | G62: =SUM(G59:G61) -> 249664067 | I62: =SUM(I59:I61) -> -121098630.6 | J62: =SUM(J59:J61) -> -5486430.66 | K62: =SUM(K59:K61) -> 695065.52 | L62: =SUM(L59:L61) -> -125889995.7 | M62: =SUM(M59:M61) -> 123774071.2
C63: Depreciation Expense adj. from gain or loss on the retirement of assets (pool of like assets), if applicable6
C64: Total | J64: =J62+J63 -> -5486430.66
I66: Less: Fully Allocated Depreciation
A67: 10 | C67: Transportation | I67: Transportation
A68: 8 | C68: Stores Equipment | I68: Stores Equipment
A69: 47 | C69: Deferred Revenue | I69: Deferred Revenue | K69: -613263
I70: Net Depreciation | K70: =J64-K67-K68+K69 -> -6099693.66
E72: Accounting Standard | F72: MIFRS
E73: Year | F73: 2016
D75: Cost | J75: Accumulated Depreciation
A76: CCA Class 2 | B76: OEB Account 3 | C76: Description 3 | D76: Opening Balance | E76: Additions 4 | F76: Disposals 6 | G76: Closing Balance | I76: Opening Balance | J76: Additions | K76: Disposals 6 | L76: Closing Balance | M76: Net Book Value
B77: 1609 | C77: Capital Contributions Paid | D77: =G17 -> 0 | G77: =D77+E77+F77 -> 0 | I77: =L17 -> 0 | L77: =I77+J77+K77 -> 0 | M77: =G77+L77 -> 0
A78: 12 | B78: 1611 | C78: Computer Software (Formally known as Account 1925) | D78: 3412314.26 | E78: 342477.02 | G78: =D78+E78+F78 -> 3754791.28 | I78: -3058239.54 | J78: -230225.6 | L78: =I78+J78+K78 -> -3288465.14 | M78: =G78+L78 -> 466326.14
A79: CEC | B79: 1612 | C79: Land Rights (Formally known as Account 1906) | D79: 1604396.55 | G79: =D79+E79+F79 -> 1604396.55 | I79: -982359.61 | J79: -57098.95 | L79: =I79+J79+K79 -> -1039458.56 | M79: =G79+L79 -> 564937.99
A80: N/A | B80: 1805 | C80: Land | D80: 507272.79 | G80: =D80+E80+F80 -> 507272.79 | I80: 0 | L80: =I80+J80+K80 -> 0 | M80: =G80+L80 -> 507272.79
A81: 47 | B81: 1808 | C81: Buildings | D81: 111638.13 | G81: =D81+E81+F81 -> 111638.13 | I81: -111638.13 | J81: 0 | L81: =I81+J81+K81 -> -111638.13 | M81: =G81+L81 -> 0
A82: 13 | B82: 1810 | C82: Leasehold Improvements | D82: 0 | G82: 0 | I82: 0 | L82: 0 | M82: 0
A83: 47 | B83: 1815 | C83: Transformer Station Equipment >50 kV | D83: 6652803.35 | G83: 6652803.35 | I83: -1714912.32 | J83: -162636.21 | L83: -1877548.53 | M83: 4775254.82
A84: 47 | B84: 1820 | C84: Distribution Station Equipment <50 kV | D84: 6867625.7 | G84: 6867625.7 | I84: -3203157.93 | J84: -143013.61 | L84: -3346171.54 | M84: 3521454.16
A85: 47 | B85: 1825 | C85: Storage Battery Equipment | D85: 0 | G85: 0 | I85: 0 | L85: 0 | M85: 0
A86: 47 | B86: 1830 | C86: Poles, Towers & Fixtures | D86: 47353345.44 | E86: 2661775.67 | G86: 50015121.11 | I86: -25566524.88 | J86: -538488.79 | L86: -26105013.67 | M86: 23910107.44
A87: 47 | B87: 1835 | C87: Overhead Conductors & Devices | D87: 32112729.65 | E87: 2462571.62 | G87: 34575301.27 | I87: -11521797.88 | J87: -617036.85 | L87: -12138834.73 | M87: 22436466.54
A88: 47 | B88: 1840 | C88: Underground Conduit | D88: 11140554.73 | E88: 1197894.27 | G88: 12338449 | I88: -2722320.73 | J88: -208667.41 | L88: -2930988.14 | M88: 9407460.86
A89: 47 | B89: 1845 | C89: Underground Conductors & Devices | D89: 73603818.6 | E89: 3808930.12 | G89: 77412748.72 | I89: -41617476.65 | J89: -1451210.64 | L89: -43068687.29 | M89: 34344061.43
A90: 47 | B90: 1850 | C90: Line Transformers | D90: 40618575.44 | E90: 1710385.74 | F90: -202611 | G90: 42126350.18 | I90: -22801036.95 | J90: -837061.97 | K90: 202611 | L90: -23435487.92 | M90: 18690862.26
A91: 47 | B91: 1855 | C91: Services (Overhead & Underground) | D91: 7282469.36 | E91: 1182855 | G91: 8465324.36 | I91: -1816247.11 | J91: -314955.13 | L91: -2131202.24 | M91: 6334122.12
A92: 47 | B92: 1860 | C92: Meters | D92: 3523880.59 | E92: 557577.97 | F92: -32044.98 | G92: 4049413.58 | I92: -1405056.87 | J92: -215221.8 | K92: 24609.82 | L92: -1595668.85 | M92: 2453744.73
A93: 47 | B93: 1860 | C93: Meters (Smart Meters) | D93: 6345250.62 | E93: -35971.25 | G93: 6309279.37 | I93: -1864857.34 | J93: -429775.55 | L93: -2294632.89 | M93: 4014646.48
A94: 47 | B94: 1875 | C94: Street Lighting and Signal Systems | D94: 21835.21 | G94: 21835.21 | I94: -8893.04 | J94: -873.44 | L94: =I94+J94+K94 -> -9766.48 | M94: =G94+L94 -> 12068.73
A95: N/A | B95: 1905 | C95: Land | D95: 508969.83 | G95: 508969.83 | I95: 0 | L95: 0 | M95: 508969.83
A96: 47 | B96: 1908 | C96: Buildings & Fixtures | D96: 17199162.84 | E96: 52753 | G96: 17251915.84 | I96: -3235840.68 | J96: -291199.97 | L96: -3527040.65 | M96: 13724875.19
A97: 13 | B97: 1910 | C97: Leasehold Improvements | D97: 120252.32 | G97: 120252.32 | I97: -120252.32 | J97: 0 | L97: -120252.32 | M97: 0
A98: 8 | B98: 1915 | C98: Office Furniture & Equipment (10 years) | D98: 1695777.59 | E98: 28030.58 | G98: 1723808.17 | I98: -1138688.9 | J98: -100717.78 | L98: -1239406.68 | M98: 484401.49
A99: 8 | B99: 1915 | C99: Office Furniture & Equipment (5 years) | D99: 0 | G99: 0 | I99: 0 | L99: 0 | M99: 0
A100: 10 | B100: 1920 | C100: Computer Equipment - Hardware | D100: 1257769.3 | G100: 1257769.3 | I100: -1257769.3 | L100: -1257769.3 | M100: 0
A101: 45 | B101: 1920 | C101: Computer Equip.-Hardware(Post Mar. 22/04) | D101: 320323.46 | G101: 320323.46 | I101: -320323.46 | L101: -320323.46 | M101: 0
A102: 50 | B102: 1920 | C102: Computer Equip.-Hardware(Post Mar. 19/07) | D102: 2727801.37 | E102: 241216.89 | G102: 2969018.26 | I102: -1971807.49 | J102: -288959.79 | L102: -2260767.28 | M102: 708250.98
A103: 10 | B103: 1930 | C103: Transportation Equipment | D103: 8778182.91 | E103: 792445.48 | F103: -496426.68 | G103: 9074201.71 | I103: -4339693.68 | J103: -429571.61 | K103: 496426.68 | L103: -4272838.61 | M103: 4801363.1
A104: 8 | B104: 1935 | C104: Stores Equipment | D104: 323278.88 | G104: 323278.88 | I104: -219639.55 | J104: -14110.8 | L104: -233750.35 | M104: 89528.53
A105: 8 | B105: 1940 | C105: Tools, Shop & Garage Equipment | D105: 2081941.46 | E105: 121499.95 | F105: -2778.29 | G105: 2200663.12 | I105: -1691481.71 | J105: -73243.68 | K105: 1828.91 | L105: -1762896.48 | M105: 437766.64
A106: 8 | B106: 1945 | C106: Measurement & Testing Equipment | D106: 204006.18 | G106: 204006.18 | I106: -202458.62 | J106: -1109.98 | L106: -203568.6 | M106: 437.58
A107: 8 | B107: 1950 | C107: Power Operated Equipment | D107: 0 | G107: 0 | I107: 0 | L107: 0 | M107: 0
A108: 8 | B108: 1955 | C108: Communications Equipment | D108: 1140928.93 | E108: 301989.68 | G108: 1442918.61 | I108: -259015.82 | J108: -57205.38 | L108: -316221.2 | M108: 1126697.41
A109: 8 | B109: 1955 | C109: Communication Equipment (Smart Meters) | D109: 0 | G109: 0 | I109: 0 | L109: 0 | M109: 0
A110: 8 | B110: 1960 | C110: Miscellaneous Equipment | D110: 72951.31 | G110: 72951.31 | I110: -72951.31 | J110: 0 | L110: -72951.31 | M110: 0
A111: 47 | B111: 1970 | C111: Load Management Controls Customer Premises | D111: 0 | G111: 0 | I111: 0 | L111: 0 | M111: 0
A112: 47 | B112: 1975 | C112: Load Management Controls Utility Premises | D112: 0 | G112: 0 | I112: 0 | L112: 0 | M112: 0
A113: 47 | B113: 1980 | C113: System Supervisor Equipment | D113: 128960.64 | G113: 128960.64 | I113: -128960.64 | J113: 0 | L113: -128960.64 | M113: 0
A114: 47 | B114: 1985 | C114: Miscellaneous Fixed Assets | D114: 0 | G114: 0 | I114: 0 | L114: 0 | M114: 0
A115: 47 | B115: 1990 | C115: Other Tangible Property | D115: 0 | G115: 0 | I115: 0 | L115: 0 | M115: 0
A116: 47 | B116: 1995 | C116: Contributions & Grants | D116: 0 | G116: 0 | I116: 0 | L116: 0 | M116: 0
A117: 47 | B117: 2440 | C117: Deferred Revenue5 | D117: -28054750.49 | E117: -4031450.87 | G117: -32086201.36 | I117: 7463406.75 | J117: 738438.14 | L117: =I117+J117+K117 -> 8201844.89 | M117: -23884356.47
G118: 0 | I118: 0 | L118: 0 | M118: 0
C119: Sub-Total | D119: =SUM(D77:D118) -> 249664067 | E119: =SUM(E77:E118) -> 11394980.87 | F119: =SUM(F77:F118) -> -733860.95 | G119: =SUM(G77:G118) -> 260325186.9 | I119: =SUM(I77:I118) -> -125889995.7 | J119: =SUM(J77:J118) -> -5723946.8 | K119: =SUM(K77:K118) -> 725476.41 | L119: =SUM(L77:L118) -> -130888466.1 | M119: =SUM(M77:M118) -> 129436720.8
C120: Less Socialized Renewable Energy Generation Investments (input as negative) | G120: =D120+E120+F120 -> 0 | L120: =I120+J120+K120 -> 0 | M120: =G120+L120 -> 0
C121: Less Other Non Rate-Regulated Utility Assets (input as negative) | G121: =D121+E121+F121 -> 0 | L121: =I121+J121+K121 -> 0 | M121: =G121+L121 -> 0
C122: Total PP&E | D122: =SUM(D119:D121) -> 249664067 | E122: =SUM(E119:E121) -> 11394980.87 | F122: =SUM(F119:F121) -> -733860.95 | G122: =SUM(G119:G121) -> 260325186.9 | I122: =SUM(I119:I121) -> -125889995.7 | J122: =SUM(J119:J121) -> -5723946.8 | K122: =SUM(K119:K121) -> 725476.41 | L122: =SUM(L119:L121) -> -130888466.1 | M122: =SUM(M119:M121) -> 129436720.8
C123: Depreciation Expense adj. from gain or loss on the retirement of assets (pool of like assets), if applicable6
C124: Total | J124: =J122+J123 -> -5723946.8
I126: Less: Fully Allocated Depreciation
A127: 10 | C127: Transportation | I127: Transportation
A128: 8 | C128: Stores Equipment | I128: Stores Equipment
A129: 47 | C129: Deferred Revenue | I129: Deferred Revenue | K129: -738438.14
I130: Net Depreciation | K130: =J124-K127-K128+K129 -> -6462384.94
E132: Accounting Standard | F132: MIFRS
E133: Year | F133: 2017
D135: Cost | J135: Accumulated Depreciation
A136: CCA Class 2 | B136: OEB Account 3 | C136: Description 3 | D136: Opening Balance | E136: Additions 4 | F136: Disposals 6 | G136: Closing Balance | I136: Opening Balance | J136: Additions | K136: Disposals 6 | L136: Closing Balance | M136: Net Book Value
B137: 1609 | C137: Capital Contributions Paid | D137: =G77 -> 0 | G137: =D137+E137+F137 -> 0 | I137: =L77 -> 0 | L137: =I137+J137+K137 -> 0 | M137: =G137+L137 -> 0
A138: 12 | B138: 1611 | C138: Computer Software (Formally known as Account 1925) | D138: 3754791.28 | E138: 710895.69 | G138: =D138+E138+F138 -> 4465686.97 | I138: -3288465.14 | J138: -299691.56 | L138: =I138+J138+K138 -> -3588156.7 | M138: =G138+L138 -> 877530.27
A139: CEC | B139: 1612 | C139: Land Rights (Formally known as Account 1906) | D139: 1604396.55 | G139: =D139+E139+F139 -> 1604396.55 | I139: -1039458.56 | J139: -57098.95 | L139: =I139+J139+K139 -> -1096557.51 | M139: =G139+L139 -> 507839.04
A140: N/A | B140: 1805 | C140: Land | D140: 507272.79 | G140: =D140+E140+F140 -> 507272.79 | I140: 0 | L140: =I140+J140+K140 -> 0 | M140: =G140+L140 -> 507272.79
A141: 47 | B141: 1808 | C141: Buildings | D141: 111638.13 | G141: =D141+E141+F141 -> 111638.13 | I141: -111638.13 | J141: 0 | L141: =I141+J141+K141 -> -111638.13 | M141: =G141+L141 -> 0
A142: 13 | B142: 1810 | C142: Leasehold Improvements | D142: 0 | G142: 0 | I142: 0 | L142: 0 | M142: 0
A143: 47 | B143: 1815 | C143: Transformer Station Equipment >50 kV | D143: 6652803.35 | E143: 56952.25 | G143: 6709755.6 | I143: -1877548.53 | J143: -164060.15 | L143: -2041608.68 | M143: 4668146.92
A144: 47 | B144: 1820 | C144: Distribution Station Equipment <50 kV | D144: 6867625.7 | E144: 237779.78 | G144: 7105405.48 | I144: -3346171.54 | J144: -145655.65 | L144: -3491827.19 | M144: 3613578.29
A145: 47 | B145: 1825 | C145: Storage Battery Equipment | D145: 0 | G145: 0 | I145: 0 | L145: 0 | M145: 0
A146: 47 | B146: 1830 | C146: Poles, Towers & Fixtures | D146: 50015121.11 | E146: 2255688.02 | F146: -89272 | G146: 52181537.13 | I146: -26105013.67 | J146: -587412.95 | K146: 53099 | L146: -26639327.62 | M146: 25542209.51
A147: 47 | B147: 1835 | C147: Overhead Conductors & Devices | D147: 34575301.27 | E147: 2148697.14 | F147: -29733 | G147: 36694265.41 | I147: -12138834.73 | J147: -643862.91 | K147: 14866 | L147: -12767831.64 | M147: 23926433.77
A148: 47 | B148: 1840 | C148: Underground Conduit | D148: 12338449 | E148: 875650.38 | G148: 13214099.38 | I148: -2930988.14 | J148: -229402.78 | L148: -3160390.92 | M148: 10053708.46
A149: 47 | B149: 1845 | C149: Underground Conductors & Devices | D149: 77412748.72 | E149: 2817638.59 | G149: 80230387.31 | I149: -43068687.29 | J149: -1538513.99 | L149: -44607201.28 | M149: 35623186.03
A150: 47 | B150: 1850 | C150: Line Transformers | D150: 42126350.18 | E150: 1904619.75 | F150: -392980.2 | G150: 43637989.73 | I150: -23435487.92 | J150: -893251.56 | K150: 331284 | L150: -23997455.48 | M150: 19640534.25
A151: 47 | B151: 1855 | C151: Services (Overhead & Underground) | D151: 8465324.36 | E151: 1340226.28 | F151: -11588 | G151: 9793962.64 | I151: -2131202.24 | J151: -365416.88 | K151: 5794 | L151: -2490825.12 | M151: 7303137.52
A152: 47 | B152: 1860 | C152: Meters | D152: 4049413.58 | E152: 589720.65 | F152: -172476.1 | G152: 4466658.13 | I152: -1595668.85 | J152: -246291.72 | K152: 70228 | L152: -1771732.57 | M152: 2694925.56
A153: 47 | B153: 1860 | C153: Meters (Smart Meters) | D153: 6309279.37 | E153: 349554.66 | F153: 439.87 | G153: 6659273.9 | I153: -2294632.89 | J153: -435062.34 | L153: -2729695.23 | M153: 3929578.67
A154: 47 | B154: 1875 | C154: Street Lighting and Signal Systems | D154: 21835.21 | G154: 21835.21 | I154: -9766.48 | J154: -873.4 | L154: =I154+J154+K154 -> -10639.88 | M154: =G154+L154 -> 11195.33
A155: N/A | B155: 1905 | C155: Land | D155: 508969.83 | G155: 508969.83 | I155: 0 | L155: 0 | M155: 508969.83
A156: 47 | B156: 1908 | C156: Buildings & Fixtures | D156: 17251915.84 | E156: 403007.02 | G156: 17654922.86 | I156: -3527040.65 | J156: -295155.83 | L156: -3822196.48 | M156: 13832726.38
A157: 13 | B157: 1910 | C157: Leasehold Improvements | D157: 120252.32 | G157: 120252.32 | I157: -120252.32 | J157: 0 | L157: -120252.32 | M157: 0
A158: 8 | B158: 1915 | C158: Office Furniture & Equipment (10 years) | D158: 1723808.17 | E158: 23457.23 | F158: -5394.6 | G158: 1741870.8 | I158: -1239406.68 | J158: -96265.68 | K158: 3820.55 | L158: -1331851.81 | M158: 410018.99
A159: 8 | B159: 1915 | C159: Office Furniture & Equipment (5 years) | D159: 0 | G159: 0 | I159: 0 | L159: 0 | M159: 0
A160: 10 | B160: 1920 | C160: Computer Equipment - Hardware | D160: 1257769.3 | G160: 1257769.3 | I160: -1257769.3 | L160: -1257769.3 | M160: 0
A161: 45 | B161: 1920 | C161: Computer Equip.-Hardware(Post Mar. 22/04) | D161: 320323.46 | G161: 320323.46 | I161: -320323.46 | L161: -320323.46 | M161: 0
A162: 50 | B162: 1920 | C162: Computer Equip.-Hardware(Post Mar. 19/07) | D162: 2969018.26 | E162: 332121.28 | G162: 3301139.54 | I162: -2260767.28 | J162: -309624.9 | L162: -2570392.18 | M162: 730747.36
A163: 10 | B163: 1930 | C163: Transportation Equipment | D163: 9074201.71 | E163: 876512.72 | F163: -284324.68 | G163: 9666389.75 | I163: -4272838.61 | J163: -476592.93 | K163: 284324.68 | L163: -4465106.86 | M163: 5201282.89
A164: 8 | B164: 1935 | C164: Stores Equipment | D164: 323278.88 | G164: 323278.88 | I164: -233750.35 | J164: -14110.79 | L164: -247861.14 | M164: 75417.74
A165: 8 | B165: 1940 | C165: Tools, Shop & Garage Equipment | D165: 2200663.12 | E165: 92558.7 | F165: -3544 | G165: 2289677.82 | I165: -1762896.48 | J165: -79353 | K165: 1093.3 | L165: -1841156.18 | M165: 448521.64
A166: 8 | B166: 1945 | C166: Measurement & Testing Equipment | D166: 204006.18 | G166: 204006.18 | I166: -203568.6 | J166: 0 | L166: -203568.6 | M166: 437.58
A167: 8 | B167: 1950 | C167: Power Operated Equipment | D167: 0 | G167: 0 | I167: 0 | L167: 0 | M167: 0
A168: 8 | B168: 1955 | C168: Communications Equipment | D168: 1442918.61 | E168: -82063.64 | G168: 1360854.97 | I168: -316221.2 | J168: -59588.47 | L168: -375809.67 | M168: 985045.3
A169: 8 | B169: 1955 | C169: Communication Equipment (Smart Meters) | D169: 0 | G169: 0 | I169: 0 | L169: 0 | M169: 0
A170: 8 | B170: 1960 | C170: Miscellaneous Equipment | D170: 72951.31 | G170: 72951.31 | I170: -72951.31 | J170: 0 | L170: -72951.31 | M170: 0
A171: 47 | B171: 1970 | C171: Load Management Controls Customer Premises | D171: 0 | G171: 0 | I171: 0 | L171: 0 | M171: 0
A172: 47 | B172: 1975 | C172: Load Management Controls Utility Premises | D172: 0 | G172: 0 | I172: 0 | L172: 0 | M172: 0
A173: 47 | B173: 1980 | C173: System Supervisor Equipment | D173: 128960.64 | G173: 128960.64 | I173: -128960.64 | J173: 0 | L173: -128960.64 | M173: 0
A174: 47 | B174: 1985 | C174: Miscellaneous Fixed Assets | D174: 0 | G174: 0 | I174: 0 | L174: 0 | M174: 0
A175: 47 | B175: 1990 | C175: Other Tangible Property | D175: 0 | G175: 0 | I175: 0 | L175: 0 | M175: 0
A176: 47 | B176: 1995 | C176: Contributions & Grants | D176: 0 | G176: 0 | I176: 0 | L176: 0 | M176: 0
A177: 47 | B177: 2440 | C177: Deferred Revenue5 | D177: -32086201.36 | E177: -2471483.83 | G177: -34557685.19 | I177: 8201844.89 | J177: 824191 | L177: 9026035.89 | M177: -25531649.3
G178: 0 | I178: 0 | L178: 0 | M178: 0
C179: Sub-Total | D179: =SUM(D137:D178) -> 260325186.9 | E179: =SUM(E137:E178) -> 12461532.67 | F179: =SUM(F137:F178) -> -988872.71 | G179: =SUM(G137:G178) -> 271797846.8 | I179: =SUM(I137:I178) -> -130888466.1 | J179: =SUM(J137:J178) -> -6113095.44 | K179: =SUM(K137:K178) -> 764509.53 | L179: =SUM(L137:L178) -> -136237052 | M179: =SUM(M137:M178) -> 135560794.8
C180: Less Socialized Renewable Energy Generation Investments (input as negative) | G180: =D180+E180+F180 -> 0 | L180: =I180+J180+K180 -> 0 | M180: =G180+L180 -> 0
C181: Less Other Non Rate-Regulated Utility Assets (input as negative) | G181: =D181+E181+F181 -> 0 | L181: =I181+J181+K181 -> 0 | M181: =G181+L181 -> 0
C182: Total PP&E | D182: =SUM(D179:D181) -> 260325186.9 | E182: =SUM(E179:E181) -> 12461532.67 | F182: =SUM(F179:F181) -> -988872.71 | G182: =SUM(G179:G181) -> 271797846.8 | I182: =SUM(I179:I181) -> -130888466.1 | J182: =SUM(J179:J181) -> -6113095.44 | K182: =SUM(K179:K181) -> 764509.53 | L182: =SUM(L179:L181) -> -136237052 | M182: =SUM(M179:M181) -> 135560794.8
C183: Depreciation Expense adj. from gain or loss on the retirement of assets (pool of like assets), if applicable6
C184: Total | J184: =J182+J183 -> -6113095.44
I186: Less: Fully Allocated Depreciation
A187: 10 | C187: Transportation | I187: Transportation
A188: 8 | C188: Stores Equipment | I188: Stores Equipment
A189: 47 | C189: Deferred Revenue | I189: Deferred Revenue | K189: -824191
I190: Net Depreciation | K190: =J184-K187-K188+K189 -> -6937286.44
E192: Accounting Standard | F192: MIFRS
E193: Year | F193: 2018
D195: Cost | J195: Accumulated Depreciation
A196: CCA Class 2 | B196: OEB Account 3 | C196: Description 3 | D196: Opening Balance | E196: Additions 4 | F196: Disposals 6 | G196: Closing Balance | I196: Opening Balance | J196: Additions | K196: Disposals 6 | L196: Closing Balance | M196: Net Book Value
B197: 1609 | C197: Capital Contributions Paid | D197: =G137 -> 0 | G197: =D197+E197+F197 -> 0 | I197: =L137 -> 0 | L197: =I197+J197+K197 -> 0 | M197: =G197+L197 -> 0
A198: 12 | B198: 1611 | C198: Computer Software (Formally known as Account 1925) | D198: 4465686.97 | E198: 288890.79 | G198: =D198+E198+F198 -> 4754577.76 | I198: -3588156.7 | J198: -427954.85 | L198: =I198+J198+K198 -> -4016111.55 | M198: =G198+L198 -> 738466.21
A199: CEC | B199: 1612 | C199: Land Rights (Formally known as Account 1906) | D199: 1604396.55 | G199: =D199+E199+F199 -> 1604396.55 | I199: -1096557.51 | J199: -57099.08 | L199: =I199+J199+K199 -> -1153656.59 | M199: =G199+L199 -> 450739.96
A200: N/A | B200: 1805 | C200: Land | D200: 507272.79 | G200: =D200+E200+F200 -> 507272.79 | I200: 0 | L200: =I200+J200+K200 -> 0 | M200: =G200+L200 -> 507272.79
A201: 47 | B201: 1808 | C201: Buildings | D201: 111638.13 | G201: =D201+E201+F201 -> 111638.13 | I201: -111638.13 | L201: =I201+J201+K201 -> -111638.13 | M201: =G201+L201 -> 0
A202: 13 | B202: 1810 | C202: Leasehold Improvements | D202: 0 | G202: 0 | I202: 0 | L202: 0 | M202: 0
A203: 47 | B203: 1815 | C203: Transformer Station Equipment >50 kV | D203: 6709755.6 | E203: 135288.25 | G203: 6845043.85 | I203: -2041608.68 | J203: -167567.32 | L203: -2209176 | M203: 4635867.85
A204: 47 | B204: 1820 | C204: Distribution Station Equipment <50 kV | D204: 7105405.48 | E204: 14520.78 | F204: -150005 | G204: 6969921.26 | I204: -3491827.19 | J204: -143385.8 | K204: 150005 | L204: -3485207.99 | M204: 3484713.27
A205: 47 | B205: 1825 | C205: Storage Battery Equipment | D205: 0 | G205: 0 | I205: 0 | L205: 0 | M205: 0
A206: 47 | B206: 1830 | C206: Poles, Towers & Fixtures | D206: 52181537.13 | E206: 2347019.59 | F206: -362658.63 | G206: 54165898.09 | I206: -26639327.62 | J206: -631854.33 | K206: 326088.37 | L206: -26945093.58 | M206: 27220804.51
A207: 47 | B207: 1835 | C207: Overhead Conductors & Devices | D207: 36694265.41 | E207: 2350168.7 | G207: 39044434.11 | I207: -12767831.64 | J207: -674418.31 | L207: -13442249.95 | M207: 25602184.16
A208: 47 | B208: 1840 | C208: Underground Conduit | D208: 13214099.38 | E208: 1056467.67 | G208: 14270567.05 | I208: -3160390.92 | J208: -248723.96 | L208: -3409114.88 | M208: 10861452.17
A209: 47 | B209: 1845 | C209: Underground Conductors & Devices | D209: 80230387.31 | E209: 2212265.11 | G209: 82442652.42 | I209: -44607201.28 | J209: -1596693.23 | L209: -46203894.51 | M209: 36238757.91
A210: 47 | B210: 1850 | C210: Line Transformers | D210: 43637989.73 | E210: 2042986.01 | F210: -246128.52 | G210: 45434847.22 | I210: -23997455.48 | J210: -950899.47 | K210: 246128.52 | L210: -24702226.43 | M210: 20732620.79
A211: 47 | B211: 1855 | C211: Services (Overhead & Underground) | D211: 9793962.64 | E211: 1316977.76 | G211: 11110940.4 | I211: -2490825.12 | J211: -418078 | L211: -2908903.12 | M211: 8202037.28
A212: 47 | B212: 1860 | C212: Meters | D212: 4466658.13 | E212: 634043.42 | F212: 422526.29 | G212: 5523227.84 | I212: -1771732.57 | J212: -280773.81 | K212: 99853.59 | L212: -1952652.79 | M212: 3570575.05
A213: 47 | B213: 1860 | C213: Meters (Smart Meters) | D213: 6659273.9 | E213: 421436.98 | F213: -573998.2 | G213: 6506712.68 | I213: -2729695.23 | J213: -442003.68 | K213: 4287.18 | L213: -3167411.73 | M213: 3339300.95
... 328 more rows

Sheet Appendix 2-BB Service Life
N1: File Number: | P1: ='LDC Info'!E16 -> EB-2020-0040
N2: Exhibit: | P2: 4
N3: Tab: | P3: 8
N4: Schedule: | P4: 1
N5: Page:
N7: Date: | P7: 2020-08-31
A9: Appendix 2-BB
A10: Service Life Comparison
A11: Table F-1 from Kinetrics Report1
C15: Asset Details | F15: Useful Life | J15: USoA Account Number | K15: USoA Account Description | L15: Current | N15: Proposed | P15: Outside Range of Min, Max TUL?
A16: Parent* | B16: # | C16: Category| Component | Type | F16: MIN UL | G16: TUL | H16: MAX UL | L16: Years | M16: Rate | N16: Years | O16: Rate | P16: Below Min TUL | Q16: Above Max TUL
A17: OH | B17: 1 | C17: Fully Dressed Wood Poles | D17: Overall | F17: 35 | G17: 45 | H17: 75 | J17: 1830 | K17: Fully Dressed Wood Poles | L17: 50 | M17: =IF(ISERROR(1/L17), "", 1/L17) -> 0.02 | N17: 50 | O17: =IF(ISERROR(1/N17), "", 1/N17) -> 0.02 | P17: =IF(ISBLANK(N17),"",IF(N17<F17,"Yes","No")) -> No | Q17: =IF(ISBLANK(N17),"",IF(N17>H17,"Yes","No")) -> No
D18: Cross Arm | E18: Wood | F18: 20 | G18: 40 | H18: 55 | M18: =IF(ISERROR(1/L18), "", 1/L18) ->  | O18: =IF(ISERROR(1/N18), "", 1/N18) ->  | P18: =IF(ISBLANK(N18),"",IF(N18<F18,"Yes","No")) ->  | Q18: =IF(ISBLANK(N18),"",IF(N18>H18,"Yes","No")) -> 
E19: Steel | F19: 30 | G19: 70 | H19: 95
B20: 2 | C20: Fully Dressed Concrete Poles | D20: Overall | F20: 50 | G20: 60 | H20: 80 | J20: 1831 | K20: Fully Dressed Concrete Poles | L20: 60 | M20: 0.01666666667 | N20: 60 | O20: 0.01666666667 | P20: No | Q20: No
D21: Cross Arm | E21: Wood | F21: 20 | G21: 40 | H21: 55
E22: Steel | F22: 30 | G22: 70 | H22: 95
B23: 3 | C23: Fully Dressed Steel Poles | D23: Overall | F23: 60 | G23: 60 | H23: 80 | J23: 1831 | K23: Fully Dressed Steel Poles | L23: 60 | M23: 0.01666666667 | N23: 60 | O23: 0.01666666667 | P23: No | Q23: No
D24: Cross Arm | E24: Wood | F24: 20 | G24: 40 | H24: 55
E25: Steel | F25: 30 | G25: 70 | H25: 95
B26: 4 | C26: OH Line Switch | F26: 30 | G26: 45 | H26: 55
B27: 5 | C27: OH Line Switch Motor | F27: 15 | G27: 25 | H27: 25 | J27: 1836 | K27: OH Switch - complex (Motor & RTU) | L27: 15 | M27: 0.06666666667 | N27: 15 | O27: 0.06666666667 | P27: No | Q27: No
B28: 6 | C28: OH Line Switch RTU | F28: 15 | G28: 20 | H28: 20 | J28: 1836 | K28: OH Switch - complex (Motor & RTU) | L28: 15 | M28: 0.06666666667 | N28: 15 | O28: 0.06666666667 | P28: No | Q28: No
B29: 7 | C29: OH Integral Switches | F29: 35 | G29: 45 | H29: 60
B30: 8 | C30: OH Conductors | F30: 50 | G30: 60 | H30: 75 | J30: 1835 | K30: OH Conductors & non-complex switches | L30: 60 | M30: 0.01666666667 | N30: 60 | O30: 0.01666666667 | P30: No | Q30: No
C31: OH Secondary Conductor | F31: 30 | G31: 40 | H31: 60 | J31: 1837 | K31: OH Secondary Conductor | L31: 30 | M31: =IF(ISERROR(1/L31), "", 1/L31) -> 0.03333333333 | N31: 30 | O31: =IF(ISERROR(1/N31), "", 1/N31) -> 0.03333333333 | P31: =IF(ISBLANK(N31),"",IF(N31<F31,"Yes","No")) -> No | Q31: =IF(ISBLANK(N31),"",IF(N31>H31,"Yes","No")) -> No
B32: 9 | C32: OH Transformers & Voltage Regulators | F32: 30 | G32: 40 | H32: 60 | J32: 1850 | K32: OH Transformer and Voltage Regulator | L32: 40 | M32: 0.025 | N32: 40 | O32: 0.025 | P32: No | Q32: No
B33: 10 | C33: OH Shunt Capacitor Banks | F33: 25 | G33: 30 | H33: 40
B34: 11 | C34: Reclosers | F34: 25 | G34: 40 | H34: 55
A35: TS & MS | B35: 12 | C35: Power Transformers | D35: Overall | F35: 30 | G35: 45 | H35: 60 | J35: 1715 | K35: Power Transformer | L35: 45 | M35: 0.02222222222 | N35: 45 | O35: 0.02222222222 | P35: No | Q35: No
D36: Bushing | F36: 10 | G36: 20 | H36: 30
D37: Tap Changer | F37: 20 | G37: 30 | H37: 60
B38: 12 | C38: MS Station - Power Transformers | D38: Overall | F38: 30 | G38: 45 | H38: 60 | J38: 1820 | K38: Power Transformer | L38: 45 | M38: =IF(ISERROR(1/L38), "", 1/L38) -> 0.02222222222 | N38: 45 | O38: =IF(ISERROR(1/N38), "", 1/N38) -> 0.02222222222 | P38: =IF(ISBLANK(N38),"",IF(N38<F38,"Yes","No")) -> No | Q38: =IF(ISBLANK(N38),"",IF(N38>H38,"Yes","No")) -> No
D39: Bushing | F39: 10 | G39: 20 | H39: 30
D40: Tap Changer | F40: 20 | G40: 30 | H40: 60
B41: 13 | C41: Station Service Transformer | F41: 30 | G41: 45 | H41: 55
B42: 14 | C42: Station Grounding Transformer | F42: 30 | G42: 40 | H42: 40
B43: 15 | C43: Station DC System | D43: Overall | F43: 10 | G43: 20 | H43: 30 | J43: 1716 | K43: Station DC System | L43: 10 | M43: 0.1 | N43: 10 | O43: 0.1 | P43: No | Q43: No
D44: Battery Bank | F44: 10 | G44: 15 | H44: 15
D45: Charger | F45: 20 | G45: 20 | H45: 30
B46: 16 | C46: TS Station Metal Clad Switchgear | D46: Overall | F46: 30 | G46: 40 | H46: 60 | J46: 1717 | K46: TS Station Metal Clad Switchgear | L46: 40 | M46: =IF(ISERROR(1/L46), "", 1/L46) -> 0.025 | N46: 40 | O46: =IF(ISERROR(1/N46), "", 1/N46) -> 0.025 | P46: =IF(ISBLANK(N46),"",IF(N46<F46,"Yes","No")) -> No | Q46: =IF(ISBLANK(N46),"",IF(N46>H46,"Yes","No")) -> No
D47: Removable Breaker | F47: 25 | G47: 40 | H47: 60
B48: 16 | C48: MS Station Metal Clad Switchgear | D48: Overall | F48: 30 | G48: 40 | H48: 60 | J48: 1821 | K48: Station Metal Clad Switchgear | L48: 30 | M48: 0.03333333333 | N48: 30 | O48: 0.03333333333 | P48: No | Q48: No
D49: Removable Breaker | F49: 25 | G49: 40 | H49: 60
B50: 17 | C50: TS Station Independent Breakers | F50: 35 | G50: 45 | H50: 65 | J50: 1718 | K50: Station Independent Breakers | L50: 45 | M50: =IF(ISERROR(1/L50), "", 1/L50) -> 0.02222222222 | N50: 45 | O50: =IF(ISERROR(1/N50), "", 1/N50) -> 0.02222222222 | P50: =IF(ISBLANK(N50),"",IF(N50<F50,"Yes","No")) -> No | Q50: =IF(ISBLANK(N50),"",IF(N50>H50,"Yes","No")) -> No
B51: 17 | C51: MS Station Independent Breakers | F51: 35 | G51: 45 | H51: 65 | J51: 1718 | K51: Station Independent Breakers | L51: 45 | M51: 0.02222222222 | N51: 45 | O51: 0.02222222222 | P51: No | Q51: No
B52: 18 | C52: Station Switch | F52: 30 | G52: 50 | H52: 60
B53: 19 | C53: Electromechanical Relays | F53: 25 | G53: 35 | H53: 50
B54: 20 | C54: Solid State Relays | F54: 10 | G54: 30 | H54: 45 | J54: 1719 | K54: Protection System | L54: 20 | M54: 0.05 | N54: 20 | O54: 0.05 | P54: No | Q54: No
B55: 21 | C55: Digital & Numeric Relays | F55: 15 | G55: 20 | H55: 20 | J55: 1719 | K55: Protection System | L55: 20 | M55: 0.05 | N55: 20 | O55: 0.05 | P55: No | Q55: No
B56: 22 | C56: Rigid Busbars | F56: 30 | G56: 55 | H56: 60
B57: 23 | C57: Steel Structure | F57: 35 | G57: 50 | H57: 90
A58: UG | B58: 24 | C58: Primary Paper Insulated Lead Covered (PILC) Cables | F58: 60 | G58: 65 | H58: 75
B59: 25 | C59: Primary Ethylene-Propylene Rubber (EPR) Cables | F59: 20 | G59: 25 | H59: 25
B60: 26 | C60: Primary Non-Tree Retardant (TR) Cross Linked Polyethylene (XLPE) Cables Direct Buried | F60: 20 | G60: 25 | H60: 30
B61: 27 | C61: Primary Non-TR XLPE Cables in Duct | F61: 20 | G61: 25 | H61: 30
B62: 29 | C62: Primary TR XLPE Cables in Duct | F62: 35 | G62: 40 | H62: 55 | J62: 1845 | K62: Primary TR XLPE Cables in Duct | L62: 35 | M62: =IF(ISERROR(1/L62), "", 1/L62) -> 0.02857142857 | N62: 35 | O62: =IF(ISERROR(1/N62), "", 1/N62) -> 0.02857142857 | P62: =IF(ISBLANK(N62),"",IF(N62<F62,"Yes","No")) -> No | Q62: =IF(ISBLANK(N62),"",IF(N62>H62,"Yes","No")) -> No
B63: 30 | C63: Secondary PILC Cables | F63: 70 | G63: 75 | H63: 80
B64: 31 | C64: Secondary Cables Direct Buried | F64: 25 | G64: 35 | H64: 40
B65: 32 | C65: Secondary Cables in Duct | F65: 35 | G65: 40 | H65: 60
B66: 33 | C66: Network Tranformers | D66: Overall | F66: 20 | G66: 35 | H66: 50
D67: Protector | F67: 20 | G67: 35 | H67: 40
B68: 34 | C68: Pad-Mounted Transformers | F68: 25 | G68: 40 | H68: 45 | J68: 1853 | K68: Pad-Mounted Transformers and Mini-Pads | L68: 30 | M68: 0.03333333333 | N68: 30 | O68: 0.03333333333 | P68: No | Q68: No
B69: 35 | C69: Submersible/Vault Transformers | F69: 25 | G69: 35 | H69: 45
B70: 36 | C70: UG Foundation | F70: 35 | G70: 55 | H70: 70 | J70: 1840 | K70: Ducts/Concrete Encased Duct Banks/Foundations | L70: 50 | M70: 0.02 | N70: 50 | O70: 0.02 | P70: No | Q70: No
B71: 37 | C71: UG Vaults | D71: Overall | F71: 40 | G71: 60 | H71: 80
D72: Roof | F72: 20 | G72: 30 | H72: 45
B73: 38 | C73: UG Vault Switches | F73: 20 | G73: 35 | H73: 50 | J73: 1846 | K73: UG Vault Switches & Pad-Mounted Switchgear | L73: 30 | M73: 0.03333333333 | N73: 30 | O73: 0.03333333333 | P73: No | Q73: No
B74: 39 | C74: Pad-Mounted Switchgear | F74: 20 | G74: 30 | H74: 45 | J74: 1846 | K74: UG Vault Switches & Pad-Mounted Switchgear | L74: 30 | M74: 0.03333333333 | N74: 30 | O74: 0.03333333333 | P74: No | Q74: No
B75: 40 | C75: Ducts | F75: 30 | G75: 50 | H75: 85 | J75: 1840 | K75: Ducts/Concrete Encased Duct Banks/Foundations | L75: 50 | M75: 0.02 | N75: 50 | O75: 0.02 | P75: No | Q75: No
B76: 41 | C76: Concrete Encased Duct Banks | F76: 35 | G76: 55 | H76: 80 | J76: 1840 | K76: Ducts/Concrete Encased Duct Banks/Foundations | L76: 50 | M76: 0.02 | N76: 50 | O76: 0.02 | P76: No | Q76: No
B77: 42 | C77: Cable Chambers | F77: 50 | G77: 60 | H77: 80 | J77: 1840 | K77: Ducts/Concrete Encased Duct Banks/Foundations | L77: 50 | M77: 0.02 | N77: 50 | O77: 0.02 | P77: No | Q77: No
A78: S | B78: 43 | C78: Remote SCADA | F78: 15 | G78: 20 | H78: 30 | J78: 1955 | K78: Remote SCADA/ Wi-Max | L78: 20 | M78: 0.05 | N78: 20 | O78: 0.05 | P78: No | Q78: No
A81: Table F-2 from Kinetrics Report1
C83: Asset Details | F83: Useful Life Range | J83: USoA Account Number | K83: USoA Account Description | L83: Current | N83: Proposed | P83: Outside Range of Min, Max TUL?
B84: # | C84: Category| Component | Type | L84: Years | M84: Rate | N84: Years | O84: Rate | P84: Below Min Range | Q84: Above Max Range
B85: 1 | C85: Office Equipment | F85: 5 | G85: 15 | J85: 1915 | K85: Office Equipment | L85: 10 | M85: =IF(ISERROR(1/L85), "", 1/L85) -> 0.1 | N85: 10 | O85: =IF(ISERROR(1/N85), "", 1/N85) -> 0.1 | P85: =IF(ISBLANK(N85),"",IF(N85<F85,"Yes","No")) -> No | Q85: =IF(ISBLANK(N85),"",IF(N85>G85,"Yes","No")) -> No
B86: 2 | C86: Vehicles | D86: Trucks & Buckets | F86: 5 | G86: 15 | J86: 1932 | K86: Trucks & Buckets | L86: 15 | M86: =IF(ISERROR(1/L86), "", 1/L86) -> 0.06666666667 | N86: 15 | O86: =IF(ISERROR(1/N86), "", 1/N86) -> 0.06666666667 | P86: =IF(ISBLANK(N86),"",IF(N86<F86,"Yes","No")) -> No | Q86: =IF(ISBLANK(N86),"",IF(N86>G86,"Yes","No")) -> No
D87: Trailers | F87: 5 | G87: 20 | J87: 1933 | K87: Trailers | L87: 20 | M87: 0.05 | N87: 20 | O87: 0.05 | P87: No | Q87: No
D88: Vans | F88: 5 | G88: 10 | J88: 1931 | K88: Vans / Cars | L88: 8 | M88: 0.125 | N88: 8 | O88: 0.125 | P88: No | Q88: No
B89: 3 | C89: Administrative Buildings | F89: 50 | G89: 75 | J89: 1908 | K89: Admin Buildings | L89: 60 | M89: 0.01666666667 | N89: 60 | O89: 0.01666666667 | P89: No | Q89: No
B90: 4 | C90: Leasehold Improvements | F90: Lease dependent | P90: =IF(ISBLANK(N90),"",IF(N90<F90,"Yes","No")) ->  | Q90: =IF(ISBLANK(N90),"",IF(N90>G90,"Yes","No")) -> 
B91: 5 | C91: Station Buildings | D91: Station Buildings | F91: 50 | G91: 75 | J91: 1708 | K91: Station Building | L91: 50 | M91: 0.02 | N91: 50 | O91: 0.02 | P91: No | Q91: No
D92: Parking | F92: 25 | G92: 30
D93: Fence | F93: 25 | G93: 60
D94: Roof | F94: 20 | G94: 30
B95: 6 | C95: Computer Equipment | D95: Hardware | F95: 3 | G95: 5 | J95: 1920 | K95: Hardware | L95: 5 | M95: 0.2 | N95: 5 | O95: 0.2 | P95: No | Q95: No
D96: Software | F96: 2 | G96: 5 | J96: 1611 | K96: Software | L96: 3 | M96: 0.3333333333 | N96: 3 | O96: 0.3333333333 | P96: No | Q96: No
B97: 7 | C97: Equipment | D97: Power Operated | F97: 5 | G97: 10
D98: Stores | F98: 5 | G98: 10 | J98: 1935 | K98: Stores | L98: 10 | M98: 0.1 | N98: 10 | O98: 0.1 | P98: No | Q98: No
D99: Tools, Shop, Garage Equipment | F99: 5 | G99: 10 | J99: 1940 | K99: Tools | L99: 10 | M99: 0.1 | N99: 10 | O99: 0.1 | P99: No | Q99: No
D100: Measurement & Testing Equipment | F100: 5 | G100: 10 | J100: 1945 | K100: Measurement & Testing | L100: 5 | M100: 0.2 | N100: 5 | O100: 0.2 | P100: No | Q100: No
B101: 8 | C101: Communication | D101: Towers | F101: 60 | G101: 70
D102: Wireless | F102: 2 | G102: 10
B103: 9 | C103: Residential Energy Meters | F103: 25 | G103: 35
B104: 10 | C104: Industrial/Commercial Energy Meters | F104: 25 | G104: 35
B105: 11 | C105: Wholesale Energy Meters | F105: 15 | G105: 30 | J105: 1860 | K105: Meters - Non-Smart Meters | L105: 20 | M105: 0.05 | N105: 20 | O105: 0.05 | P105: No | Q105: No
B106: 12 | C106: Current & Potential Transformer (CT & PT) | F106: 35 | G106: 50
B107: 13 | C107: Smart Meters | F107: 5 | G107: 15 | J107: 1861 | K107: Smart Meters | L107: 15 | M107: 0.06666666667 | N107: 15 | O107: 0.06666666667 | P107: No | Q107: No
B108: 14 | C108: Repeaters - Smart Metering | F108: 10 | G108: 15
B109: 15 | C109: Data Collectors - Smart Metering | F109: 15 | G109: 20
A112: * TS & MS = Transformer and Municipal Stations UG = Underground Systems S = Monitoring and Control Systems
A114: Note 1: | B114: Tables F-1 and F-2 above are to be used as a reference in order to complete columns J, K, L and N.
B115: See pages 17-19 of Kinetrics Report

Sheet App.2-C_DepExp
A9: Appendix 2-C | Y9: CGAAP
A10: Depreciation and Amortization Expense | Y10: Revised CGAAP
Y11: MIFRS
A12: This appendix is to be completed in conjunction with the accounting instructions in Appendix 2-B
A14: Scenario that applies | C14: Applicable Years and Accounting Standard | R14: Year Reflected in Schedule Below | S14: Accounting Standard Reflected in Schedule Below | Y14: 2012
A15: Rebasing for the first time with depreciation policy changes made in 2012. | C15: ="This appendix must be duplicated and completed for the years 2012 to " & TestYear & ". The appendix for 2012 is to be completed under CGAAP (prior to changes in depreciation policies)." &" The appendix for 2012 to 2014 must be completed under Revised CGAAP (after changes in depreciation policies). The appendix for 2014 to " & TestYear & " is to be completed under MIFRS (2014 if changes to MIFRS are material)." -> This appendix must be duplicated and completed for the years 2012 to 2021. The appendix for 2012 is to be completed under CGAAP (prior to changes in depreciation policies). The appendix for 2012 to 2014 must be completed under Revised CGAAP (after changes in depreciation policies). The appendix for 2014 to 2021 is to be completed under MIFRS (2014 if changes to MIFRS are material). | Y15: 2013
A16: Rebasing for the first time with depreciation policy changes made in 2013. | C16: ="This appendix must be duplicated and completed for the years 2013 to " & TestYear & ". The appendix for 2013 is to be completed under CGAAP (prior to changes in depreciation policies)."&" The appendix for 2013 to 2014 must be completed under Revised CGAAP (after changes in depreciation policies). The appendix for 2014 to " & TestYear & " is to be completed under MIFRS (2014 if changes to MIFRS are material)." -> This appendix must be duplicated and completed for the years 2013 to 2021. The appendix for 2013 is to be completed under CGAAP (prior to changes in depreciation policies). The appendix for 2013 to 2014 must be completed under Revised CGAAP (after changes in depreciation policies). The appendix for 2014 to 2021 is to be completed under MIFRS (2014 if changes to MIFRS are material). | Y16: 2014
A17: Already rebased with depreciation policy changes in a prior rate application and rebasing MIFRS for the first time. | C17: ="This appendix must be completed for 2014 to " & TestYear & ". The appendix for 2014 is to be completed under Revised CGAAP (after changes in depreciation policies)."&" The appendix for 2014 to " & TestYear & " is to be completed under MIFRS (2014 if changes to MIFRS are material)." -> This appendix must be completed for 2014 to 2021. The appendix for 2014 is to be completed under Revised CGAAP (after changes in depreciation policies). The appendix for 2014 to 2021 is to be completed under MIFRS (2014 if changes to MIFRS are material). | Y17: 2015
A18: Already rebased under MIFRS in a prior rate application | C18: ="This appendix must be completed under MIFRS for each year for the earlier of: 1) all historical years back to its last rebasing; or 2) at least three years of historical actuals, in addition to Bridge Year and Test Year forecasts." -> This appendix must be completed under MIFRS for each year for the earlier of: 1) all historical years back to its last rebasing; or 2) at least three years of historical actuals, in addition to Bridge Year and Test Year forecasts. | R18: 2015 | S18: MIFRS | Y18: 2016
Y19: 2017
A20: 2015 | C20: Book Values | J20: Service Lives | N20: Depreciation Expense | Y20: 2018
A21: Account | B21: Description | C21: Opening Net Book Value of Existing Assets as at Date of Policy Change (Jan. 1) 1 | D21: Less Fully Depreciated 7 | E21: Net Amount of Existing Assets Before Policy Change to be Depreciated | F21: Opening Gross Book Value of Assets Acquired After Policy Change 2 | G21: Less Fully Depreciated 8 | H21: Net Amount of Assets Acquired After Policy Change to be Depreciated | I21: Current Year Additions | J21: Average Remaining Life of Assets Existing Before Policy Change 3 | K21: Depreciation Rate Assets Acquired After Policy Change | L21: Life of Assets Acquired After Policy Change 4 | M21: Depreciation Rate on New Additions | N21: Depreciation Expense on Assets Existing Before Policy Change | O21: Depreciation Expense on Assets Acquired After Policy Change | P21: Depreciation Expense on Current Year Additions 5 | Q21: Total Current Year Depreciation Expense | R21: Depreciation Expense per Appendix 2-BA Fixed Assets, Column J | S21: Variance 6
C22: a | D22: b | E22: c = a-b | F22: d | G22: e | H22: f = d- e | I22: g | J22: h | K22: i = 1/h | L22: j | M22: k = 1/j | N22: l = c/h | O22: m = f/j | P22: n = g*0.5/j | Q22: o = l+m+n | R22: p | S22: q = p-o
A23: 1611 | B23: Computer Software (Formerly known as Account 1925) | C23: 366564.47 | D23: 274205.2938 | E23: =C23-D23 -> 92359.17623 | F23: 652344.03 | G23: 239255.82 | H23: =F23-G23 -> 413088.21 | I23: 183006.46 | J23: 1.79699 | K23: =IF(J23=0,0,1/J23) -> 0.556486124 | L23: 3 | M23: =IF(L23=0,0,1/L23) -> 0.3333333333 | N23: =IF(J23=0,0,+E23/J23) -> 51396.6 | O23: =IF(L23=0,0,+H23/L23) -> 137696.07 | P23: =IF(L23=0,0,+(I23*0.5)/L23) -> 30501.07667 | Q23: =IF(ISERROR(+N23+O23+P23), 0, +N23+O23+P23) -> 219593.7467 | R23: 199344.1 | S23: =IF(ISERROR(+R23-Q23), 0, +R23-Q23) -> -20249.64667
A24: 1612 | B24: Land Rights (Formally known as Account 1906) | C24: 792523.25 | D24: 0 | E24: =C24-D24 -> 792523.25 | F24: 809.6 | G24: 0 | H24: =F24-G24 -> 809.6 | I24: 0 | J24: 13.884 | K24: =IF(J24=0,0,1/J24) -> 0.07202535292 | L24: 25 | M24: =IF(L24=0,0,1/L24) -> 0.04 | N24: =IF(J24=0,0,+E24/J24) -> 57081.76678 | O24: =IF(L24=0,0,+H24/L24) -> 32.384 | P24: =IF(L24=0,0,+(I24*0.5)/L24) -> 0 | Q24: =IF(ISERROR(+N24+O24+P24), 0, +N24+O24+P24) -> 57114.15078 | R24: 57098.95 | S24: =IF(ISERROR(+R24-Q24), 0, +R24-Q24) -> -15.20078191
A25: 1805 | B25: Land | C25: 507272.79 | D25: 0 | E25: 507272.79 | F25: 0 | G25: 0 | H25: 0 | I25: 0 | J25: 0 | K25: 0 | L25: 0 | M25: 0 | N25: 0 | O25: 0 | P25: 0 | Q25: 0 | R25: 0 | S25: 0
A26: 1808 | B26: Buildings | C26: 0 | D26: 0 | E26: 0 | F26: 0 | G26: 0 | H26: 0 | I26: 0 | J26: 0 | K26: 0 | L26: 50 | M26: 0.02 | N26: 0 | O26: 0 | P26: 0 | Q26: 0 | R26: 0 | S26: 0
A27: 1810 | B27: Leasehold Improvements | C27: 0 | D27: 0 | E27: 0 | F27: 0 | G27: 0 | H27: 0 | I27: 0 | J27: 0 | K27: 0 | L27: 0 | M27: 0 | N27: 0 | O27: 0 | P27: 0 | Q27: 0 | R27: 0 | S27: 0
A28: 1815 | B28: Transformer Station Equipment >50 kV (1708,1740,1745) | C28: 3208341.14 | D28: 0 | E28: 3208341.14 | F28: 0 | G28: 0 | H28: 0 | I28: 0 | J28: 41.85141432 | K28: 0.02389405511 | L28: 50 | M28: 0.02 | N28: 76660.28 | O28: 0 | P28: 0 | Q28: 76660.28 | R28: 76660.28 | S28: -8.731149137e-11
A29: 1815 | B29: Transformer Station Equipment >50 kV (1715) | C29: 1273083.43 | D29: 9703.796169 | E29: 1263379.634 | F29: 16099 | G29: 0 | H29: 16099 | I29: 0 | J29: 36.6375 | K29: 0.02729443876 | L29: 45 | M29: 0.02222222222 | N29: 34483.23804 | O29: 357.7555556 | P29: 0 | Q29: 34840.9936 | R29: 36872.57747 | S29: 2031.583867
A30: 1815 | B30: Transformer Station Equipment >50 kV (1815) | C30: 52975.16 | D30: 0 | F30: 17057.8 | G30: 0 | I30: 1379.84 | J30: 36.6375 | L30: 40 | R30: 0
A31: 1815 | B31: Transformer Station Equipment >50 kV (1716) | C31: 32522.13 | D31: 33831.29607 | E31: -1309.166071 | F31: 0 | G31: 0 | H31: 0 | I31: 0 | J31: 1.446288702 | K31: 0.6914248851 | L31: 10 | M31: 0.1 | N31: -905.19 | O31: 0 | P31: 0 | Q31: -905.19 | R31: -905.1885464 | S31: 0.001453562244
A32: 1815 | B32: Transformer Station Equipment >50 kV (1717) | C32: 423006.78 | D32: 0 | E32: 423006.78 | F32: 0 | G32: 0 | H32: 0 | I32: 0 | J32: 31.71110373 | K32: 0.0315346955 | L32: 40 | M32: 0.025 | N32: 13339.39 | O32: 0 | P32: 0 | Q32: 13339.39 | R32: 13339.37658 | S32: -0.01341530438
A33: 1815 | B33: Transformer Station Equipment >50 kV (1719) | C33: 433011.5 | D33: 0 | E33: 433011.5 | F33: 0 | G33: 0 | H33: 0 | I33: 0 | J33: 12.11332117 | K33: 0.0825537428 | L33: 20 | M33: 0.05 | N33: 35746.72 | O33: 0 | P33: 0 | Q33: 35746.72 | R33: 35746.72924 | S33: 0.009243100096
A34: 1820 | B34: Distribution Station Equipment <50 kV | C34: 2004873.03 | D34: 696691.7768 | E34: 1308181.253 | F34: 251068.35 | G34: 0 | H34: 251068.35 | I34: 0 | J34: 23.37715 | K34: 0.04277681411 | L34: 45 | M34: 0.02222222222 | N34: 55959.82629 | O34: 5579.296667 | P34: 0 | Q34: 61539.12296 | R34: 61539.04 | S34: -0.0829581283
A35: 1820 | B35: Distribution Station Equipment <50 kV (1821) | C35: 1150231.64 | D35: 0 | E35: 1150231.64 | F35: 747052.38 | G35: 0 | H35: 747052.38 | I35: 0 | J35: 20.332 | K35: 0.04918355302 | L35: 30 | M35: 0.03333333333 | N35: 56572.47885 | O35: 24901.746 | P35: 0 | Q35: 81474.22485 | R35: 81474.52 | S35: 0.2951489278
A36: 1825 | B36: Storage Battery Equipment | C36: 0 | D36: 0 | E36: 0 | F36: 0 | G36: 0 | H36: 0 | I36: 0 | J36: 0 | K36: 0 | L36: 0 | M36: 0 | N36: 0 | O36: 0 | P36: 0 | Q36: 0 | R36: 0 | S36: 0
A37: 1830 | B37: Poles, Towers & Fixtures-Wood poles | C37: 15662777.79 | D37: 0 | E37: 15662777.79 | F37: 3494477.43 | G37: 0 | H37: 3494477.43 | I37: 2132964.01 | J37: 42.8606 | K37: 0.02333145126 | L37: 50 | M37: 0.02 | N37: 365435.3366 | O37: 69889.5486 | P37: 21329.6401 | Q37: 456654.5253 | R37: 456654.1079 | S37: -0.4174320892
A38: 1830 | B38: Poles, Towers & Fixtures (1831) Concrete | C38: 1677384.09 | D38: 0 | E38: 1677384.09 | F38: 182894.51 | G38: 0 | H38: 182894.51 | I38: 11440.81 | J38: 52.953 | K38: 0.01888467131 | L38: 60 | M38: 0.01666666667 | N38: 31676.8472 | O38: 3048.241833 | P38: 95.34008333 | Q38: 34820.42912 | R38: 34820.2 | S38: -0.2291207911
A39: 1835 | B39: Overhead Conductors & Devices | C39: 13378699.48 | D39: 7571006.283 | E39: 5807693.197 | F39: 3071233.26 | G39: 0 | H39: 3071233.26 | I39: 1527568.48 | J39: 23.96419 | K39: 0.04172892971 | L39: 60 | M39: 0.01666666667 | N39: 242348.8212 | O39: 51187.221 | P39: 12729.73733 | Q39: 306265.7795 | R39: 306265.7158 | S39: -0.06372975267
A40: 1835 | B40: Overhead Conductors & Devices (1836) | C40: 1684638.15 | D40: 674812.6239 | E40: 1009825.526 | F40: 177013.36 | G40: 0 | H40: 177013.36 | I40: 203985.64 | J40: 5.284865393 | K40: 0.1892195781 | L40: 15 | M40: 0.06666666667 | N40: 191078.76 | O40: 11800.89067 | P40: 6799.521333 | Q40: 209679.172 | R40: 209679.17 | S40: -0.002014081314
A41: 1835 | B41: Overhead Conductors & Devices (1837) | C41: 1438979.95 | D41: 861045.5699 | E41: 577934.3801 | F41: 575312.65 | G41: 0 | H41: 575312.65 | I41: 336898.97 | J41: 9.895229106 | K41: 0.1010588021 | L41: 30 | M41: 0.03333333333 | N41: 58405.35615 | O41: 19177.08833 | P41: 5614.982833 | Q41: 83197.42732 | R41: 83197.43 | S41: 0.0026841785
A42: 1840 | B42: Underground Conduit | C42: 6874814.57 | D42: 0 | E42: 6874814.57 | F42: 1286350.74 | G42: 0 | H42: 1286350.74 | I42: 781297.27 | J42: 44.2579 | K42: 0.02259483618 | L42: 50 | M42: 0.02 | N42: 155335.309 | O42: 25727.0148 | P42: 7812.9727 | Q42: 188875.2965 | R42: 188875.5751 | S42: 0.2786129724
A43: 1845 | B43: Underground Conductors & Devices | C43: 26944944.49 | D43: 8822379.38 | E43: 18122565.11 | F43: 4192371.51 | G43: 0 | H43: 4192371.51 | I43: 4630203.5 | J43: 16.80687 | K43: 0.05949947849 | L43: 35 | M43: 0.02857142857 | N43: 1078283.173 | O43: 119782.0431 | P43: 66145.76429 | Q43: 1264210.98 | R43: 1264210.857 | S43: -0.123364208
A44: 1845 | B44: Underground Conductors & Devices (1846) | C44: 938870.66 | D44: 354750.6877 | E44: 584119.9723 | F44: 467422.98 | G44: 0 | H44: 467422.98 | I44: 138210.29 | J44: 10.758 | K44: 0.09295408068 | L44: 30 | M44: 0.03333333333 | N44: 54296.33504 | O44: 15580.766 | P44: 2303.504833 | Q44: 72180.60587 | R44: 72180.69 | S44: 0.08412810192
A45: 1850 | B45: Line Transformers (1850) Polemount | C45: 5768242.17 | D45: 265213.1726 | E45: 5503028.997 | F45: 236038.64 | G45: 0 | H45: 236038.64 | I45: 613443.47 | J45: 27.7477 | K45: 0.03603902305 | L45: 40 | M45: 0.025 | N45: 198323.7889 | O45: 5900.966 | P45: 7668.043375 | Q45: 211892.7983 | R45: 211892.8594 | S45: 0.0611659353
A46: 1850 | B46: Line Transformers (1853) Padmount | C46: 9183431.8 | D46: 74458.92713 | E46: 9108972.873 | F46: 2481909.44 | G46: 0 | H46: 2481909.44 | I46: 1705243.95 | J46: 20.2046 | K46: 0.04949367966 | L46: 30 | M46: 0.03333333333 | N46: 450836.5854 | O46: 82730.31467 | P46: 28420.7325 | Q46: 561987.6325 | R46: 562393.95 | S46: 406.3174581
A47: 1855 | B47: Services (Overhead & Underground) | C47: 3519280.26 | D47: 0 | E47: 3519280.26 | F47: 1646769.11 | G47: 0 | H47: 1646769.11 | I47: 1006637.3 | J47: 19.0065 | K47: 0.05261357956 | L47: 25 | M47: 0.04 | N47: 185161.932 | O47: 65870.7644 | P47: 20132.746 | Q47: 271165.4424 | R47: 271165.29 | S47: -0.1523706416
A48: 1860 | B48: Meters | C48: 1781112.753 | D48: 69684.44364 | E48: 1711428.309 | F48: 888423.44 | G48: 0 | H48: 888423.44 | I48: 184577.31 | J48: 11.2227258 | K48: 0.08910491245 | L48: 20 | M48: 0.05 | N48: 152496.6696 | O48: 44421.172 | P48: 4614.43275 | Q48: 201532.2744 | R48: 201532.27 | S48: -0.004391207127
A49: 1860 | B49: Meters (Smart Meters) | C49: 5017820.46 | D49: 0 | E49: 5017820.46 | F49: 228163.66 | G49: 0 | H49: 228163.66 | I49: 144015.4 | J49: 12.57737422 | K49: 0.07950785135 | L49: 15 | M49: 0.06666666667 | N49: 398956.1233 | O49: 15210.91067 | P49: 4800.513333 | Q49: 418967.5473 | R49: 419688.25 | S49: 720.7027424
A50: 1905 | B50: Land | C50: 508969.83 | D50: 0 | E50: 508969.83 | F50: 0 | G50: 0 | H50: 0 | I50: 0 | J50: 0 | K50: 0 | L50: 0 | M50: 0 | N50: 0 | O50: 0 | P50: 0 | Q50: 0 | R50: 0 | S50: 0
A51: 1908 | B51: Buildings & Fixtures | C51: 10750312.36 | D51: 10214.94202 | E51: 10740097.42 | F51: 3524657.15 | G51: 0 | H51: 3524657.15 | I51: 468659.65 | J51: 48.07 | K51: 0.02080299563 | L51: 60 | M51: 0.01666666667 | N51: 223426.1997 | O51: 58744.28583 | P51: 3905.497083 | Q51: 286075.9826 | R51: 286695.8752 | S51: 619.8926167
A52: 1910 | B52: Leasehold Improvements | C52: 0 | D52: 0 | E52: 0 | F52: 0 | G52: 0 | H52: 0 | I52: 0 | J52: 0 | K52: 0 | L52: 0 | M52: 0 | N52: 0 | O52: 0 | P52: 0 | Q52: 0 | R52: 0 | S52: 0
A53: 1915 | B53: Office Furniture & Equipment (10 years) | C53: 471375.64 | D53: 52868.11474 | E53: 418507.5253 | F53: 347084.78 | G53: 0 | H53: 347084.78 | I53: 25553.75 | J53: 6.0952 | K53: 0.1640635254 | L53: 10 | M53: 0.1 | N53: 68661.82 | O53: 34708.478 | P53: 1277.6875 | Q53: 104647.9855 | R53: 105025.39 | S53: 377.4045
A54: 1915 | B54: Office Furniture & Equipment (5 years) | C54: 0 | D54: 0 | E54: 0 | F54: 0 | G54: 0 | H54: 0 | I54: 0 | J54: 0 | K54: 0 | L54: 0 | M54: 0 | N54: 0 | O54: 0 | P54: 0 | Q54: 0 | R54: 0 | S54: 0
A55: 1920 | B55: Computer Equipment - Hardware | C55: 817650.72 | D55: 352344.2965 | E55: 465306.4235 | F55: 556661.78 | G55: 0 | H55: 556661.78 | I55: 248788.8 | J55: 2.957894 | K55: 0.338078376 | L55: 5 | M55: 0.2 | N55: 157310.04 | O55: 111332.356 | P55: 24878.88 | Q55: 293521.276 | R55: 285181.28 | S55: -8339.996
A56: 1920 | B56: Computer Equip.-Hardware(Post Mar. 22/04) | C56: 0 | D56: 0 | E56: 0 | F56: 0 | G56: 0 | H56: 0 | I56: 0 | J56: 0 | K56: 0 | L56: 0 | M56: 0 | N56: 0 | O56: 0 | P56: 0 | Q56: 0 | R56: 0 | S56: 0
A57: 1920 | B57: Computer Equip.-Hardware(Post Mar. 19/07) | C57: 0 | D57: 0 | E57: 0 | F57: 0 | G57: 0 | H57: 0 | I57: 0 | J57: 0 | K57: 0 | L57: 0 | M57: 0 | N57: 0 | O57: 0 | P57: 0 | Q57: 0 | R57: 0 | S57: 0
A58: 1930 | B58: Transportation Equipment (1931) | C58: 227225.06 | D58: 60284.9112 | E58: 166940.1488 | F58: 179718.6 | G58: 0 | H58: 179718.6 | I58: 265221.71 | J58: 4.1316 | K58: 0.2420369833 | L58: 8 | M58: 0.125 | N58: 40405.69 | O58: 22464.825 | P58: 16576.35688 | Q58: 79446.87188 | R58: 71411.99 | S58: -8034.881875
A59: 1930 | B59: Transportation Equipment (1932) Large Trucks | C59: 2718355.38 | D59: 0 | E59: 2718355.38 | F59: 1773050.49 | G59: 0 | H59: 1773050.49 | I59: 225552.75 | J59: 11.46455121 | K59: 0.08722539435 | L59: 15 | M59: 0.06666666667 | N59: 237109.62 | O59: 118203.366 | P59: 7518.425 | Q59: 362831.411 | R59: 359204.28 | S59: -3627.131
A60: 1930 | B60: Transportation Equipment (1933) Trailers | C60: 96505.73 | D60: 0 | E60: 96505.73 | F60: 28995 | G60: 0 | H60: 28995 | I60: 0 | J60: 18.69313315 | K60: 0.05349558 | L60: 20 | M60: 0.05 | N60: 5162.63 | O60: 1449.75 | P60: 0 | Q60: 6612.38 | R60: 6612.38 | S60: 9.094947018e-13
A61: 1935 | B61: Stores Equipment | C61: 39772.79 | D61: 0 | E61: 39772.79 | F61: 32063.96 | G61: 0 | H61: 32063.96 | I61: 54801.2 | J61: 7.332363005 | K61: 0.136381682 | L61: 10 | M61: 0.1 | N61: 5424.28 | O61: 3206.396 | P61: 2740.06 | Q61: 11370.736 | R61: 11078.13 | S61: -292.606
A62: 1940 | B62: Tools, Shop & Garage Equipment | C62: 414513.9 | D62: 43910.56137 | E62: 370603.3386 | F62: 143578.5 | G62: 0 | H62: 143578.5 | I62: 66619.11 | J62: 5.817 | K62: 0.1719099192 | L62: 10 | M62: 0.1 | N62: 63710.39 | O62: 14357.85 | P62: 3330.9555 | Q62: 81399.1955 | R62: 80242.62 | S62: -1156.5755
A63: 1945 | B63: Measurement & Testing Equipment | C63: 17387.13 | D63: 9883.715817 | E63: 7503.414183 | F63: 0 | G63: 0 | H63: 0 | I63: 0 | J63: 2.315761364 | K63: 0.4318234234 | L63: 5 | M63: 0.2 | N63: 3240.15 | O63: 0 | P63: 0 | Q63: 3240.15 | R63: 3239.15 | S63: -1
A64: 1950 | B64: Power Operated Equipment | C64: 0 | D64: 0 | E64: 0 | F64: 0 | G64: 0 | H64: 0 | I64: 0 | J64: 0 | K64: 0 | L64: 0 | M64: 0 | N64: 0 | O64: 0 | P64: 0 | Q64: 0 | R64: 0 | S64: 0
A65: 1955 | B65: Communications Equipment | C65: 346939.53 | D65: 33333.32105 | E65: 313606.209 | F65: 572345.32 | G65: 0 | H65: 572345.32 | I65: 65662.61 | J65: 17.86590971 | K65: 0.05597252063 | L65: 20 | M65: 0.05 | N65: 17553.33 | O65: 28617.266 | P65: 1641.56525 | Q65: 47812.16125 | R65: 47026.41 | S65: -785.75125
A66: 1955 | B66: Communication Equipment (Smart Meters) | C66: 0 | D66: 0 | E66: 0 | F66: 0 | G66: 0 | H66: 0 | I66: 0 | J66: 0 | K66: 0 | L66: 0 | M66: 0 | N66: 0 | O66: 0 | P66: 0 | Q66: 0 | R66: 0 | S66: 0
A67: 1960 | B67: Miscellaneous Equipment | C67: 5637.59 | D67: 5214.114564 | E67: 423.4754356 | F67: 0 | G67: 0 | H67: 0 | I67: 0 | J67: 1.698862421 | K67: 0.5886291837 | L67: 5 | M67: 0.2 | N67: 249.27 | O67: 0 | P67: 0 | Q67: 249.27 | R67: 249.27 | S67: 4.092726158e-12
A68: 1970 | B68: Load Management Controls Customer Premises | C68: 0 | D68: 0 | E68: 0 | F68: 0 | G68: 0 | H68: 0 | I68: 0 | J68: 0 | K68: 0 | L68: 0 | M68: 0 | N68: 0 | O68: 0 | P68: 0 | Q68: 0 | R68: 0 | S68: 0
A69: 1975 | B69: Load Management Controls Utility Premises | C69: 0 | D69: 0 | E69: 0 | F69: 0 | G69: 0 | H69: 0 | I69: 0 | J69: 0 | K69: 0 | L69: 0 | M69: 0 | N69: 0 | O69: 0 | P69: 0 | Q69: 0 | R69: 0 | S69: 0
A70: 1980 | B70: System Supervisor Equipment | C70: 0 | D70: 0 | E70: 0 | F70: 0 | G70: 0 | H70: 0 | I70: 0 | J70: 0 | K70: 0 | L70: 15 | M70: 0.06666666667 | N70: 0 | O70: 0 | P70: 0 | Q70: 0 | R70: 0 | S70: 0
A71: 1985 | B71: Miscellaneous Fixed Assets | C71: 0 | D71: 0 | E71: 0 | F71: 0 | G71: 0 | H71: 0 | I71: 0 | J71: 0 | K71: 0 | L71: 0 | M71: 0 | N71: 0 | O71: 0 | P71: 0 | Q71: 0 | R71: 0 | S71: 0
A72: 1990 | B72: Other Tangible Property | C72: 0 | D72: 0 | E72: 0 | F72: 0 | G72: 0 | H72: 0 | I72: 0 | J72: 0 | K72: 0 | L72: 0 | M72: =IF(L72=0,0,1/L72) -> 0 | N72: 0 | O72: =IF(L72=0,0,+H72/L72) -> 0 | P72: =IF(L72=0,0,+(I72*0.5)/L72) -> 0 | Q72: =IF(ISERROR(+N72+O72+P72), 0, +N72+O72+P72) -> 0 | R72: 0 | S72: 0
A73: 1995 | B73: Contributions & Grants - OH | C73: -2156992.62 | D73: 0 | E73: -2156992.62 | F73: -684933.73 | G73: 0 | H73: -684933.73 | I73: -682387.93 | J73: 42.2419972 | K73: 0.02367312311 | L73: 50 | M73: =IF(L73=0,0,1/L73) -> 0.02 | N73: =IF(J73=0,0,+E73/J73) -> -51062.75184 | O73: =IF(L73=0,0,+H73/L73) -> -13698.6746 | P73: =IF(L73=0,0,+(I73*0.5)/L73) -> -6823.8793 | Q73: =IF(ISERROR(+N73+O73+P73), 0, +N73+O73+P73) -> -71585.30574 | R73: -71512.01 | S73: 73.29573871
A74: 1995 | B74: Contributions & Grants - UG | C74: -9620678.232 | D74: 0 | E74: -9620678.232 | F74: -920923.48 | G74: 0 | H74: -920923.48 | I74: -3461934.99 | J74: 27.31208346 | K74: 0.03661383071 | L74: 35 | M74: 0.02857142857 | N74: -352249.8841 | O74: -26312.09943 | P74: -49456.21414 | Q74: -428018.1976 | R74: -427701.15 | S74: 317.0476304
A75: 1995 | B75: Contributions & Grants - Transformers | C75: -1743736.86 | D75: 0 | E75: -1743736.86 | F75: -594713.81 | G75: 0 | H75: -594713.81 | I75: -1433936.99 | J75: 32.8561771 | K75: 0.0304356772 | L75: 40 | M75: 0.025 | N75: -53071.81219 | O75: -14867.84525 | P75: -17924.21237 | Q75: -85863.86982 | R75: -85822.22 | S75: 41.64981674
A76: 1995 | B76: Contributions & Grants - Smart Meters | C76: -84686.5997 | D76: 0 | E76: -84686.5997 | F76: -115089.48 | G76: 0 | H76: -115089.48 | I76: -86168.21 | J76: 12.9015801 | K76: 0.07750988578 | L76: 15 | M76: 0.06666666667 | N76: -6564.04867 | O76: -7672.632 | P76: -2872.273667 | Q76: -17108.95434 | R76: -20175.89 | S76: -3066.935663
A77: 1995 | B77: Contributions & Grants - Non-Smart Meters | C77: -85197.70933 | D77: 0 | E77: =C77-D77 -> -85197.70933 | F77: -63380.21 | G77: 0 | H77: -63380.21 | I77: 0 | J77: 17.45054062 | K77: =IF(J77=0,0,1/J77) -> 0.0573048149 | L77: 20 | M77: 0.05 | N77: =IF(J77=0,0,+E77/J77) -> -4882.238963 | O77: -3169.0105 | P77: 0 | Q77: -8051.249463 | R77: -8051.25 | S77: =IF(ISERROR(+R77-Q77), 0, +R77-Q77) -> -0.0005365226207
B78: Total | C78: =SUM(C23:C77) -> 106838755.6 | D78: 20275837.23 | E78: 86509943.19 | F78: 25391926.76 | G78: 239255.82 | H78: 25135613.14 | I78: 9357304.16 | N78: =SUM(N23:N77) -> 4297392.831 | O78: 1026258.505 | P78: 203761.8559 | Q78: 5527413.192 | R78: 5486431.005 | S78: -40982.18726
A85: 2016 | C85: Book Values | J85: Service Lives | N85: Depreciation Expense | Y85: 2018
A86: Account | B86: Description | C86: Opening Net Book Value of Existing Assets as at Date of Policy Change (Jan. 1) 1 | D86: Less Fully Depreciated 7 | E86: Net Amount of Existing Assets Before Policy Change to be Depreciated | F86: Opening Gross Book Value of Assets Acquired After Policy Change 2 | G86: Less Fully Depreciated 8 | H86: Net Amount of Assets Acquired After Policy Change to be Depreciated | I86: Current Year Additions | J86: Average Remaining Life of Assets Existing Before Policy Change 3 | K86: Depreciation Rate Assets Acquired After Policy Change | L86: Life of Assets Acquired After Policy Change 4 | M86: Depreciation Rate on New Additions | N86: Depreciation Expense on Assets Existing Before Policy Change | O86: Depreciation Expense on Assets Acquired After Policy Change | P86: Depreciation Expense on Current Year Additions 5 | Q86: Total Current Year Depreciation Expense | R86: Depreciation Expense per Appendix 2-BA Fixed Assets, Column J | S86: Variance 6
C87: a | D87: b | E87: c = a-b | F87: d | G87: e | H87: f = d- e | I87: g | J87: h | K87: i = 1/h | L87: j | M87: k = 1/j | N87: l = c/h | O87: m = f/j | P87: n = g*0.5/j | Q87: o = l+m+n | R87: p | S87: q = p-o
A88: 1611 | B88: Computer Software (Formerly known as Account 1925) | C88: 366564.47 | D88: 366564.47 | E88: =C88-D88 -> 0 | F88: 835350.49 | G88: 289745.59 | H88: =F88-G88 -> 545604.9 | I88: 342477.02 | J88: 1.79699 | K88: =IF(J88=0,0,1/J88) -> 0.556486124 | L88: 3 | M88: =IF(L88=0,0,1/L88) -> 0.3333333333 | N88: =IF(J88=0,0,+E88/J88) -> 0 | O88: =IF(L88=0,0,+H88/L88) -> 181868.3 | P88: =IF(L88=0,0,+(I88*0.5)/L88) -> 57079.50333 | Q88: =IF(ISERROR(+N88+O88+P88), 0, +N88+O88+P88) -> 238947.8033 | R88: 230225.6 | S88: =IF(ISERROR(+R88-Q88), 0, +R88-Q88) -> -8722.203333
A89: 1612 | B89: Land Rights (Formally known as Account 1906) | C89: 792523.25 | D89: 0 | E89: =C89-D89 -> 792523.25 | F89: 809.6 | G89: 0 | H89: =F89-G89 -> 809.6 | I89: 0 | J89: 13.884 | K89: =IF(J89=0,0,1/J89) -> 0.07202535292 | L89: 25 | M89: =IF(L89=0,0,1/L89) -> 0.04 | N89: =IF(J89=0,0,+E89/J89) -> 57081.76678 | O89: =IF(L89=0,0,+H89/L89) -> 32.384 | P89: =IF(L89=0,0,+(I89*0.5)/L89) -> 0 | Q89: =IF(ISERROR(+N89+O89+P89), 0, +N89+O89+P89) -> 57114.15078 | R89: 57098.95 | S89: =IF(ISERROR(+R89-Q89), 0, +R89-Q89) -> -15.20078191
A90: 1805 | B90: Land | C90: 507272.79 | D90: 0 | E90: 507272.79 | F90: 0 | G90: 0 | H90: 0 | I90: 0 | J90: 0 | K90: 0 | L90: 0 | M90: 0 | N90: 0 | O90: 0 | P90: 0 | Q90: 0 | R90: 0 | S90: 0
A91: 1808 | B91: Buildings | C91: 0 | D91: 0 | E91: 0 | F91: 0 | G91: 0 | H91: 0 | I91: 0 | J91: 0 | K91: 0 | L91: 50 | M91: 0.02 | N91: 0 | O91: 0 | P91: 0 | Q91: 0 | R91: 0 | S91: 0
A92: 1810 | B92: Leasehold Improvements | C92: 0 | D92: 0 | E92: 0 | F92: 0 | G92: 0 | H92: 0 | I92: 0 | J92: 0 | K92: 0 | L92: 0 | M92: 0 | N92: 0 | O92: 0 | P92: 0 | Q92: 0 | R92: 0 | S92: 0
A93: 1815 | B93: Transformer Station Equipment >50 kV (1708,1740,1745) | C93: 3208341.14 | D93: 0 | E93: 3208341.14 | F93: 0 | G93: 0 | H93: 0 | I93: 0 | J93: 41.85141432 | K93: 0.02389405511 | L93: 50 | M93: 0.02 | N93: 76660.28 | O93: 0 | P93: 0 | Q93: 76660.28 | R93: 76660.28 | S93: -8.731149137e-11
A94: 1815 | B94: Transformer Station Equipment >50 kV (1715) | C94: 1273083.43 | D94: 9703.796169 | E94: 1263379.634 | F94: 16099 | G94: 0 | H94: 16099 | I94: 0 | J94: 36.6375 | K94: 0.02729443876 | L94: 45 | M94: 0.02222222222 | N94: 34483.23804 | O94: 357.7555556 | P94: 0 | Q94: 34840.9936 | R94: 36889.82 | S94: 2048.826401
A95: 1815 | B95: Transformer Station Equipment >50 kV (1815) | C95: 52975.16 | D95: 0 | F95: 18437.64 | G95: 0 | I95: 0 | J95: 36.6375 | L95: 40 | R95: 0
A96: 1815 | B96: Transformer Station Equipment >50 kV (1716) | C96: 32522.13 | D96: 32522.13 | E96: =C96-D96 -> 0 | F96: 0 | G96: 0 | H96: =F96-G96 -> 0 | I96: 0 | J96: 1.446288702 | K96: =IF(J96=0,0,1/J96) -> 0.6914248851 | L96: 10 | M96: =IF(L96=0,0,1/L96) -> 0.1 | N96: =IF(J96=0,0,+E96/J96) -> 0 | O96: =IF(L96=0,0,+H96/L96) -> 0 | P96: =IF(L96=0,0,+(I96*0.5)/L96) -> 0 | Q96: =IF(ISERROR(+N96+O96+P96), 0, +N96+O96+P96) -> 0 | R96: 0 | S96: =IF(ISERROR(+R96-Q96), 0, +R96-Q96) -> 0
A97: 1815 | B97: Transformer Station Equipment >50 kV (1717) | C97: 423006.78 | D97: 0 | E97: 423006.78 | F97: 0 | G97: 0 | H97: 0 | I97: 0 | J97: 31.71110373 | K97: 0.0315346955 | L97: 40 | M97: 0.025 | N97: 13339.39 | O97: 0 | P97: 0 | Q97: 13339.39 | R97: 13339.38 | S97: -0.009999999995
A98: 1815 | B98: Transformer Station Equipment >50 kV (1719) | C98: 433011.5 | D98: 0 | E98: 433011.5 | F98: 0 | G98: 0 | H98: 0 | I98: 0 | J98: 12.11332117 | K98: 0.0825537428 | L98: 20 | M98: 0.05 | N98: 35746.72 | O98: 0 | P98: 0 | Q98: 35746.72 | R98: 35746.73 | S98: 0.00999999998
A99: 1820 | B99: Distribution Station Equipment <50 kV | C99: 2004873.03 | D99: 696691.7768 | E99: 1308181.253 | F99: 251068.35 | G99: 0 | H99: 251068.35 | I99: 0 | J99: 23.37715 | K99: 0.04277681411 | L99: 45 | M99: 0.02222222222 | N99: 55959.82629 | O99: 5579.296667 | P99: 0 | Q99: 61539.12296 | R99: 61539.19 | S99: 0.06704187192
A100: 1820 | B100: Distribution Station Equipment <50 kV (1821) | C100: 1150231.64 | D100: 0 | E100: 1150231.64 | F100: 747052.38 | G100: 0 | H100: 747052.38 | I100: 0 | J100: 20.332 | K100: 0.04918355302 | L100: 30 | M100: 0.03333333333 | N100: 56572.47885 | O100: 24901.746 | P100: 0 | Q100: 81474.22485 | R100: 81474.52 | S100: 0.2951489278
A101: 1825 | B101: Storage Battery Equipment | C101: 0 | D101: 0 | E101: 0 | F101: 0 | G101: 0 | H101: 0 | I101: 0 | J101: 0 | K101: 0 | L101: 0 | M101: 0 | N101: 0 | O101: 0 | P101: 0 | Q101: 0 | R101: 0 | S101: 0
A102: 1830 | B102: Poles, Towers & Fixtures-Wood poles | C102: 15662777.79 | D102: 0 | E102: 15662777.79 | F102: 5627441.44 | G102: 0 | H102: 5627441.44 | I102: 2568809.4 | J102: 42.8606 | K102: 0.02333145126 | L102: 50 | M102: 0.02 | N102: 365435.3366 | O102: 112548.8288 | P102: 25688.094 | Q102: 503672.2594 | R102: 503671.98 | S102: -0.2794495111
A103: 1830 | B103: Poles, Towers & Fixtures (1831) Concrete | C103: 1677384.09 | D103: 0 | E103: 1677384.09 | F103: 194335.32 | G103: 0 | H103: 194335.32 | I103: 92966.27 | J103: 52.953 | K103: 0.01888467131 | L103: 60 | M103: 0.01666666667 | N103: 31676.8472 | O103: 3238.922 | P103: 774.7189167 | Q103: 35690.48812 | R103: 35690.25 | S103: -0.2381207911
A104: 1835 | B104: Overhead Conductors & Devices | C104: 13378699.48 | D104: 7571006.283 | E104: 5807693.197 | F104: 4598801.74 | G104: 0 | H104: 4598801.74 | I104: 2247172.18 | J104: 23.96419 | K104: 0.04172892971 | L104: 60 | M104: 0.01666666667 | N104: 242348.8212 | O104: 76646.69567 | P104: 18726.43483 | Q104: 337721.9517 | R104: 337722.01 | S104: 0.05831589334
A105: 1835 | B105: Overhead Conductors & Devices (1836) | C105: 1684638.15 | D105: 831436.4154 | E105: 853201.7346 | F105: 380999 | G105: 0 | H105: 380999 | I105: 4202.09 | J105: 5.284865393 | K105: 0.1892195781 | L105: 15 | M105: 0.06666666667 | N105: 161442.4723 | O105: 25399.93333 | P105: 140.0696667 | Q105: 186982.4753 | R105: 186982.48 | S105: 0.004749607499
A106: 1835 | B106: Overhead Conductors & Devices (1837) | C106: 1438979.95 | D106: 861045.5699 | E106: 577934.3801 | F106: 912211.62 | G106: 0 | H106: 912211.62 | I106: 211197.35 | J106: 9.895229106 | K106: 0.1010588021 | L106: 30 | M106: 0.03333333333 | N106: 58405.35615 | O106: 30407.054 | P106: 3519.955833 | Q106: 92332.36598 | R106: 92332.36 | S106: -0.005982488248
A107: 1840 | B107: Underground Conduit | C107: 6874814.57 | D107: 0 | E107: 6874814.57 | F107: 2067648.01 | G107: 0 | H107: 2067648.01 | I107: 1197894.27 | J107: 44.2579 | K107: 0.02259483618 | L107: 50 | M107: 0.02 | N107: 155335.309 | O107: 41352.9602 | P107: 11978.9427 | Q107: 208667.2119 | R107: 208667.41 | S107: 0.1981495077
A108: 1845 | B108: Underground Conductors & Devices | C108: 26944944.49 | D108: 8970891.301 | E108: 17974053.19 | F108: 8822575.01 | G108: 0 | H108: 8822575.01 | I108: 3475939.1 | J108: 16.80687 | K108: 0.05949947849 | L108: 35 | M108: 0.02857142857 | N108: 1069446.791 | O108: 252073.5717 | P108: 49656.27286 | Q108: 1371176.636 | R108: 1371176.77 | S108: 0.1343946226
A109: 1845 | B109: Underground Conductors & Devices (1846) | C109: 938870.66 | D109: 354750.6877 | E109: 584119.9723 | F109: 605633.27 | G109: 0 | H109: 605633.27 | I109: 332991.02 | J109: 10.758 | K109: 0.09295408068 | L109: 30 | M109: 0.03333333333 | N109: 54296.33504 | O109: 20187.77567 | P109: 5549.850333 | Q109: 80033.96104 | R109: 80033.87 | S109: -0.09103856457
A110: 1850 | B110: Line Transformers (1850) Polemount | C110: 5768242.17 | D110: 265213.1726 | E110: 5503028.997 | F110: 849482.11 | G110: 0 | H110: 849482.11 | I110: 442210.77 | J110: 27.7477 | K110: 0.03603902305 | L110: 40 | M110: 0.025 | N110: 198323.7889 | O110: 21237.05275 | P110: 5527.634625 | Q110: 225088.4763 | R110: 225088.78 | S110: 0.3037199753
A111: 1850 | B111: Line Transformers (1853) Padmount | C111: 9183431.8 | D111: 74458.92713 | E111: 9108972.873 | F111: 4187153.39 | G111: 0 | H111: 4187153.39 | I111: 1268174.97 | J111: 20.2046 | K111: 0.04949367966 | L111: 30 | M111: 0.03333333333 | N111: 450836.5854 | O111: 139571.7797 | P111: 21136.2495 | Q111: 611544.6145 | R111: 611973.09 | S111: 428.4754581
A112: 1855 | B112: Services (Overhead & Underground) | C112: 3519280.26 | D112: 0 | E112: 3519280.26 | F112: 2653406.41 | G112: 0 | H112: 2653406.41 | I112: 1182855 | J112: 19.0065 | K112: 0.05261357956 | L112: 25 | M112: 0.04 | N112: 185161.932 | O112: 106136.2564 | P112: 23657.1 | Q112: 314955.2884 | R112: 314955.13 | S112: -0.1583706415
A113: 1860 | B113: Meters | C113: 1781112.753 | D113: 69684.44364 | E113: 1711428.309 | F113: 1073000.75 | G113: 0 | H113: 1073000.75 | I113: 363003.24 | J113: 11.2227258 | K113: 0.08910491245 | L113: 20 | M113: 0.05 | N113: 152496.6696 | O113: 53650.0375 | P113: 9075.081 | Q113: 215221.7881 | R113: 215221.98 | S113: 0.1918587928
A114: 1860 | B114: Meters (Smart Meters) | C114: 5017820.46 | D114: 0 | E114: 5017820.46 | F114: 372179.06 | G114: 0 | H114: 372179.06 | I114: 158603.48 | J114: 12.57737422 | K114: 0.07950785135 | L114: 15 | M114: 0.06666666667 | N114: 398956.1233 | O114: 24811.93733 | P114: 5286.782667 | Q114: 429054.8433 | R114: 429775.55 | S114: 720.7067424
A115: 1905 | B115: Land | C115: 508969.83 | D115: 0 | E115: 508969.83 | F115: 0 | G115: 0 | H115: 0 | I115: 0 | J115: 0 | K115: 0 | L115: 0 | M115: 0 | N115: 0 | O115: 0 | P115: 0 | Q115: 0 | R115: 0 | S115: 0
A116: 1908 | B116: Buildings & Fixtures | C116: 10750312.36 | D116: 10214.94202 | E116: 10740097.42 | F116: 3993316.8 | G116: 0 | H116: 3993316.8 | I116: 52753.45 | J116: 48.07 | K116: 0.02080299563 | L116: 60 | M116: 0.01666666667 | N116: 223426.1997 | O116: 66555.28 | P116: 439.6120833 | Q116: 290421.0918 | R116: 291199.97 | S116: 778.87825
A117: 1910 | B117: Leasehold Improvements | C117: 0 | D117: 0 | E117: 0 | F117: 0 | G117: 0 | H117: 0 | I117: 0 | J117: 0 | K117: 0 | L117: 0 | M117: 0 | N117: 0 | O117: 0 | P117: 0 | Q117: 0 | R117: 0 | S117: 0
A118: 1915 | B118: Office Furniture & Equipment (10 years) | C118: 471375.64 | D118: 96178.47262 | E118: 375197.1674 | F118: 372638.53 | G118: 0 | H118: 372638.53 | I118: 28030.58 | J118: 6.0952 | K118: 0.1640635254 | L118: 10 | M118: 0.1 | N118: 61556.17 | O118: 37263.853 | P118: 1401.529 | Q118: 100221.552 | R118: 100717.78 | S118: 496.228
A119: 1915 | B119: Office Furniture & Equipment (5 years) | C119: 0 | D119: 0 | E119: 0 | F119: 0 | G119: 0 | H119: 0 | I119: 0 | J119: 0 | K119: 0 | L119: 0 | M119: 0 | N119: 0 | O119: 0 | P119: 0 | Q119: 0 | R119: 0 | S119: 0
A120: 1920 | B120: Computer Equipment - Hardware | C120: 817650.72 | D120: 464969.1276 | E120: 352681.5924 | F120: 805450.58 | G120: 0 | H120: 805450.58 | I120: 241216.89 | J120: 2.957894 | K120: 0.338078376 | L120: 5 | M120: 0.2 | N120: 119234.02 | O120: 161090.116 | P120: 24121.689 | Q120: 304445.825 | R120: 288959.79 | S120: -15486.035
A121: 1920 | B121: Computer Equip.-Hardware(Post Mar. 22/04) | C121: 0 | D121: 0 | E121: 0 | F121: 0 | G121: 0 | H121: 0 | I121: 0 | J121: 0 | K121: 0 | L121: 0 | M121: 0 | N121: 0 | O121: 0 | P121: 0 | Q121: 0 | R121: 0 | S121: 0
A122: 1920 | B122: Computer Equip.-Hardware(Post Mar. 19/07) | C122: 0 | D122: 0 | E122: 0 | F122: 0 | G122: 0 | H122: 0 | I122: 0 | J122: 0 | K122: 0 | L122: 0 | M122: 0 | N122: 0 | O122: 0 | P122: 0 | Q122: 0 | R122: 0 | S122: 0
A123: 1930 | B123: Transportation Equipment (1931) | C123: 227225.06 | D123: 116631.9199 | E123: 110593.1401 | F123: 444940.31 | G123: 0 | H123: 444940.31 | I123: 189911.8 | J123: 4.1316 | K123: 0.2420369833 | L123: 8 | M123: 0.125 | N123: 26767.63 | O123: 55617.53875 | P123: 11869.4875 | Q123: 94254.65625 | R123: 84409.85 | S123: -9844.80625
A124: 1930 | B124: Transportation Equipment (1932) Large Trucks | C124: 2718355.38 | D124: 390200.7008 | E124: 2328154.679 | F124: 1998603.24 | G124: 0 | H124: 1998603.24 | I124: 527788.68 | J124: 11.46455121 | K124: 0.08722539435 | L124: 15 | M124: 0.06666666667 | N124: 203074.21 | O124: 133240.216 | P124: 17592.956 | Q124: 353907.382 | R124: 338232.84 | S124: -15674.542
A125: 1930 | B125: Transportation Equipment (1933) Trailers | C125: 96505.73 | D125: 0 | E125: 96505.73 | F125: 28995 | G125: 0 | H125: 28995 | I125: 74745 | J125: 18.69313315 | K125: 0.05349558 | L125: 20 | M125: 0.05 | N125: 5162.63 | O125: 1449.75 | P125: 1868.625 | Q125: 8481.005 | R125: 6928.92 | S125: -1552.085
A126: 1935 | B126: Stores Equipment | C126: 39772.79 | D126: 0 | E126: 39772.79 | F126: 86865.16 | G126: 0 | H126: 86865.16 | I126: 0 | J126: 7.332363005 | K126: 0.136381682 | L126: 10 | M126: 0.1 | N126: 5424.28 | O126: 8686.516 | P126: 0 | Q126: 14110.796 | R126: 14110.8 | S126: 0.004000000019
A127: 1940 | B127: Tools, Shop & Garage Equipment | C127: 414513.9 | D127: 131110.2417 | E127: 283403.6583 | F127: 210197.61 | G127: 0 | H127: 210197.61 | I127: 121499.95 | J127: 5.817 | K127: 0.1719099192 | L127: 10 | M127: 0.1 | N127: 48719.9 | O127: 21019.761 | P127: 6074.9975 | Q127: 75814.6585 | R127: 73243.77 | S127: -2570.8885
A128: 1945 | B128: Measurement & Testing Equipment | C128: 17387.13 | D128: 14816.6812 | E128: 2570.448799 | F128: 0 | G128: 0 | H128: 0 | I128: 0 | J128: 2.315761364 | K128: 0.4318234234 | L128: 5 | M128: 0.2 | N128: 1109.98 | O128: 0 | P128: 0 | Q128: 1109.98 | R128: 1109.98 | S128: -1.796252036e-11
A129: 1950 | B129: Power Operated Equipment | C129: 0 | D129: 0 | E129: 0 | F129: 0 | G129: 0 | H129: 0 | I129: 0 | J129: 0 | K129: 0 | L129: 0 | M129: 0 | N129: 0 | O129: 0 | P129: 0 | Q129: 0 | R129: 0 | S129: 0
A130: 1955 | B130: Communications Equipment | C130: 346939.53 | D130: 33333.49971 | E130: 313606.0303 | F130: 638007.93 | G130: 0 | H130: 638007.93 | I130: 301989.68 | J130: 17.86590971 | K130: 0.05597252063 | L130: 20 | M130: 0.05 | N130: 17553.32 | O130: 31900.3965 | P130: 7549.742 | Q130: 57003.4585 | R130: 57205.38 | S130: 201.9215
A131: 1955 | B131: Communication Equipment (Smart Meters) | C131: 0 | D131: 0 | E131: 0 | F131: 0 | G131: 0 | H131: 0 | I131: 0 | J131: 0 | K131: 0 | L131: 0 | M131: 0 | N131: 0 | O131: 0 | P131: 0 | Q131: 0 | R131: 0 | S131: 0
A132: 1960 | B132: Miscellaneous Equipment | C132: 5637.59 | D132: 5637.59 | E132: 0 | F132: 0 | G132: 0 | H132: 0 | I132: 0 | J132: 1.698862421 | K132: 0.5886291837 | L132: 5 | M132: 0.2 | N132: 0 | O132: 0 | P132: 0 | Q132: 0 | R132: 0 | S132: 0
A133: 1970 | B133: Load Management Controls Customer Premises | C133: 0 | D133: 0 | E133: 0 | F133: 0 | G133: 0 | H133: 0 | I133: 0 | J133: 0 | K133: 0 | L133: 0 | M133: 0 | N133: 0 | O133: 0 | P133: 0 | Q133: 0 | R133: 0 | S133: 0
A134: 1975 | B134: Load Management Controls Utility Premises | C134: 0 | D134: 0 | E134: 0 | F134: 0 | G134: 0 | H134: 0 | I134: 0 | J134: 0 | K134: 0 | L134: 0 | M134: 0 | N134: 0 | O134: 0 | P134: 0 | Q134: 0 | R134: 0 | S134: 0
A135: 1980 | B135: System Supervisor Equipment | C135: 0 | D135: 0 | E135: 0 | F135: 0 | G135: 0 | H135: 0 | I135: 0 | J135: 0 | K135: 0 | L135: 15 | M135: 0.06666666667 | N135: 0 | O135: 0 | P135: 0 | Q135: 0 | R135: 0 | S135: 0
A136: 1985 | B136: Miscellaneous Fixed Assets | C136: 0 | D136: 0 | E136: 0 | F136: 0 | G136: 0 | H136: 0 | I136: 0 | J136: 0 | K136: 0 | L136: 0 | M136: 0 | N136: 0 | O136: 0 | P136: 0 | Q136: 0 | R136: 0 | S136: 0
A137: 1990 | B137: Other Tangible Property | C137: 0 | D137: 0 | E137: 0 | F137: 0 | G137: 0 | H137: 0 | I137: 0 | J137: 0 | K137: 0 | L137: 0 | M137: 0 | N137: 0 | O137: 0 | P137: 0 | Q137: 0 | R137: 0 | S137: 0
A138: 1995 | B138: Contributions & Grants - OH | C138: -2156992.62 | D138: 0 | E138: -2156992.62 | F138: -1367321.66 | G138: 0 | H138: -1367321.66 | I138: -1383573.82 | J138: 42.2419972 | K138: 0.02367312311 | L138: 50 | M138: 0.02 | N138: -51062.75184 | O138: -27346.4332 | P138: -13835.7382 | Q138: -92244.92324 | R138: -92171.63 | S138: 73.29323871
A139: 1995 | B139: Contributions & Grants - UG | C139: -9620678.232 | D139: 0 | E139: -9620678.232 | F139: -4382858.47 | G139: 0 | H139: -4382858.47 | I139: -1888949.12 | J139: 27.31208346 | K139: 0.03661383071 | L139: 35 | M139: 0.02857142857 | N139: -352249.8841 | O139: -125224.5277 | P139: -26984.98743 | Q139: -504459.3992 | R139: -504142.35 | S139: 317.0492018
A140: 1995 | B140: Contributions & Grants - Transformers | C140: -1743736.86 | D140: 0 | E140: -1743736.86 | F140: -2028650.8 | G140: 0 | H140: -2028650.8 | I140: -719933 | J140: 32.8561771 | K140: 0.0304356772 | L140: 40 | M140: 0.025 | N140: -53071.81219 | O140: -50716.27 | P140: -8999.1625 | Q140: -112787.2447 | R140: -112752.73 | S140: 34.51469174
A141: 1995 | B141: Contributions & Grants - Smart Meters | C141: -84686.5997 | D141: 0 | E141: -84686.5997 | F141: -201257.69 | G141: 0 | H141: -201257.69 | I141: -38994.93 | J141: 12.9015801 | K141: 0.07750988578 | L141: 15 | M141: 0.06666666667 | N141: -6564.04867 | O141: -13417.17933 | P141: -1299.831 | Q141: -21281.059 | R141: -21320.18 | S141: -39.12099645
A142: 1995 | B142: Contributions & Grants - Non-Smart Meters | C142: -85197.70933 | D142: 0 | E142: -85197.70933 | F142: -63380.21 | G142: 0 | H142: -63380.21 | I142: 0 | J142: 17.45054062 | K142: 0.0573048149 | L142: 20 | M142: 0.05 | N142: -4882.238963 | O142: -3169.0105 | P142: 0 | Q142: -8051.249463 | R142: -8051.25 | S142: -0.0005365226207
B143: Total | C143: =SUM(C88:C142) -> 106838755.6 | D143: 21367062.15 | E143: 85418718.27 | F143: 34749230.92 | G143: 289745.59 | H143: 34441047.69 | I143: 11394981.32 | N143: =SUM(N88:N142) -> 4098203.672 | O143: 1416952.294 | P143: 257595.6092 | Q143: 5772751.574 | R143: 5723947.07 | S143: -48804.5045
A148: 2017 | C148: Book Values | J148: Service Lives | N148: Depreciation Expense | Y148: 2018
A149: Account | B149: Description | C149: Opening Net Book Value of Existing Assets as at Date of Policy Change (Jan. 1) 1 | D149: Less Fully Depreciated 7 | E149: Net Amount of Existing Assets Before Policy Change to be Depreciated | F149: Opening Gross Book Value of Assets Acquired After Policy Change 2 | G149: Less Fully Depreciated 8 | H149: Net Amount of Assets Acquired After Policy Change to be Depreciated | I149: Current Year Additions | J149: Average Remaining Life of Assets Existing Before Policy Change 3 | K149: Depreciation Rate Assets Acquired After Policy Change | L149: Life of Assets Acquired After Policy Change 4 | M149: Depreciation Rate on New Additions | N149: Depreciation Expense on Assets Existing Before Policy Change | O149: Depreciation Expense on Assets Acquired After Policy Change | P149: Depreciation Expense on Current Year Additions 5 | Q149: Total Current Year Depreciation Expense | R149: Depreciation Expense per Appendix 2-BA Fixed Assets, Column J | S149: Variance 6
C150: a | D150: b | E150: c = a-b | F150: d | G150: e | H150: f = d- e | I150: g | J150: h | K150: i = 1/h | L150: j | M150: k = 1/j | N150: l = c/h | O150: m = f/j | P150: n = g*0.5/j | Q150: o = l+m+n | R150: p | S150: q = p-o
A151: 1611 | B151: Computer Software (Formerly known as Account 1925) | C151: 366564.47 | D151: 366564.47 | E151: =C151-D151 -> 0 | F151: 1177827.51 | G151: 475678.14 | H151: =F151-G151 -> 702149.37 | I151: 710895.69 | J151: 1.79699 | K151: =IF(J151=0,0,1/J151) -> 0.556486124 | L151: 3 | M151: =IF(L151=0,0,1/L151) -> 0.3333333333 | N151: =IF(J151=0,0,+E151/J151) -> 0 | O151: =IF(L151=0,0,+H151/L151) -> 234049.79 | P151: =IF(L151=0,0,+(I151*0.5)/L151) -> 118482.615 | Q151: =IF(ISERROR(+N151+O151+P151), 0, +N151+O151+P151) -> 352532.405 | R151: 299691.8 | S151: =IF(ISERROR(+R151-Q151), 0, +R151-Q151) -> -52840.605
A152: 1612 | B152: Land Rights (Formally known as Account 1906) | C152: 792523.25 | D152: 0 | E152: =C152-D152 -> 792523.25 | F152: 809.6 | G152: 0 | H152: =F152-G152 -> 809.6 | I152: 0 | J152: 13.884 | K152: =IF(J152=0,0,1/J152) -> 0.07202535292 | L152: 25 | M152: =IF(L152=0,0,1/L152) -> 0.04 | N152: =IF(J152=0,0,+E152/J152) -> 57081.76678 | O152: =IF(L152=0,0,+H152/L152) -> 32.384 | P152: =IF(L152=0,0,+(I152*0.5)/L152) -> 0 | Q152: =IF(ISERROR(+N152+O152+P152), 0, +N152+O152+P152) -> 57114.15078 | R152: 57098.95 | S152: =IF(ISERROR(+R152-Q152), 0, +R152-Q152) -> -15.20078191
A153: 1805 | B153: Land | C153: 507272.79 | D153: 0 | E153: 507272.79 | F153: 0 | G153: 0 | H153: 0 | I153: 0 | J153: 0 | K153: 0 | L153: 0 | M153: 0 | N153: 0 | O153: 0 | P153: 0 | Q153: 0 | R153: 0 | S153: 0
A154: 1808 | B154: Buildings | C154: 0 | D154: 0 | E154: 0 | F154: 0 | G154: 0 | H154: 0 | I154: 0 | J154: 0 | K154: 0 | L154: 50 | M154: 0.02 | N154: 0 | O154: 0 | P154: 0 | Q154: 0 | R154: 0 | S154: 0
A155: 1810 | B155: Leasehold Improvements | C155: 0 | D155: 0 | E155: 0 | F155: 0 | G155: 0 | H155: 0 | I155: 0 | J155: 0 | K155: 0 | L155: 0 | M155: 0 | N155: 0 | O155: 0 | P155: 0 | Q155: 0 | R155: 0 | S155: 0
A156: 1815 | B156: Transformer Station Equipment >50 kV (1708,1740,1745) | C156: 3208341.14 | D156: 0 | E156: 3208341.14 | F156: 0 | G156: 0 | H156: 0 | I156: 0 | J156: 41.85141432 | K156: 0.02389405511 | L156: 50 | M156: 0.02 | N156: 76660.28 | O156: 0 | P156: 0 | Q156: 76660.28 | R156: 76660.28 | S156: 2.910383046e-11
A157: 1815 | B157: Transformer Station Equipment >50 kV (1715) | C157: 1273083.43 | D157: 9703.796169 | E157: 1263379.634 | F157: 16099 | G157: 0 | H157: 16099 | I157: 0 | J157: 36.6375 | K157: 0.02729443876 | L157: 45 | M157: 0.02222222222 | N157: 34483.23804 | O157: 357.7555556 | P157: 0 | Q157: 34840.9936 | R157: 36889.83 | S157: 2048.836401
A158: 1815 | B158: Transformer Station Equipment >50 kV (1815) | C158: 52975.16 | D158: 0 | F158: 18437.64 | G158: 0 | I158: 0 | J158: 36.6375 | L158: 40 | R158: 0
A159: 1815 | B159: Transformer Station Equipment >50 kV (1716) | C159: 32522.13 | D159: 32522.13 | E159: =C159-D159 -> 0 | F159: 0 | G159: 0 | H159: =F159-G159 -> 0 | I159: 0 | J159: 1.446288702 | K159: =IF(J159=0,0,1/J159) -> 0.6914248851 | L159: 10 | M159: =IF(L159=0,0,1/L159) -> 0.1 | N159: =IF(J159=0,0,+E159/J159) -> 0 | O159: =IF(L159=0,0,+H159/L159) -> 0 | P159: =IF(L159=0,0,+(I159*0.5)/L159) -> 0 | Q159: =IF(ISERROR(+N159+O159+P159), 0, +N159+O159+P159) -> 0 | R159: 0 | S159: =IF(ISERROR(+R159-Q159), 0, +R159-Q159) -> 0
A160: 1815 | B160: Transformer Station Equipment >50 kV (1717) | C160: 423006.78 | D160: 0 | E160: 423006.78 | F160: 0 | G160: 0 | H160: 0 | I160: 0 | J160: 31.71110373 | K160: 0.0315346955 | L160: 40 | M160: 0.025 | N160: 13339.39 | O160: 0 | P160: 0 | Q160: 13339.39 | R160: 13339.38 | S160: -0.01000000002
A161: 1815 | B161: Transformer Station Equipment >50 kV (1719) | C161: 433011.5 | D161: 0 | E161: 433011.5 | F161: 0 | G161: 0 | H161: 0 | I161: 56952.25 | J161: 12.11332117 | K161: 0.0825537428 | L161: 20 | M161: 0.05 | N161: 35746.72 | O161: 0 | P161: 1423.80625 | Q161: 37170.52625 | R161: 37170.54 | S161: 0.01375000001
A162: 1820 | B162: Distribution Station Equipment <50 kV | C162: 2004873.03 | D162: 696691.7768 | E162: 1308181.253 | F162: 251068.35 | G162: 0 | H162: 251068.35 | I162: 237779.78 | J162: 23.37715 | K162: 0.04277681411 | L162: 45 | M162: 0.02222222222 | N162: 55959.82629 | O162: 5579.296667 | P162: 2641.997556 | Q162: 64181.12051 | R162: 64181.12 | S162: -0.0005136836335
A163: 1820 | B163: Distribution Station Equipment <50 kV (1821) | C163: 1150231.64 | D163: 0 | E163: 1150231.64 | F163: 747052.38 | G163: 0 | H163: 747052.38 | I163: 0 | J163: 20.332 | K163: 0.04918355302 | L163: 30 | M163: 0.03333333333 | N163: 56572.47885 | O163: 24901.746 | P163: 0 | Q163: 81474.22485 | R163: 81474.53 | S163: 0.3051489277
A164: 1825 | B164: Storage Battery Equipment | C164: 0 | D164: 0 | E164: 0 | F164: 0 | G164: 0 | H164: 0 | I164: 0 | J164: 0 | K164: 0 | L164: 0 | M164: 0 | N164: 0 | O164: 0 | P164: 0 | Q164: 0 | R164: 0 | S164: 0
A165: 1830 | B165: Poles, Towers & Fixtures-Wood poles | C165: 15662777.79 | D165: 0 | E165: 15662777.79 | F165: 8196250.84 | G165: 0 | H165: 8196250.84 | I165: 2198384.63 | J165: 42.8606 | K165: 0.02333145126 | L165: 50 | M165: 0.02 | N165: 365435.3366 | O165: 163925.0168 | P165: 21983.8463 | Q165: 551344.1997 | R165: 551343.85 | S165: -0.3497495091
A166: 1830 | B166: Poles, Towers & Fixtures (1831) Concrete | C166: 1677384.09 | D166: 0 | E166: 1677384.09 | F166: 287301.59 | G166: 0 | H166: 287301.59 | I166: 57303.39 | J166: 52.953 | K166: 0.01888467131 | L166: 60 | M166: 0.01666666667 | N166: 31676.8472 | O166: 4788.359833 | P166: 477.52825 | Q166: 36942.73529 | R166: 36942.5 | S166: -0.2352874577
A167: 1835 | B167: Overhead Conductors & Devices | C167: 13378699.48 | D167: 7571006.283 | E167: 5807693.197 | F167: 6845973.92 | G167: 0 | H167: 6845973.92 | I167: 1666423.93 | J167: 23.96419 | K167: 0.04172892971 | L167: 60 | M167: 0.01666666667 | N167: 242348.8212 | O167: 114099.5653 | P167: 13886.86608 | Q167: 370335.2526 | R167: 370335.26 | S167: 0.007399226248
A168: 1835 | B168: Overhead Conductors & Devices (1836) | C168: 1684638.15 | D168: 938238.367 | E168: 746399.783 | F168: 385201.09 | G168: 0 | H168: 385201.09 | I168: 163434.81 | J168: 5.284865393 | K168: 0.1892195781 | L168: 15 | M168: 0.06666666667 | N168: 141233.452 | O168: 25680.07267 | P168: 5447.827 | Q168: 172361.3517 | R168: 172361.35 | S168: -0.001698754058
A169: 1835 | B169: Overhead Conductors & Devices (1837) | C169: 1438979.95 | D169: 861045.5699 | E169: 577934.3801 | F169: 1123408.97 | G169: 0 | H169: 1123408.97 | I169: 318838.4 | J169: 9.895229106 | K169: 0.1010588021 | L169: 30 | M169: 0.03333333333 | N169: 58405.35615 | O169: 37446.96567 | P169: 5313.973333 | Q169: 101166.2951 | R169: 101166.3 | S169: 0.004850845158
A170: 1840 | B170: Underground Conduit | C170: 6874814.57 | D170: 0 | E170: 6874814.57 | F170: 3265542.28 | G170: 0 | H170: 3265542.28 | I170: 875650.38 | J170: 44.2579 | K170: 0.02259483618 | L170: 50 | M170: 0.02 | N170: 155335.309 | O170: 65310.8456 | P170: 8756.5038 | Q170: 229402.6584 | R170: 229402.9 | S170: 0.2416495074
A171: 1845 | B171: Underground Conductors & Devices | C171: 26944944.49 | D171: 9108934.201 | E171: 17836010.29 | F171: 12298514.11 | G171: 0 | H171: 12298514.11 | I171: 2792901.46 | J171: 16.80687 | K171: 0.05949947849 | L171: 35 | M171: 0.02857142857 | N171: 1061233.31 | O171: 351386.1174 | P171: 39898.59229 | Q171: 1452518.02 | R171: 1452517.56 | S171: -0.4601998543
A172: 1845 | B172: Underground Conductors & Devices (1846) | C172: 938870.66 | D172: 354750.6877 | E172: 584119.9723 | F172: 938624.29 | G172: 0 | H172: 938624.29 | I172: 24737.13 | J172: 10.758 | K172: 0.09295408068 | L172: 30 | M172: 0.03333333333 | N172: 54296.33504 | O172: 31287.47633 | P172: 412.2855 | Q172: 85996.09687 | R172: 85996.55 | S172: 0.453128102
A173: 1850 | B173: Line Transformers (1850) Polemount | C173: 5768242.17 | D173: 265213.1726 | E173: 5503028.997 | F173: 1291692.88 | G173: 0 | H173: 1291692.88 | I173: 529629.2 | J173: 27.7477 | K173: 0.03603902305 | L173: 40 | M173: 0.025 | N173: 198323.7889 | O173: 32292.322 | P173: 6620.365 | Q173: 237236.4759 | R173: 235983.66 | S173: -1252.815905
A174: 1850 | B174: Line Transformers (1853) Padmount | C174: 9183431.8 | D174: 74458.92713 | E174: 9108972.873 | F174: 5455328.36 | G174: 0 | H174: 5455328.36 | I174: 1374990.55 | J174: 20.2046 | K174: 0.04949367966 | L174: 30 | M174: 0.03333333333 | N174: 450836.5854 | O174: 181844.2787 | P174: 22916.50917 | Q174: 655597.3732 | R174: 657267.78 | S174: 1670.406791
A175: 1855 | B175: Services (Overhead & Underground) | C175: 3519280.26 | D175: 0 | E175: 3519280.26 | F175: 3836261.41 | G175: 0 | H175: 3836261.41 | I175: 1340226.28 | J175: 19.0065 | K175: 0.05261357956 | L175: 25 | M175: 0.04 | N175: 185161.932 | O175: 153450.4564 | P175: 26804.5256 | Q175: 365416.914 | R175: 365416.76 | S175: -0.1539706418
A176: 1860 | B176: Meters | C176: 1781112.753 | D176: 69684.44364 | E176: 1711428.309 | F176: 1436003.99 | G176: 32044.98 | H176: 1403959.01 | I176: 939275.31 | J176: 11.2227258 | K176: 0.08910491245 | L176: 20 | M176: 0.05 | N176: 152496.6696 | O176: 70197.9505 | P176: 23481.88275 | Q176: 246176.5029 | R176: 246291.72 | S176: 115.2171088
A177: 1860 | B177: Meters (Smart Meters) | C177: 5017820.46 | D177: 0 | E177: 5017820.46 | F177: 530782.54 | G177: 0 | H177: 530782.54 | I177: 0 | J177: 12.57737422 | K177: 0.07950785135 | L177: 15 | M177: 0.06666666667 | N177: 398956.1233 | O177: 35385.50267 | P177: 0 | Q177: 434341.6259 | R177: 435062.34 | S177: 720.7140758
A178: 1905 | B178: Land | C178: 508969.83 | D178: 0 | E178: 508969.83 | F178: 0 | G178: 0 | H178: 0 | I178: 0 | J178: 0 | K178: 0 | L178: 0 | M178: 0 | N178: 0 | O178: 0 | P178: 0 | Q178: 0 | R178: 0 | S178: 0
A179: 1908 | B179: Buildings & Fixtures | C179: 10750312.36 | D179: 10214.94202 | E179: 10740097.42 | F179: 4046070.25 | G179: 0 | H179: 4046070.25 | I179: 403007.02 | J179: 48.07 | K179: 0.02080299563 | L179: 60 | M179: 0.01666666667 | N179: 223426.1997 | O179: 67434.50417 | P179: 3358.391833 | Q179: 294219.0957 | R179: 298056.59 | S179: 3837.494333
A180: 1910 | B180: Leasehold Improvements | C180: 0 | D180: 0 | E180: 0 | F180: 0 | G180: 0 | H180: 0 | I180: 0 | J180: 0 | K180: 0 | L180: 0 | M180: 0 | N180: 0 | O180: 0 | P180: 0 | Q180: 0 | R180: 0 | S180: 0
A181: 1915 | B181: Office Furniture & Equipment (10 years) | C181: 471375.64 | D181: 134398.5461 | E181: 336977.0939 | F181: 400669.11 | G181: 0 | H181: 400669.11 | I181: 23457.23 | J181: 6.0952 | K181: 0.1640635254 | L181: 10 | M181: 0.1 | N181: 55285.65 | O181: 40066.911 | P181: 1172.8615 | Q181: 96525.4225 | R181: 96266.13 | S181: -259.2925
A182: 1915 | B182: Office Furniture & Equipment (5 years) | C182: 0 | D182: 0 | E182: 0 | F182: 0 | G182: 0 | H182: 0 | I182: 0 | J182: 0 | K182: 0 | L182: 0 | M182: 0 | N182: 0 | O182: 0 | P182: 0 | Q182: 0 | R182: 0 | S182: 0
A183: 1920 | B183: Computer Equipment - Hardware | C183: 817650.72 | D183: 637729.0382 | E183: 179921.6818 | F183: 1046667.47 | G183: 0 | H183: 1046667.47 | I183: 332121.28 | J183: 2.957894 | K183: 0.338078376 | L183: 5 | M183: 0.2 | N183: 60827.63 | O183: 209333.494 | P183: 33212.128 | Q183: 303373.252 | R183: 309624.9 | S183: 6251.648
A184: 1920 | B184: Computer Equip.-Hardware(Post Mar. 22/04) | C184: 0 | D184: 0 | E184: 0 | F184: 0 | G184: 0 | H184: 0 | I184: 0 | J184: 0 | K184: 0 | L184: 0 | M184: 0 | N184: 0 | O184: 0 | P184: 0 | Q184: 0 | R184: 0 | S184: 0
A185: 1920 | B185: Computer Equip.-Hardware(Post Mar. 19/07) | C185: 0 | D185: 0 | E185: 0 | F185: 0 | G185: 0 | H185: 0 | I185: 0 | J185: 0 | K185: 0 | L185: 0 | M185: 0 | N185: 0 | O185: 0 | P185: 0 | Q185: 0 | R185: 0 | S185: 0
A186: 1930 | B186: Transportation Equipment (1931) | C186: 227225.06 | D186: 158869.3906 | E186: 68355.66936 | F186: 634852.11 | G186: 0 | H186: 634852.11 | I186: 177475.42 | J186: 4.1316 | K186: 0.2420369833 | L186: 8 | M186: 0.125 | N186: 16544.6 | O186: 79356.51375 | P186: 11092.21375 | Q186: 106993.3275 | R186: 94519.29 | S186: -12474.0375
A187: 1930 | B187: Transportation Equipment (1932) Large Trucks | C187: 2718355.38 | D187: 390200.7008 | E187: 2328154.679 | F187: 2526391.92 | G187: 0 | H187: 2526391.92 | I187: 699037.3 | J187: 11.46455121 | K187: 0.08722539435 | L187: 15 | M187: 0.06666666667 | N187: 203074.21 | O187: 168426.128 | P187: 23301.24333 | Q187: 394801.5813 | R187: 371724.01 | S187: -23077.57133
A188: 1930 | B188: Transportation Equipment (1933) Trailers | C188: 96505.73 | D188: 0 | E188: 96505.73 | F188: 103740 | G188: 0 | H188: 103740 | I188: 0 | J188: 18.69313315 | K188: 0.05349558 | L188: 20 | M188: 0.05 | N188: 5162.63 | O188: 5187 | P188: 0 | Q188: 10349.63 | R188: 10349.63 | S188: 1.818989404e-12
A189: 1935 | B189: Stores Equipment | C189: 39772.79 | D189: 0 | E189: 39772.79 | F189: 86865.16 | G189: 0 | H189: 86865.16 | I189: 0 | J189: 7.332363005 | K189: 0.136381682 | L189: 10 | M189: 0.1 | N189: 5424.28 | O189: 8686.516 | P189: 0 | Q189: 14110.796 | R189: 14110.79 | S189: -0.00599999999
A190: 1940 | B190: Tools, Shop & Garage Equipment | C190: 414513.9 | D190: 174764.0345 | E190: 239749.8655 | F190: 331697.56 | G190: 0 | H190: 331697.56 | I190: 92558.7 | J190: 5.817 | K190: 0.1719099192 | L190: 10 | M190: 0.1 | N190: 41215.38 | O190: 33169.756 | P190: 4627.935 | Q190: 79013.071 | R190: 79352.29 | S190: 339.219
A191: 1945 | B191: Measurement & Testing Equipment | C191: 17387.13 | D191: 17387.13 | E191: 0 | F191: 0 | G191: 0 | H191: 0 | I191: 0 | J191: 2.315761364 | K191: 0.4318234234 | L191: 5 | M191: 0.2 | N191: 0 | O191: 0 | P191: 0 | Q191: 0 | R191: 1 | S191: 1
A192: 1950 | B192: Power Operated Equipment | C192: 0 | D192: 0 | E192: 0 | F192: 0 | G192: 0 | H192: 0 | I192: 0 | J192: 0 | K192: 0 | L192: 0 | M192: 0 | N192: 0 | O192: 0 | P192: 0 | Q192: 0 | R192: 0 | S192: 0
A193: 1955 | B193: Communications Equipment | C193: 346939.53 | D193: 33333.85703 | E193: 313605.673 | F193: 939997.61 | G193: 0 | H193: 939997.61 | I193: -82063.64 | J193: 17.86590971 | K193: 0.05597252063 | L193: 20 | M193: 0.05 | N193: 17553.3 | O193: 46999.8805 | P193: -2051.591 | Q193: 62501.5895 | R193: 56687.71 | S193: -5813.8795
A194: 1955 | B194: Communication Equipment (Smart Meters) | C194: 0 | D194: 0 | E194: 0 | F194: 0 | G194: 0 | H194: 0 | I194: 0 | J194: 0 | K194: 0 | L194: 0 | M194: 0 | N194: 0 | O194: 0 | P194: 0 | Q194: 0 | R194: 0 | S194: 0
A195: 1960 | B195: Miscellaneous Equipment | C195: 5637.59 | D195: 5637.59 | E195: 0 | F195: 0 | G195: 0 | H195: 0 | I195: 0 | J195: 1.698862421 | K195: 0.5886291837 | L195: 5 | M195: 0.2 | N195: 0 | O195: 0 | P195: 0 | Q195: 0 | R195: 0 | S195: 0
A196: 1970 | B196: Load Management Controls Customer Premises | C196: 0 | D196: 0 | E196: 0 | F196: 0 | G196: 0 | H196: 0 | I196: 0 | J196: 0 | K196: 0 | L196: 0 | M196: 0 | N196: 0 | O196: 0 | P196: 0 | Q196: 0 | R196: 0 | S196: 0
A197: 1975 | B197: Load Management Controls Utility Premises | C197: 0 | D197: 0 | E197: 0 | F197: 0 | G197: 0 | H197: 0 | I197: 0 | J197: 0 | K197: 0 | L197: 0 | M197: 0 | N197: 0 | O197: 0 | P197: 0 | Q197: 0 | R197: 0 | S197: 0
A198: 1980 | B198: System Supervisor Equipment | C198: 0 | D198: 0 | E198: 0 | F198: 0 | G198: 0 | H198: 0 | I198: 0 | J198: 0 | K198: 0 | L198: 15 | M198: 0.06666666667 | N198: 0 | O198: 0 | P198: 0 | Q198: 0 | R198: 0 | S198: 0
A199: 1985 | B199: Miscellaneous Fixed Assets | C199: 0 | D199: 0 | E199: 0 | F199: 0 | G199: 0 | H199: 0 | I199: 0 | J199: 0 | K199: 0 | L199: 0 | M199: 0 | N199: 0 | O199: 0 | P199: 0 | Q199: 0 | R199: 0 | S199: 0
A200: 1990 | B200: Other Tangible Property | C200: 0 | D200: 0 | E200: 0 | F200: 0 | G200: 0 | H200: 0 | I200: 0 | J200: 0 | K200: 0 | L200: 0 | M200: 0 | N200: 0 | O200: 0 | P200: 0 | Q200: 0 | R200: 0 | S200: 0
A201: 1995 | B201: Contributions & Grants - OH | C201: -2156992.62 | D201: 0 | E201: -2156992.62 | F201: -2750895.48 | G201: 0 | H201: -2750895.48 | I201: -285001.95 | J201: 42.2419972 | K201: 0.02367312311 | L201: 50 | M201: 0.02 | N201: -51062.75184 | O201: -55017.9096 | P201: -2850.0195 | Q201: -108930.6809 | R201: -108857.4 | S201: 73.28093871
A202: 1995 | B202: Contributions & Grants - UG | C202: -9620678.232 | D202: 0 | E202: -9620678.232 | F202: -6271807.59 | G202: 0 | H202: -6271807.59 | I202: -1550879.36 | J202: 27.31208346 | K202: 0.03661383071 | L202: 35 | M202: 0.02857142857 | N202: -352249.8841 | O202: -179194.5026 | P202: -22155.41943 | Q202: -553599.8061 | R202: -553543.26 | S202: 56.54605892
A203: 1995 | B203: Contributions & Grants - Transformers | C203: -1743736.86 | D203: 0 | E203: -1743736.86 | F203: -2748583.8 | G203: 0 | H203: -2748583.8 | I203: -567346.28 | J203: 32.8561771 | K203: 0.0304356772 | L203: 40 | M203: 0.025 | N203: -53071.81219 | O203: -68714.595 | P203: -7091.8285 | Q203: -128878.2357 | R203: -128843.71 | S203: 34.52569174
A204: 1995 | B204: Contributions & Grants - Smart Meters | C204: -84686.5997 | D204: 0 | E204: -84686.5997 | F204: -240252.62 | G204: 0 | H204: -240252.62 | I204: -68256.24 | J204: 12.9015801 | K204: 0.07750988578 | L204: 15 | M204: 0.06666666667 | N204: -6564.04867 | O204: -16016.84133 | P204: -2275.208 | Q204: -24856.098 | R204: -24895.22 | S204: -39.12199645
A205: 1995 | B205: Contributions & Grants - Non-Smart Meters | C205: -85197.70933 | D205: 0 | E205: -85197.70933 | F205: -63380.21 | G205: 0 | H205: -63380.21 | I205: 0 | J205: 17.45054062 | K205: 0.0573048149 | L205: 20 | M205: 0.05 | N205: -4882.238963 | O205: -3169.0105 | P205: 0 | Q205: -8051.249463 | R205: -8051.25 | S205: -0.0005365226207
B206: Total | C206: =SUM(C151:C205) -> 106838755.6 | D206: 21911349.05 | E206: 84874431.37 | F206: 46144212.24 | G206: 507723.12 | H206: 45618051.48 | I206: 12461532.67 | N206: =SUM(N151:N205) -> 3986266.711 | O206: 1868563.747 | P206: 338889.8309 | Q206: 6193720.288 | R206: 6113096.46 | S206: -80623.82815
A212: 2018 | C212: Book Values | J212: Service Lives | N212: Depreciation Expense | Y212: 2018
A213: Account | B213: Description | C213: Opening Net Book Value of Existing Assets as at Date of Policy Change (Jan. 1) 1 | D213: Less Fully Depreciated 7 | E213: Net Amount of Existing Assets Before Policy Change to be Depreciated | F213: Opening Gross Book Value of Assets Acquired After Policy Change 2 | G213: Less Fully Depreciated 8 | H213: Net Amount of Assets Acquired After Policy Change to be Depreciated | I213: Current Year Additions | J213: Average Remaining Life of Assets Existing Before Policy Change 3 | K213: Depreciation Rate Assets Acquired After Policy Change | L213: Life of Assets Acquired After Policy Change 4 | M213: Depreciation Rate on New Additions | N213: Depreciation Expense on Assets Existing Before Policy Change | O213: Depreciation Expense on Assets Acquired After Policy Change | P213: Depreciation Expense on Current Year Additions 5 | Q213: Total Current Year Depreciation Expense | R213: Depreciation Expense per Appendix 2-BA Fixed Assets, Column J | S213: Variance 6
C214: a | D214: b | E214: c = a-b | F214: d | G214: e | H214: f = d- e | I214: g | J214: h | K214: i = 1/h | L214: j | M214: k = 1/j | N214: l = c/h | O214: m = f/j | P214: n = g*0.5/j | Q214: o = l+m+n | R214: p | S214: q = p-o
A215: 1611 | B215: Computer Software (Formerly known as Account 1925) | C215: 366564.47 | D215: 366564.47 | E215: =C215-D215 -> 0 | F215: 1888723.2 | G215: 683098.26 | H215: =F215-G215 -> 1205624.94 | I215: 288890.79 | J215: 1.79699 | K215: =IF(J215=0,0,1/J215) -> 0.556486124 | L215: 3 | M215: =IF(L215=0,0,1/L215) -> 0.3333333333 | N215: =IF(J215=0,0,+E215/J215) -> 0 | O215: =IF(L215=0,0,+H215/L215) -> 401874.98 | P215: =IF(L215=0,0,+(I215*0.5)/L215) -> 48148.465 | Q215: =IF(ISERROR(+N215+O215+P215), 0, +N215+O215+P215) -> 450023.445 | R215: 427954.85 | S215: =IF(ISERROR(+R215-Q215), 0, +R215-Q215) -> -22068.595
A216: 1612 | B216: Land Rights (Formally known as Account 1906) | C216: 792523.25 | D216: 0 | E216: =C216-D216 -> 792523.25 | F216: 809.6 | G216: 0 | H216: =F216-G216 -> 809.6 | I216: 0 | J216: 13.884 | K216: =IF(J216=0,0,1/J216) -> 0.07202535292 | L216: 25 | M216: =IF(L216=0,0,1/L216) -> 0.04 | N216: =IF(J216=0,0,+E216/J216) -> 57081.76678 | O216: =IF(L216=0,0,+H216/L216) -> 32.384 | P216: =IF(L216=0,0,+(I216*0.5)/L216) -> 0 | Q216: =IF(ISERROR(+N216+O216+P216), 0, +N216+O216+P216) -> 57114.15078 | R216: 57098.96 | S216: =IF(ISERROR(+R216-Q216), 0, +R216-Q216) -> -15.19078191
A217: 1805 | B217: Land | C217: 507272.79 | D217: 0 | E217: 507272.79 | F217: 0 | G217: 0 | H217: 0 | I217: 0 | J217: 0 | K217: 0 | L217: 0 | M217: 0 | N217: 0 | O217: 0 | P217: 0 | Q217: 0 | R217: 0 | S217: 0
A218: 1808 | B218: Buildings | C218: 0 | D218: 0 | E218: 0 | F218: 0 | G218: 0 | H218: 0 | I218: 0 | J218: 0 | K218: 0 | L218: 50 | M218: 0.02 | N218: 0 | O218: 0 | P218: 0 | Q218: 0 | R218: 0 | S218: 0
A219: 1810 | B219: Leasehold Improvements | C219: 0 | D219: 0 | E219: 0 | F219: 0 | G219: 0 | H219: 0 | I219: 0 | J219: 0 | K219: 0 | L219: 0 | M219: 0 | N219: 0 | O219: 0 | P219: 0 | Q219: 0 | R219: 0 | S219: 0
A220: 1815 | B220: Transformer Station Equipment >50 kV (1708,1740,1745) | C220: 3208341.14 | D220: 0 | E220: 3208341.14 | F220: 0 | G220: 0 | H220: 0 | I220: 86579.81 | J220: 41.85141432 | K220: 0.02389405511 | L220: 50 | M220: 0.02 | N220: 76660.28 | O220: 0 | P220: 865.7981 | Q220: 77526.0781 | R220: 77526.08 | S220: 0.001900000076
A221: 1815 | B221: Transformer Station Equipment >50 kV (1715) | C221: 1273083.43 | D221: 9703.796169 | E221: 1263379.634 | F221: 16099 | G221: 0 | H221: 16099 | I221: 0 | J221: 36.6375 | K221: 0.02729443876 | L221: 45 | M221: 0.02222222222 | N221: 34483.23804 | O221: 357.7555556 | P221: 0 | Q221: 34840.9936 | R221: 36889.82 | S221: 2048.826401
A222: 1815 | B222: Transformer Station Equipment >50 kV (1815) | C222: 52975.16 | D222: 0 | F222: 18437.64 | G222: 0 | I222: 0 | J222: 36.6375 | L222: 40 | R222: 0
A223: 1815 | B223: Transformer Station Equipment >50 kV (1716) | C223: 32522.13 | D223: 32522.13 | E223: =C223-D223 -> 0 | F223: 0 | G223: 0 | H223: =F223-G223 -> 0 | I223: 0 | J223: 1.446288702 | K223: =IF(J223=0,0,1/J223) -> 0.6914248851 | L223: 10 | M223: =IF(L223=0,0,1/L223) -> 0.1 | N223: =IF(J223=0,0,+E223/J223) -> 0 | O223: =IF(L223=0,0,+H223/L223) -> 0 | P223: =IF(L223=0,0,+(I223*0.5)/L223) -> 0 | Q223: =IF(ISERROR(+N223+O223+P223), 0, +N223+O223+P223) -> 0 | R223: 0 | S223: =IF(ISERROR(+R223-Q223), 0, +R223-Q223) -> 0
A224: 1815 | B224: Transformer Station Equipment >50 kV (1717) | C224: 423006.78 | D224: 0 | E224: 423006.78 | F224: 0 | G224: 0 | H224: 0 | I224: 0 | J224: 31.71110373 | K224: 0.0315346955 | L224: 40 | M224: 0.025 | N224: 13339.39 | O224: 0 | P224: 0 | Q224: 13339.39 | R224: 13339.37 | S224: -0.01999999997
... 414 more rows

Sheet App.2-D_Overhead
G1: File Number: | H1: =EBNUMBER -> EB-2020-0040
G2: Exhibit: | H2: 2
G3: Tab: | H3: 2
G4: Schedule: | H4: 4
G5: Page:
G7: Date: | H7: 2020-08-31
A9: Appendix 2-D
A10: Overhead Expense
A12: Applicants are to provide a breakdown of OM&A before capitalization in the below table. OM&A before capitalization may be broken down by cost center, program, drivers or another format best suited to focus on capitalized vs. uncapitalized OM&A.
A14: OM&A Before Capitalization
B15: =F15-4 -> 2015 | C15: =G15-4 -> 2016 | D15: =H15-4 -> 2017 | E15: =H15-3 -> 2018 | F15: =H15-2 -> 2019 | G15: =H15-1 -> 2020 | H15: =TestYear -> 2021
B16: Historical Year | C16: Historical Year | D16: Historical Year | E16: Historical Year | F16: Historical Year | G16: Bridge Year | H16: Test Year
A17: Operations | B17: ='App.2-JA_OM&A_Summary_Analys'!C14+B35 -> 5351194.77 | C17: ='App.2-JA_OM&A_Summary_Analys'!G14+C35 -> 5511541.55 | D17: ='App.2-JA_OM&A_Summary_Analys'!H14+D35 -> 5731188.83 | E17: ='App.2-JA_OM&A_Summary_Analys'!I14+E35 -> 5598324.39 | F17: ='App.2-JA_OM&A_Summary_Analys'!J14+F35 -> 6087978.89 | G17: ='App.2-JA_OM&A_Summary_Analys'!K14+G35 -> 6042982.551 | H17: ='App.2-JA_OM&A_Summary_Analys'!L14+H35 -> 5972899.22
A18: Maintenance | B18: ='App.2-JA_OM&A_Summary_Analys'!C15 -> 2345781.9 | C18: ='App.2-JA_OM&A_Summary_Analys'!G15 -> 2203115.31 | D18: ='App.2-JA_OM&A_Summary_Analys'!H15 -> 2660236.27 | E18: ='App.2-JA_OM&A_Summary_Analys'!I15 -> 2589111.95 | F18: ='App.2-JA_OM&A_Summary_Analys'!J15 -> 2678573.49 | G18: ='App.2-JA_OM&A_Summary_Analys'!K15 -> 2567274.633 | H18: ='App.2-JA_OM&A_Summary_Analys'!L15 -> 2474832
A19: Billing and Collecting | B19: ='App.2-JA_OM&A_Summary_Analys'!C19 -> 5283210.3 | C19: ='App.2-JA_OM&A_Summary_Analys'!G19 -> 5295776.91 | D19: ='App.2-JA_OM&A_Summary_Analys'!H19 -> 5620257.13 | E19: ='App.2-JA_OM&A_Summary_Analys'!I19 -> 5717281.15 | F19: ='App.2-JA_OM&A_Summary_Analys'!J19 -> 5966076.21 | G19: ='App.2-JA_OM&A_Summary_Analys'!K19 -> 6406031.597 | H19: ='App.2-JA_OM&A_Summary_Analys'!L19 -> 6529107
A20: Community Relations | B20: ='App.2-JA_OM&A_Summary_Analys'!C20 -> 82819.02 | C20: ='App.2-JA_OM&A_Summary_Analys'!G20 -> 99713.9 | D20: ='App.2-JA_OM&A_Summary_Analys'!H20 -> 161253.35 | E20: ='App.2-JA_OM&A_Summary_Analys'!I20 -> 132561.33 | F20: ='App.2-JA_OM&A_Summary_Analys'!J20 -> 133275.75 | G20: ='App.2-JA_OM&A_Summary_Analys'!K20 -> 129200 | H20: ='App.2-JA_OM&A_Summary_Analys'!L20 -> 92200
A21: Administration & General | B21: ='App.2-JA_OM&A_Summary_Analys'!C21+B34 -> 6234765.165 | C21: ='App.2-JA_OM&A_Summary_Analys'!G21+C34 -> 6795959.696 | D21: ='App.2-JA_OM&A_Summary_Analys'!H21+D34 -> 6759615.188 | E21: ='App.2-JA_OM&A_Summary_Analys'!I21+E34 -> 6690844.792 | F21: ='App.2-JA_OM&A_Summary_Analys'!J21+F34 -> 6969193.312 | G21: ='App.2-JA_OM&A_Summary_Analys'!K21+G34 -> 7374877.668 | H21: ='App.2-JA_OM&A_Summary_Analys'!L21+H34 -> 7707472.78
A27: Total OM&A Before Capitalization (B) | B27: =SUM(B17:B26) -> 19297771.16 | C27: 19906107.37 | D27: =SUM(D17:D26) -> 20932550.77 | E27: =SUM(E17:E26) -> 20728123.61 | F27: =SUM(F17:F26) -> 21835097.65 | G27: =SUM(G17:G26) -> 22520366.45 | H27: =SUM(H17:H26) -> 22776511
A29: Applicants are to provide a breakdown of capitalized OM&A in the below table. Capitalized OM&A may be broken down using the categories listed in the table below if possible. Otherwise, applicants are to provide its own break down of capitalized OM&A.
A31: Capitalized OM&A | G31: Directly | I31: Explanation for Change in Overhead Capitalized
B32: =F32-4 -> 2015 | C32: =G32-4 -> 2016 | D32: =I32-4 -> 2017 | E32: =I32-3 -> 2018 | F32: =I32-2 -> 2019 | G32: =I32-1 -> 2020 | H32: =TestYear -> 2021 | I32: =TestYear -> 2021 | J32: Attributable?
B33: Historical Year | C33: Historical Year | D33: Historical Year | E33: Historical Year | F33: Historical Year | G33: Bridge Year | H33: Test Year | I33: Test Year | J33: (Yes/No)
A34: Employee benefits | B34: 1383616.235 | C34: 1659370.906 | D34: 1665078.228 | E34: 1567491.912 | F34: 1573989.872 | G34: 1702716.016 | H34: 1788329.78 | J34: Yes
A35: Fleet costs | B35: 1040713.97 | C35: 1100216.73 | D35: 999034.69 | E35: 1140036.96 | F35: 1102301.78 | G35: 1194258.569 | H35: 1254171.221
A36: initial delivery and handling costs
A37: costs of testing whether the asset is functioning properly
A38: professional fees
A40: costs of opening a new facility
A41: costs of introducing a new product or service (including costs of advertising and promotional activities)
A42: costs of conducting business in a new location or with a new class of customer (including costs of staff training)
A43: administration and other general overhead costs
A45: Insert description of additional item(s) and new rows if needed
A47: Total Capitalized OM&A (A) | B47: =SUM(B34:B46) -> 2424330.205 | C47: 2759587.636 | D47: 2664112.918 | E47: 2707528.872 | F47: 2676291.652 | G47: 2896974.585 | H47: 3042501 | I47: =SUM(I34:I46) -> 0
A49: % of Capitalized OM&A (=A/B) | B49: =IF(ISERROR(B47/B27),"0%",B47/B27) -> 0.125627472 | C49: 0.1386301995 | D49: 0.1272712986 | E49: 0.1306210308 | F49: 0.122568339 | G49: 0.128637986 | H49: 0.1335806437 | I49: =IF(ISERROR(I47/H27),"0%",I47/H27) -> 0

Sheet App.2-EA_Account 1575 (2015) (hidden)
H1: File Number: | I1: =EBNUMBER -> EB-2020-0040
H2: Exhibit:
H3: Tab:
H4: Schedule:
H5: Page:
H7: Date:
A9: Appendix 2-EA
A10: Account 1575 - IFRS-CGAAP Transitional PP&E Amounts
A11: 2015 Adopters of IFRS for Financial Reporting Purposes
A13: For applicants that adopted IFRS on January 1, 2015 for financial reporting purposes
B17: 2014 | C17: =TestYear-3 -> 2018 | D17: =TestYear-2 -> 2019 | E17: =CONCATENATE(TestYear-1," Bridge Year") -> 2020 Bridge Year | F17: =CONCATENATE(TestYear," Rebasing Year") -> 2021 Rebasing Year
A18: Reporting Basis | B18: CGAAP | C18: CGAAP | D18: CGAAP | E18: MIFRS | F18: MIFRS
B19: Actual | C19: Actual | D19: Actual | E19: Forecast | F19: Forecast
D20: $ | E20: $
A21: PP&E Values under CGAAP
A22: Opening net PP&E - Note 1 | C22: =+B25 -> 0 | D22: =+C25 -> 0 | E22: =+D25 -> 0
A23: Net Additions - Note 4
A24: Net Depreciation (amounts should be negative) - Note 4
A25: Closing net PP&E (1) | B25: =SUM(B22:B24) -> 0 | C25: =SUM(C22:C24) -> 0 | D25: =SUM(D22:D24) -> 0 | E25: =SUM(E22:E24) -> 0
A27: PP&E Values under MIFRS (Starts from 2014, the transition year)
A28: Opening net PP&E - Note 1 | C28: =+B31 -> 0 | D28: =+C31 -> 0 | E28: =+D31 -> 0
A29: Net Additions - Note 4
A30: Net Depreciation (amounts should be negative) - Note 4
A31: Closing net PP&E (2) | B31: =SUM(B28:B30) -> 0 | C31: =SUM(C28:C30) -> 0 | D31: =SUM(D28:D30) -> 0 | E31: =SUM(E28:E30) -> 0
A33: Difference in Closing net PP&E, former CGAAP vs. revised CGAAP | B33: =B25-B31 -> 0 | C33: =C25-C31 -> 0 | D33: =D25-D31 -> 0 | E33: =E25-E31 -> 0
A36: Effect on Deferral and Variance Account Rate Riders
A37: Closing balance in Account 1575 | F37: =IF(ISERROR(E33), 0, E33) -> 0 | H37: WACC
A38: Return on Rate Base Associated with Account 1575 balance at WACC - Note 2 | F38: =E33*I37*I38 -> 0 | G38: # of years of rate rider disposition period
A39: Amount included in Deferral and Variance Account Rate Rider Calculation | F39: =F37+F38 -> 0
A41: Notes:
A42: 1 For an applicant that adopted IFRS on January 1, 2015, the PP&E values as of January 1, 2014 under both CGAAP and MIFRS should be the same.
A43: 2 Return on rate base associated with deferred balance is calculated as:
A44: the deferral account closing balance as of 2017 x WACC X # of years of rate rider disposition period
A45: * Please note that the calculation should be adjusted once WACC is updated and finalized in the rate application.
A46: 3 The PP&E deferral account is cleared by including the total balance in the deferral and variance account rate rider calculation.
A47: 4 Net additions are additions net of disposals; Net depreciation is additions to depreciation net of disposals.

Sheet App.2-EB_Account 1576 (2012) (hidden)
K1: File Number: | L1: =EBNUMBER -> EB-2020-0040
K2: Exhibit:
K3: Tab:
K4: Schedule:
K5: Page:
K7: Date:
A9: Appendix 2-EB
A10: Account 1576 - Accounting Changes under CGAAP
A11: 2012 Changes in Accounting Policies under CGAAP
A13: For applicants with a balance in Account 1576 and made capitalization and depreciation expense accounting policy changes under CGAAP effective January 1, 2012. This is the first time the applicant is rebasing with changes in these accounting policies.
B17: Prior Years Rebasing | C17: 2012 | D17: 2013 | E17: 2014 | F17: 2015 | G17: 2016 | H17: 2017 | I17: 2018 Rebasing Year
A18: Reporting Basis | B18: CGAAP | C18: CGAAP | D18: CGAAP | E18: CGAAP | F18: MIFRS - Note 5 | G18: MIFRS | H18: MIFRS | I18: MIFRS
B19: Forecast | C19: Actual | D19: Actual | E19: Actual | F19: Actual | G19: Actual | H19: Forecast | I19: Forecast
C20: $ | D20: $ | E20: $ | F20: $ | G20: $ | H20: $
A21: PP&E Values under former CGAAP
A22: Opening net PP&E - Note 1 | D22: =+C25 -> 0 | E22: =+D25 -> 0 | F22: =+E25 -> 0 | G22: =+F25 -> 0 | H22: =+G25 -> 0
A23: Net Additions - Note 4
A24: Net Depreciation (amounts should be negative) - Note 4
A25: Closing net PP&E (1) | C25: =C22+C23+C24 -> 0 | D25: 0 | E25: 0 | F25: 0 | G25: 0 | H25: 0
A27: PP&E Values under revised CGAAP (Starts from 2012)
A28: Opening net PP&E - Note 1 | D28: =+C31 -> 0 | E28: =+D31 -> 0 | F28: =+E31 -> 0 | G28: =+F31 -> 0 | H28: =+G31 -> 0
A29: Net Additions - Note 4
A30: Net Depreciation (amounts should be negative) - Note 4
A31: Closing net PP&E (2) | C31: =SUM(C28:C30) -> 0 | D31: 0 | E31: 0 | F31: 0 | G31: 0 | H31: 0
A33: Difference in Closing net PP&E, former CGAAP vs. revised CGAAP | C33: =C25-C31 -> 0 | D33: 0 | E33: 0 | F33: 0 | G33: 0 | H33: 0
A36: Effect on Deferral and Variance Account Rate Riders
A37: Closing balance in Account 1576 | I37: =IF(ISERROR(H33), 0, H33) -> 0 | K37: WACC
A38: Return on Rate Base Associated with Account 1576 balance at WACC - Note 2 | I38: =H33*L37*L38 -> 0 | J38: # of years of rate rider disposition period
A39: Amount included in Deferral and Variance Account Rate Rider Calculation | I39: =I37+I38 -> 0
A41: Notes:
A42: 1 For an applicant that made the capitalization and depreciation expense accounting policy changes on January 1, 2012, the PP&E values as of January 1, 2012 under both former CGAAP and revised CGAAP should be the same.
A43: 2 Return on rate base associated with Account 1576 balance is calculated as:
A44: the variance account ending balance as of 2017 x WACC X # of years of rate rider disposition period
A45: * Please note that the calculation should be adjusted once WACC is updated and finalized in the rate application.
A46: 3 Account 1576 is cleared by including the total balance in the deferral and variance account rate rider calculation.
A47: 4 Net additions are additions net of disposals; Net depreciation is additions to depreciation net of disposals.
A48: 5 Differences due to the adoption of MIFRS are to be shown separately in Account 1575 in Appendix 2-EA as Accounts 1575 and 1576 cannot be used interchangably.

Sheet App.2-EC_Account 1576 (2013) (hidden)
J1: File Number: | K1: =EBNUMBER -> EB-2020-0040
J2: Exhibit:
J3: Tab:
J4: Schedule:
J5: Page:
J7: Date:
A9: Appendix 2-EC
A10: Account 1576 - Accounting Changes under CGAAP
A11: 2013 Changes in Accounting Policies under CGAAP
A13: For applicants with a balance in Account 1576 and made capitalization and depreciation expense accounting policy changes under CGAAP effective January 1, 2013. This is the first time the applicant is rebasing with changes in these accounting policies.
B17: Prior Years Rebasing | C17: 2013 | D17: 2014 | E17: 2015 | F17: 2016 | G17: 2017 | H17: 2018 Rebasing Year
A18: Reporting Basis | B18: CGAAP | C18: CGAAP | D18: CGAAP | E18: MIFRS - Note 5 | F18: MIFRS | G18: MIFRS | H18: MIFRS
B19: Actual | C19: Actual | D19: Actual | E19: Actual | F19: Actual | G19: Forecast | H19: Forecast
C20: $ | D20: $ | F20: $
A21: PP&E Values under former CGAAP
A22: Opening net PP&E - Note 1 | D22: =+C25 -> 0 | E22: =+D25 -> 0 | F22: =+E25 -> 0 | G22: =+F25 -> 0
A23: Net Additions - Note 4
A24: Net Depreciation (amounts should be negative) - Note 4
A25: Closing net PP&E (1) | C25: =C22+C23+C24 -> 0 | D25: =D22+D23+D24 -> 0 | E25: =E22+E23+E24 -> 0 | F25: =F22+F23+F24 -> 0 | G25: =G22+G23+G24 -> 0
A27: PP&E Values under revised CGAAP (Starts from 2012)
A28: Opening net PP&E - Note 1 | D28: =+C31 -> 0 | E28: =+D31 -> 0 | F28: =+E31 -> 0 | G28: =+F31 -> 0
A29: Net Additions - Note 4
A30: Net Depreciation (amounts should be negative) - Note 4
A31: Closing net PP&E (2) | C31: =SUM(C28:C30) -> 0 | D31: =SUM(D28:D30) -> 0 | E31: =SUM(E28:E30) -> 0 | F31: =SUM(F28:F30) -> 0 | G31: =SUM(G28:G30) -> 0
A33: Difference in Closing net PP&E, former CGAAP vs. revised CGAAP | C33: =C25-C31 -> 0 | D33: =D25-D31 -> 0 | E33: =E25-E31 -> 0 | F33: =F25-F31 -> 0 | G33: =G25-G31 -> 0
A36: Effect on Deferral and Variance Account Rate Riders
A37: Closing balance in Account 1576 | H37: =IF(ISERROR(G33), 0, G33) -> 0 | J37: WACC
A38: Return on Rate Base Associated with Account 1576 balance at WACC - Note 2 | H38: =G33*K37*K38 -> 0 | I38: # of years of rate rider disposition period
A39: Amount included in Deferral and Variance Account Rate Rider Calculation | H39: =H37+H38 -> 0
A41: Notes:
A42: 1 For an applicant that made the capitalization and depreciation expense accounting policy changes on January 1, 2013, the PP&E values as of January 1, 2013 under both former CGAAP and revised CGAAP should be the same.
A43: 2 Return on rate base associated with Account 1576 balance is calculated as:
A44: the variance account ending balance as of 2017 x WACC X # of years of rate rider disposition period
A45: * Please note that the calculation should be adjusted once WACC is updated and finalized in the rate application.
A46: 3 Account 1576 is cleared by including the total balance in the deferral and variance account rate rider calculation.
A47: 4 Net additions are additions net of disposals; Net depreciation is additions to depreciation net of disposals.
A48: 5 Differences due to the adoption of MIFRS are to be shown separately in Account 1575 in Appendix 2-EA as Accounts 1575 and 1576 cannot be used interchangably.

Sheet App.2-FA Proposed REG Invest.
K1: File Number: | L1: =EBNUMBER -> EB-2020-0040
K2: Exhibit:
K3: Tab:
A4: TO BE UPDATED AT DRAFT RATE ORDER STAGE | K4: Schedule:
K5: Page:
K7: Date:
A9: Appendix 2-FA
A10: Renewable Generation Connection Investment Summary (past investments or over the future rate setting period)
A12: Enter the details of the Renewable Generation Connection projects as described in the appropriate section of the Filing Requirements.
A13: All costs entered on this page will be transferred to the appropriate cells in the appendices that follow.
A14: For Part A, Renewable Enabling Improvements (REI), these amounts will be transferred to Appendix 2 - FB
A15: For Part B, Expansions, these amounts will be transferred to Appendix 2 - FC
A17: If there are more than five projects proposed to be in-service in a certain year, please amend the tables below and ensure that the formulae for the Total Amounts in any given rate year are updated.
A18: Based on the current methodology and allocation, amounts allocated represent 6% for REI Connection Investments and 17% for Expansion Investments. (EB-2009-0349, 6-10-2010, p. 15, note 9)
A20: There are two scenarios described below. Separate sets of spreadsheets (2-FA, 2-FB, 2-FC) should be submited for each scenario as required.
A21: Scenario 1: | B21: Past Investments with No Recovery. The distributor has made investments in the past (during the IRM Years), but has not received approval for these projects and therefore did not receive
B22: revenue from the IESO under Regulation 330/09 and did not receive ratepayer revenue for the direct benefit portion of the investment.
B23: The WCA percentage, debt percentages, interest rates, kWh, tax rates, amortization period, CCA Class and percentage should correspond to the distributor's last Cost of Service approval.
B24: The Direct Benefit portion of the calculated Revenue Requirement for each year should be summed and can be applied for recovery from the distributor's ratepayers through a rate rider.
B25: The Provincial Recovery portion of the calculated Revenue Requirement for each year should be summed and can be applied for recovery from the IESO through a separate order.
A27: Scenario 2: | B27: ="Investments in the Test Year and Beyond. Distributor plans to make investments in " & TestYear & " and/or beyond. These investments should be added to 2-FA in the appropriate year." -> Investments in the Test Year and Beyond. Distributor plans to make investments in 2021 and/or beyond. These investments should be added to 2-FA in the appropriate year.
B28: The WCA percentage, debt percentages, interest rates, kWh, tax rates, amortization period, CCA Class and percentage should correspond to the distributor's current application.
A30: Part A | C30: =IF(C31=TestYear, "Test Year", "") ->  | H30: Test Year
A31: REI Investments (Direct Benefit at 6%) | C31: =D31-1 -> 2016 | D31: =E31-1 -> 2017 | E31: =F31-1 -> 2018 | F31: =G31-1 -> 2019 | G31: =H31-1 -> 2020 | H31: =TestYear -> 2021 | I31: =H31+1 -> 2022 | J31: =I31+1 -> 2023 | K31: =J31+1 -> 2024 | L31: =K31+1 -> 2025
A32: Project 1
A33: Name: REI Connection Project
A34: Capital Costs | C34: 0 | D34: 0 | E34: 0 | F34: 0 | G34: 0 | H34: 0 | I34: 0 | J34: 0 | K34: 0 | L34: 0
A35: OM&A (Start-Up) | C35: 0 | D35: 0 | E35: 0 | F35: 0 | G35: 0 | H35: 0 | I35: 0 | J35: 0 | K35: 0 | L35: 0
A36: OM&A (Ongoing) | C36: 0 | D36: 0 | E36: 0 | F36: 0 | G36: 0 | H36: 0 | I36: 0 | J36: 0 | K36: 0 | L36: 0
A38: Project 2
A39: Name: REI Connection Project
A40: Capital Costs | C40: 0 | D40: 0 | E40: 0 | F40: 0 | G40: 0 | H40: 0 | I40: 0 | J40: 0 | K40: 0 | L40: 0
A41: OM&A (Start-Up) | C41: 0 | D41: 0 | E41: 0 | F41: 0 | G41: 0 | H41: 0 | I41: 0 | J41: 0 | K41: 0 | L41: 0
A42: OM&A (Ongoing) | C42: 0 | D42: 0 | E42: 0 | F42: 0 | G42: 0 | H42: 0 | I42: 0 | J42: 0 | K42: 0 | L42: 0
A44: Project 3
A45: Name: REI Connection Project
A46: Capital Costs | C46: 0 | D46: 0 | E46: 0 | F46: 0 | G46: 0 | H46: 0 | I46: 0 | J46: 0 | K46: 0 | L46: 0
A47: OM&A (Start-Up) | C47: 0 | D47: 0 | E47: 0 | F47: 0 | G47: 0 | H47: 0 | I47: 0 | J47: 0 | K47: 0 | L47: 0
A48: OM&A (Ongoing) | C48: 0 | D48: 0 | E48: 0 | F48: 0 | G48: 0 | H48: 0 | I48: 0 | J48: 0 | K48: 0 | L48: 0
A50: Project 4
A51: Name: REI Connection Project
A52: Capital Costs | C52: 0 | D52: 0 | E52: 0 | F52: 0 | G52: 0 | H52: 0 | I52: 0 | J52: 0 | K52: 0 | L52: 0
A53: OM&A (Start-Up) | C53: 0 | D53: 0 | E53: 0 | F53: 0 | G53: 0 | H53: 0 | I53: 0 | J53: 0 | K53: 0 | L53: 0
A54: OM&A (Ongoing) | C54: 0 | D54: 0 | E54: 0 | F54: 0 | G54: 0 | H54: 0 | I54: 0 | J54: 0 | K54: 0 | L54: 0
A56: Project 5
A57: Name: REI Connection Project
A58: Capital Costs | C58: 0 | D58: 0 | E58: 0 | F58: 0 | G58: 0 | H58: 0 | I58: 0 | J58: 0 | K58: 0 | L58: 0
A59: OM&A (Start-Up) | C59: 0 | D59: 0 | E59: 0 | F59: 0 | G59: 0 | H59: 0 | I59: 0 | J59: 0 | K59: 0 | L59: 0
A60: OM&A (Ongoing) | C60: 0 | D60: 0 | E60: 0 | F60: 0 | G60: 0 | H60: 0 | I60: 0 | J60: 0 | K60: 0 | L60: 0
A62: Total Capital Costs | C62: =SUM(C58,C52,C46,C40,C34) -> 0 | D62: =SUM(D58,D52,D46,D40,D34) -> 0 | E62: 0 | F62: 0 | G62: 0 | H62: =SUM(H58,H52,H46,H40,H34) -> 0 | I62: =SUM(I58,I52,I46,I40,I34) -> 0 | J62: 0 | K62: 0 | L62: 0
A63: Total OM&A (Start-Up) | C63: =SUM(C59,C53,C47,C41,C35) -> 0 | D63: 0 | E63: 0 | F63: 0 | G63: 0 | H63: =SUM(H59,H53,H47,H41,H35) -> 0 | I63: 0 | J63: 0 | K63: 0 | L63: 0
A64: Total OM&A (Ongoing) | C64: =SUM(C60,C54,C48,C42,C36) -> 0 | D64: 0 | E64: 0 | F64: 0 | G64: 0 | H64: =SUM(H60,H54,H48,H42,H36) -> 0 | I64: 0 | J64: 0 | K64: 0 | L64: 0
A67: Part B | C67: =IF(C68=TestYear, "Test Year", "") ->  | H67: Test Year
A68: Expansion Investments (Direct Benefit at 17%) | C68: =D68-1 -> 2016 | D68: =E68-1 -> 2017 | E68: =F68-1 -> 2018 | F68: =G68-1 -> 2019 | G68: =H68-1 -> 2020 | H68: =TestYear -> 2021 | I68: =H68+1 -> 2022 | J68: =I68+1 -> 2023 | K68: =J68+1 -> 2024 | L68: =K68+1 -> 2025
A69: Project 1
A70: Name: Expansion Connection Project
A71: Capital Costs | C71: 0 | D71: 0 | E71: 0 | F71: 0 | G71: 0 | H71: 0 | I71: 0 | J71: 0 | K71: 0 | L71: 0
A72: OM&A (Start-Up) | C72: 0 | D72: 0 | E72: 0 | F72: 0 | G72: 0 | H72: 0 | I72: 0 | J72: 0 | K72: 0 | L72: 0
A73: OM&A (Ongoing) | C73: 0 | D73: 0 | E73: 0 | F73: 0 | G73: 0 | H73: 0 | I73: 0 | J73: 0 | K73: 0 | L73: 0
A75: Project 2
A76: Name: Expansion Connection Project
A77: Capital Costs | C77: 0 | D77: 0 | E77: 0 | F77: 0 | G77: 0 | H77: 0 | I77: 0 | J77: 0 | K77: 0 | L77: 0
A78: OM&A (Start-Up) | C78: 0 | D78: 0 | E78: 0 | F78: 0 | G78: 0 | H78: 0 | I78: 0 | J78: 0 | K78: 0 | L78: 0
A79: OM&A (Ongoing) | C79: 0 | D79: 0 | E79: 0 | F79: 0 | G79: 0 | H79: 0 | I79: 0 | J79: 0 | K79: 0 | L79: 0
A81: Project 3
A82: Name: Expansion Connection Project
A83: Capital Costs | C83: 0 | D83: 0 | E83: 0 | F83: 0 | G83: 0 | H83: 0 | I83: 0 | J83: 0 | K83: 0 | L83: 0
A84: OM&A (Start-Up) | C84: 0 | D84: 0 | E84: 0 | F84: 0 | G84: 0 | H84: 0 | I84: 0 | J84: 0 | K84: 0 | L84: 0
A85: OM&A (Ongoing) | C85: 0 | D85: 0 | E85: 0 | F85: 0 | G85: 0 | H85: 0 | I85: 0 | J85: 0 | K85: 0 | L85: 0
A87: Project 4
A88: Name: Expansion Connection Project
A89: Capital Costs | C89: 0 | D89: 0 | E89: 0 | F89: 0 | G89: 0 | H89: 0 | I89: 0 | J89: 0 | K89: 0 | L89: 0
A90: OM&A (Start-Up) | C90: 0 | D90: 0 | E90: 0 | F90: 0 | G90: 0 | H90: 0 | I90: 0 | J90: 0 | K90: 0 | L90: 0
A91: OM&A (Ongoing) | C91: 0 | D91: 0 | E91: 0 | F91: 0 | G91: 0 | H91: 0 | I91: 0 | J91: 0 | K91: 0 | L91: 0
A93: Project 5
A94: Name: Expansion Connection Project
A95: Capital Costs | C95: 0 | D95: 0 | E95: 0 | F95: 0 | G95: 0 | H95: 0 | I95: 0 | J95: 0 | K95: 0 | L95: 0
A96: OM&A (Start-Up) | C96: 0 | D96: 0 | E96: 0 | F96: 0 | G96: 0 | H96: 0 | I96: 0 | J96: 0 | K96: 0 | L96: 0
A97: OM&A (Ongoing) | C97: 0 | D97: 0 | E97: 0 | F97: 0 | G97: 0 | H97: 0 | I97: 0 | J97: 0 | K97: 0 | L97: 0
A99: Total Capital Costs | C99: =SUM(C95,C89,C83,C77,C71) -> 0 | D99: =SUM(D95,D89,D83,D77,D71) -> 0 | E99: 0 | F99: 0 | G99: 0 | H99: =SUM(H95,H89,H83,H77,H71) -> 0 | I99: =SUM(I95,I89,I83,I77,I71) -> 0 | J99: 0 | K99: 0 | L99: 0
A100: Total OM&A (Start-Up) | C100: =SUM(C96,C90,C84,C78,C72) -> 0 | D100: 0 | E100: 0 | F100: 0 | G100: 0 | H100: =SUM(H96,H90,H84,H78,H72) -> 0 | I100: 0 | J100: 0 | K100: 0 | L100: 0
A101: Total OM&A (Ongoing) | C101: =SUM(C97,C91,C85,C79,C73) -> 0 | D101: 0 | E101: 0 | F101: 0 | G101: 0 | H101: =SUM(H97,H91,H85,H79,H73) -> 0 | I101: 0 | J101: 0 | K101: 0 | L101: 0

Sheet Hidden_REG Invest. (hidden)
A1: Utility Name | B1: EB Number | C1: Test Year | D1: Bridge Year | E1: Last Rebasing Year | F1: Renewable Generation Connection Investment Summary | G1: Year | H1: Amount
A2: ='LDC Info'!$E$14 -> Niagara Peninsula Energy Inc. | B2: =EBNUMBER -> EB-2020-0040 | C2: =TestYear -> 2021 | D2: =BridgeYear -> 2020 | E2: =RebaseYear -> 2015 | F2: REI Investments_A_Total Capital Costs | G2: ='App.2-FA Proposed REG Invest.'!C31 -> 2016 | H2: ='App.2-FA Proposed REG Invest.'!C62 -> 0
A3: ='LDC Info'!$E$14 -> Niagara Peninsula Energy Inc. | B3: EB-2020-0040 | C3: 2021 | D3: 2020 | E3: 2015 | F3: REI Investments_A_Total OM&A Start-Up | G3: ='App.2-FA Proposed REG Invest.'!C31 -> 2016 | H3: ='App.2-FA Proposed REG Invest.'!C63 -> 0
A4: ='LDC Info'!$E$14 -> Niagara Peninsula Energy Inc. | B4: EB-2020-0040 | C4: 2021 | D4: 2020 | E4: 2015 | F4: REI Investments_A_Total OM&A Ongoing | G4: ='App.2-FA Proposed REG Invest.'!C31 -> 2016 | H4: ='App.2-FA Proposed REG Invest.'!C64 -> 0
A5: ='LDC Info'!$E$14 -> Niagara Peninsula Energy Inc. | B5: EB-2020-0040 | C5: 2021 | D5: 2020 | E5: 2015 | F5: REI Investments_A_Total Capital Costs | G5: ='App.2-FA Proposed REG Invest.'!D31 -> 2017 | H5: ='App.2-FA Proposed REG Invest.'!D62 -> 0
A6: ='LDC Info'!$E$14 -> Niagara Peninsula Energy Inc. | B6: EB-2020-0040 | C6: 2021 | D6: 2020 | E6: 2015 | F6: REI Investments_A_Total OM&A Start-Up | G6: ='App.2-FA Proposed REG Invest.'!D31 -> 2017 | H6: ='App.2-FA Proposed REG Invest.'!D63 -> 0
A7: ='LDC Info'!$E$14 -> Niagara Peninsula Energy Inc. | B7: EB-2020-0040 | C7: 2021 | D7: 2020 | E7: 2015 | F7: REI Investments_A_Total OM&A Ongoing | G7: ='App.2-FA Proposed REG Invest.'!D31 -> 2017 | H7: ='App.2-FA Proposed REG Invest.'!D64 -> 0
A8: ='LDC Info'!$E$14 -> Niagara Peninsula Energy Inc. | B8: EB-2020-0040 | C8: 2021 | D8: 2020 | E8: 2015 | F8: REI Investments_A_Total Capital Costs | G8: ='App.2-FA Proposed REG Invest.'!E31 -> 2018 | H8: ='App.2-FA Proposed REG Invest.'!E62 -> 0
A9: ='LDC Info'!$E$14 -> Niagara Peninsula Energy Inc. | B9: EB-2020-0040 | C9: 2021 | D9: 2020 | E9: 2015 | F9: REI Investments_A_Total OM&A Start-Up | G9: ='App.2-FA Proposed REG Invest.'!E31 -> 2018 | H9: ='App.2-FA Proposed REG Invest.'!E63 -> 0
A10: ='LDC Info'!$E$14 -> Niagara Peninsula Energy Inc. | B10: EB-2020-0040 | C10: 2021 | D10: 2020 | E10: 2015 | F10: REI Investments_A_Total OM&A Ongoing | G10: ='App.2-FA Proposed REG Invest.'!E31 -> 2018 | H10: ='App.2-FA Proposed REG Invest.'!E64 -> 0
A11: ='LDC Info'!$E$14 -> Niagara Peninsula Energy Inc. | B11: EB-2020-0040 | C11: 2021 | D11: 2020 | E11: 2015 | F11: REI Investments_A_Total Capital Costs | G11: ='App.2-FA Proposed REG Invest.'!F31 -> 2019 | H11: ='App.2-FA Proposed REG Invest.'!F62 -> 0
A12: ='LDC Info'!$E$14 -> Niagara Peninsula Energy Inc. | B12: EB-2020-0040 | C12: 2021 | D12: 2020 | E12: 2015 | F12: REI Investments_A_Total OM&A Start-Up | G12: ='App.2-FA Proposed REG Invest.'!F31 -> 2019 | H12: ='App.2-FA Proposed REG Invest.'!F63 -> 0
A13: ='LDC Info'!$E$14 -> Niagara Peninsula Energy Inc. | B13: EB-2020-0040 | C13: 2021 | D13: 2020 | E13: 2015 | F13: REI Investments_A_Total OM&A Ongoing | G13: ='App.2-FA Proposed REG Invest.'!F31 -> 2019 | H13: ='App.2-FA Proposed REG Invest.'!F64 -> 0
A14: ='LDC Info'!$E$14 -> Niagara Peninsula Energy Inc. | B14: EB-2020-0040 | C14: 2021 | D14: 2020 | E14: 2015 | F14: REI Investments_A_Total Capital Costs | G14: ='App.2-FA Proposed REG Invest.'!G31 -> 2020 | H14: ='App.2-FA Proposed REG Invest.'!G62 -> 0
A15: ='LDC Info'!$E$14 -> Niagara Peninsula Energy Inc. | B15: EB-2020-0040 | C15: 2021 | D15: 2020 | E15: 2015 | F15: REI Investments_A_Total OM&A Start-Up | G15: ='App.2-FA Proposed REG Invest.'!G31 -> 2020 | H15: ='App.2-FA Proposed REG Invest.'!G63 -> 0
A16: ='LDC Info'!$E$14 -> Niagara Peninsula Energy Inc. | B16: EB-2020-0040 | C16: 2021 | D16: 2020 | E16: 2015 | F16: REI Investments_A_Total OM&A Ongoing | G16: ='App.2-FA Proposed REG Invest.'!G31 -> 2020 | H16: ='App.2-FA Proposed REG Invest.'!G64 -> 0
A17: ='LDC Info'!$E$14 -> Niagara Peninsula Energy Inc. | B17: EB-2020-0040 | C17: 2021 | D17: 2020 | E17: 2015 | F17: REI Investments_A_Total Capital Costs | G17: ='App.2-FA Proposed REG Invest.'!H31 -> 2021 | H17: ='App.2-FA Proposed REG Invest.'!H62 -> 0
A18: ='LDC Info'!$E$14 -> Niagara Peninsula Energy Inc. | B18: EB-2020-0040 | C18: 2021 | D18: 2020 | E18: 2015 | F18: REI Investments_A_Total OM&A Start-Up | G18: ='App.2-FA Proposed REG Invest.'!H31 -> 2021 | H18: ='App.2-FA Proposed REG Invest.'!H63 -> 0
A19: ='LDC Info'!$E$14 -> Niagara Peninsula Energy Inc. | B19: EB-2020-0040 | C19: 2021 | D19: 2020 | E19: 2015 | F19: REI Investments_A_Total OM&A Ongoing | G19: ='App.2-FA Proposed REG Invest.'!H31 -> 2021 | H19: ='App.2-FA Proposed REG Invest.'!H64 -> 0
A20: ='LDC Info'!$E$14 -> Niagara Peninsula Energy Inc. | B20: EB-2020-0040 | C20: 2021 | D20: 2020 | E20: 2015 | F20: REI Investments_A_Total Capital Costs | G20: ='App.2-FA Proposed REG Invest.'!I31 -> 2022 | H20: ='App.2-FA Proposed REG Invest.'!I62 -> 0
A21: ='LDC Info'!$E$14 -> Niagara Peninsula Energy Inc. | B21: EB-2020-0040 | C21: 2021 | D21: 2020 | E21: 2015 | F21: REI Investments_A_Total OM&A Start-Up | G21: ='App.2-FA Proposed REG Invest.'!I31 -> 2022 | H21: ='App.2-FA Proposed REG Invest.'!I63 -> 0
A22: ='LDC Info'!$E$14 -> Niagara Peninsula Energy Inc. | B22: EB-2020-0040 | C22: 2021 | D22: 2020 | E22: 2015 | F22: REI Investments_A_Total OM&A Ongoing | G22: ='App.2-FA Proposed REG Invest.'!I31 -> 2022 | H22: ='App.2-FA Proposed REG Invest.'!I64 -> 0
A23: ='LDC Info'!$E$14 -> Niagara Peninsula Energy Inc. | B23: EB-2020-0040 | C23: 2021 | D23: 2020 | E23: 2015 | F23: REI Investments_A_Total Capital Costs | G23: ='App.2-FA Proposed REG Invest.'!J31 -> 2023 | H23: ='App.2-FA Proposed REG Invest.'!J62 -> 0
A24: ='LDC Info'!$E$14 -> Niagara Peninsula Energy Inc. | B24: EB-2020-0040 | C24: 2021 | D24: 2020 | E24: 2015 | F24: REI Investments_A_Total OM&A Start-Up | G24: ='App.2-FA Proposed REG Invest.'!J31 -> 2023 | H24: ='App.2-FA Proposed REG Invest.'!J63 -> 0
A25: ='LDC Info'!$E$14 -> Niagara Peninsula Energy Inc. | B25: EB-2020-0040 | C25: 2021 | D25: 2020 | E25: 2015 | F25: REI Investments_A_Total OM&A Ongoing | G25: ='App.2-FA Proposed REG Invest.'!J31 -> 2023 | H25: ='App.2-FA Proposed REG Invest.'!J64 -> 0
A26: ='LDC Info'!$E$14 -> Niagara Peninsula Energy Inc. | B26: EB-2020-0040 | C26: 2021 | D26: 2020 | E26: 2015 | F26: REI Investments_A_Total Capital Costs | G26: ='App.2-FA Proposed REG Invest.'!K31 -> 2024 | H26: ='App.2-FA Proposed REG Invest.'!K62 -> 0
A27: ='LDC Info'!$E$14 -> Niagara Peninsula Energy Inc. | B27: EB-2020-0040 | C27: 2021 | D27: 2020 | E27: 2015 | F27: REI Investments_A_Total OM&A Start-Up | G27: ='App.2-FA Proposed REG Invest.'!K31 -> 2024 | H27: ='App.2-FA Proposed REG Invest.'!K63 -> 0
A28: ='LDC Info'!$E$14 -> Niagara Peninsula Energy Inc. | B28: EB-2020-0040 | C28: 2021 | D28: 2020 | E28: 2015 | F28: REI Investments_A_Total OM&A Ongoing | G28: ='App.2-FA Proposed REG Invest.'!K31 -> 2024 | H28: ='App.2-FA Proposed REG Invest.'!K64 -> 0
A29: ='LDC Info'!$E$14 -> Niagara Peninsula Energy Inc. | B29: EB-2020-0040 | C29: 2021 | D29: 2020 | E29: 2015 | F29: REI Investments_A_Total Capital Costs | G29: ='App.2-FA Proposed REG Invest.'!L31 -> 2025 | H29: ='App.2-FA Proposed REG Invest.'!L62 -> 0
A30: ='LDC Info'!$E$14 -> Niagara Peninsula Energy Inc. | B30: EB-2020-0040 | C30: 2021 | D30: 2020 | E30: 2015 | F30: REI Investments_A_Total OM&A Start-Up | G30: ='App.2-FA Proposed REG Invest.'!L31 -> 2025 | H30: ='App.2-FA Proposed REG Invest.'!L63 -> 0
A31: ='LDC Info'!$E$14 -> Niagara Peninsula Energy Inc. | B31: EB-2020-0040 | C31: 2021 | D31: 2020 | E31: 2015 | F31: REI Investments_A_Total OM&A Ongoing | G31: ='App.2-FA Proposed REG Invest.'!L31 -> 2025 | H31: ='App.2-FA Proposed REG Invest.'!L64 -> 0
A32: ='LDC Info'!$E$14 -> Niagara Peninsula Energy Inc. | B32: EB-2020-0040 | C32: 2021 | D32: 2020 | E32: 2015 | F32: Expansion Investments_B_Total Capital Costs | G32: ='App.2-FA Proposed REG Invest.'!C31 -> 2016 | H32: ='App.2-FA Proposed REG Invest.'!C99 -> 0
A33: ='LDC Info'!$E$14 -> Niagara Peninsula Energy Inc. | B33: EB-2020-0040 | C33: 2021 | D33: 2020 | E33: 2015 | F33: Expansion Investments_B_Total OM&A Start-Up | G33: ='App.2-FA Proposed REG Invest.'!C31 -> 2016 | H33: ='App.2-FA Proposed REG Invest.'!C100 -> 0
A34: ='LDC Info'!$E$14 -> Niagara Peninsula Energy Inc. | B34: EB-2020-0040 | C34: 2021 | D34: 2020 | E34: 2015 | F34: Expansion Investments_B_Total OM&A Ongoing | G34: ='App.2-FA Proposed REG Invest.'!C31 -> 2016 | H34: ='App.2-FA Proposed REG Invest.'!C101 -> 0
A35: ='LDC Info'!$E$14 -> Niagara Peninsula Energy Inc. | B35: EB-2020-0040 | C35: 2021 | D35: 2020 | E35: 2015 | F35: Expansion Investments_B_Total Capital Costs | G35: ='App.2-FA Proposed REG Invest.'!D31 -> 2017 | H35: ='App.2-FA Proposed REG Invest.'!D99 -> 0
A36: ='LDC Info'!$E$14 -> Niagara Peninsula Energy Inc. | B36: EB-2020-0040 | C36: 2021 | D36: 2020 | E36: 2015 | F36: Expansion Investments_B_Total OM&A Start-Up | G36: ='App.2-FA Proposed REG Invest.'!D31 -> 2017 | H36: ='App.2-FA Proposed REG Invest.'!D100 -> 0
A37: ='LDC Info'!$E$14 -> Niagara Peninsula Energy Inc. | B37: EB-2020-0040 | C37: 2021 | D37: 2020 | E37: 2015 | F37: Expansion Investments_B_Total OM&A Ongoing | G37: ='App.2-FA Proposed REG Invest.'!D31 -> 2017 | H37: ='App.2-FA Proposed REG Invest.'!D101 -> 0
A38: ='LDC Info'!$E$14 -> Niagara Peninsula Energy Inc. | B38: EB-2020-0040 | C38: 2021 | D38: 2020 | E38: 2015 | F38: Expansion Investments_B_Total Capital Costs | G38: ='App.2-FA Proposed REG Invest.'!E31 -> 2018 | H38: ='App.2-FA Proposed REG Invest.'!E99 -> 0
A39: ='LDC Info'!$E$14 -> Niagara Peninsula Energy Inc. | B39: EB-2020-0040 | C39: 2021 | D39: 2020 | E39: 2015 | F39: Expansion Investments_B_Total OM&A Start-Up | G39: ='App.2-FA Proposed REG Invest.'!E31 -> 2018 | H39: ='App.2-FA Proposed REG Invest.'!E100 -> 0
A40: ='LDC Info'!$E$14 -> Niagara Peninsula Energy Inc. | B40: EB-2020-0040 | C40: 2021 | D40: 2020 | E40: 2015 | F40: Expansion Investments_B_Total OM&A Ongoing | G40: ='App.2-FA Proposed REG Invest.'!E31 -> 2018 | H40: ='App.2-FA Proposed REG Invest.'!E101 -> 0
A41: ='LDC Info'!$E$14 -> Niagara Peninsula Energy Inc. | B41: EB-2020-0040 | C41: 2021 | D41: 2020 | E41: 2015 | F41: Expansion Investments_B_Total Capital Costs | G41: ='App.2-FA Proposed REG Invest.'!F31 -> 2019 | H41: ='App.2-FA Proposed REG Invest.'!F99 -> 0
A42: ='LDC Info'!$E$14 -> Niagara Peninsula Energy Inc. | B42: EB-2020-0040 | C42: 2021 | D42: 2020 | E42: 2015 | F42: Expansion Investments_B_Total OM&A Start-Up | G42: ='App.2-FA Proposed REG Invest.'!F31 -> 2019 | H42: ='App.2-FA Proposed REG Invest.'!F100 -> 0
A43: ='LDC Info'!$E$14 -> Niagara Peninsula Energy Inc. | B43: EB-2020-0040 | C43: 2021 | D43: 2020 | E43: 2015 | F43: Expansion Investments_B_Total OM&A Ongoing | G43: ='App.2-FA Proposed REG Invest.'!F31 -> 2019 | H43: ='App.2-FA Proposed REG Invest.'!F101 -> 0
A44: ='LDC Info'!$E$14 -> Niagara Peninsula Energy Inc. | B44: EB-2020-0040 | C44: 2021 | D44: 2020 | E44: 2015 | F44: Expansion Investments_B_Total Capital Costs | G44: ='App.2-FA Proposed REG Invest.'!G31 -> 2020 | H44: ='App.2-FA Proposed REG Invest.'!G99 -> 0
A45: ='LDC Info'!$E$14 -> Niagara Peninsula Energy Inc. | B45: EB-2020-0040 | C45: 2021 | D45: 2020 | E45: 2015 | F45: Expansion Investments_B_Total OM&A Start-Up | G45: ='App.2-FA Proposed REG Invest.'!G31 -> 2020 | H45: ='App.2-FA Proposed REG Invest.'!G100 -> 0
A46: ='LDC Info'!$E$14 -> Niagara Peninsula Energy Inc. | B46: EB-2020-0040 | C46: 2021 | D46: 2020 | E46: 2015 | F46: Expansion Investments_B_Total OM&A Ongoing | G46: ='App.2-FA Proposed REG Invest.'!G31 -> 2020 | H46: ='App.2-FA Proposed REG Invest.'!G101 -> 0
A47: ='LDC Info'!$E$14 -> Niagara Peninsula Energy Inc. | B47: EB-2020-0040 | C47: 2021 | D47: 2020 | E47: 2015 | F47: Expansion Investments_B_Total Capital Costs | G47: ='App.2-FA Proposed REG Invest.'!H31 -> 2021 | H47: ='App.2-FA Proposed REG Invest.'!H99 -> 0
A48: ='LDC Info'!$E$14 -> Niagara Peninsula Energy Inc. | B48: EB-2020-0040 | C48: 2021 | D48: 2020 | E48: 2015 | F48: Expansion Investments_B_Total OM&A Start-Up | G48: ='App.2-FA Proposed REG Invest.'!H31 -> 2021 | H48: ='App.2-FA Proposed REG Invest.'!H100 -> 0
A49: ='LDC Info'!$E$14 -> Niagara Peninsula Energy Inc. | B49: EB-2020-0040 | C49: 2021 | D49: 2020 | E49: 2015 | F49: Expansion Investments_B_Total OM&A Ongoing | G49: ='App.2-FA Proposed REG Invest.'!H31 -> 2021 | H49: ='App.2-FA Proposed REG Invest.'!H101 -> 0
A50: ='LDC Info'!$E$14 -> Niagara Peninsula Energy Inc. | B50: EB-2020-0040 | C50: 2021 | D50: 2020 | E50: 2015 | F50: Expansion Investments_B_Total Capital Costs | G50: ='App.2-FA Proposed REG Invest.'!I31 -> 2022 | H50: ='App.2-FA Proposed REG Invest.'!I99 -> 0
A51: ='LDC Info'!$E$14 -> Niagara Peninsula Energy Inc. | B51: EB-2020-0040 | C51: 2021 | D51: 2020 | E51: 2015 | F51: Expansion Investments_B_Total OM&A Start-Up | G51: ='App.2-FA Proposed REG Invest.'!I31 -> 2022 | H51: ='App.2-FA Proposed REG Invest.'!I100 -> 0
A52: ='LDC Info'!$E$14 -> Niagara Peninsula Energy Inc. | B52: EB-2020-0040 | C52: 2021 | D52: 2020 | E52: 2015 | F52: Expansion Investments_B_Total OM&A Ongoing | G52: ='App.2-FA Proposed REG Invest.'!I31 -> 2022 | H52: ='App.2-FA Proposed REG Invest.'!I101 -> 0
A53: ='LDC Info'!$E$14 -> Niagara Peninsula Energy Inc. | B53: EB-2020-0040 | C53: 2021 | D53: 2020 | E53: 2015 | F53: Expansion Investments_B_Total Capital Costs | G53: ='App.2-FA Proposed REG Invest.'!J31 -> 2023 | H53: ='App.2-FA Proposed REG Invest.'!J99 -> 0
A54: ='LDC Info'!$E$14 -> Niagara Peninsula Energy Inc. | B54: EB-2020-0040 | C54: 2021 | D54: 2020 | E54: 2015 | F54: Expansion Investments_B_Total OM&A Start-Up | G54: ='App.2-FA Proposed REG Invest.'!J31 -> 2023 | H54: ='App.2-FA Proposed REG Invest.'!J100 -> 0
A55: ='LDC Info'!$E$14 -> Niagara Peninsula Energy Inc. | B55: EB-2020-0040 | C55: 2021 | D55: 2020 | E55: 2015 | F55: Expansion Investments_B_Total OM&A Ongoing | G55: ='App.2-FA Proposed REG Invest.'!J31 -> 2023 | H55: ='App.2-FA Proposed REG Invest.'!J101 -> 0
A56: ='LDC Info'!$E$14 -> Niagara Peninsula Energy Inc. | B56: EB-2020-0040 | C56: 2021 | D56: 2020 | E56: 2015 | F56: Expansion Investments_B_Total Capital Costs | G56: ='App.2-FA Proposed REG Invest.'!K31 -> 2024 | H56: ='App.2-FA Proposed REG Invest.'!K99 -> 0
A57: ='LDC Info'!$E$14 -> Niagara Peninsula Energy Inc. | B57: EB-2020-0040 | C57: 2021 | D57: 2020 | E57: 2015 | F57: Expansion Investments_B_Total OM&A Start-Up | G57: ='App.2-FA Proposed REG Invest.'!K31 -> 2024 | H57: ='App.2-FA Proposed REG Invest.'!K100 -> 0
A58: ='LDC Info'!$E$14 -> Niagara Peninsula Energy Inc. | B58: EB-2020-0040 | C58: 2021 | D58: 2020 | E58: 2015 | F58: Expansion Investments_B_Total OM&A Ongoing | G58: ='App.2-FA Proposed REG Invest.'!K31 -> 2024 | H58: ='App.2-FA Proposed REG Invest.'!K101 -> 0
A59: ='LDC Info'!$E$14 -> Niagara Peninsula Energy Inc. | B59: EB-2020-0040 | C59: 2021 | D59: 2020 | E59: 2015 | F59: Expansion Investments_B_Total Capital Costs | G59: ='App.2-FA Proposed REG Invest.'!L31 -> 2025 | H59: ='App.2-FA Proposed REG Invest.'!L99 -> 0
A60: ='LDC Info'!$E$14 -> Niagara Peninsula Energy Inc. | B60: EB-2020-0040 | C60: 2021 | D60: 2020 | E60: 2015 | F60: Expansion Investments_B_Total OM&A Start-Up | G60: ='App.2-FA Proposed REG Invest.'!L31 -> 2025 | H60: ='App.2-FA Proposed REG Invest.'!L100 -> 0
A61: ='LDC Info'!$E$14 -> Niagara Peninsula Energy Inc. | B61: EB-2020-0040 | C61: 2021 | D61: 2020 | E61: 2015 | F61: Expansion Investments_B_Total OM&A Ongoing | G61: ='App.2-FA Proposed REG Invest.'!L31 -> 2025 | H61: ='App.2-FA Proposed REG Invest.'!L101 -> 0

Sheet App.2-FB Calc of REG Improvemnt
Q1: File Number: | R1: =EBNUMBER -> EB-2020-0040
Q2: Exhibit:
Q3: Tab:
A4: TO BE UPDATED AT DRAFT RATE ORDER STAGE | Q4: Schedule:
Q5: Page:
Q7: Date:
A9: Appendix 2-FB
A10: Calculation of Renewable Generation Connection Direct Benefits/Provincial Amount: Renewable Enabling Improvement Investments
A12: This table will calculate the distributor/provincial shares of the investments entered in Part A of Appendix 2-FA.
A13: Enter values in green shaded cells: WCA percentage, debt percentages, interest rates, kWh, tax rates, amortization period, CCA Class and percentage.
A14: ="For historical investments, enter these variables that were approved in your last cost of service test year. For " & TestYear & " and beyond, enter variables as in the application." -> For historical investments, enter these variables that were approved in your last cost of service test year. For 2021 and beyond, enter variables as in the application.
A15: Rate Riders are not calculated for the Test Year as these assets and costs are already in the distributor's rate base/revenue requirement.
C17: =F17-1 -> 2016 | F17: =I17-1 -> 2017 | I17: =L17-1 -> 2018 | L17: =O17-1 -> 2019 | O17: =BridgeYear -> 2020 | R17: =CONCATENATE(TestYear," Test Year") -> 2021 Test Year | U17: =TestYear+1 -> 2022 | X17: =U17+1 -> 2023 | Y17: 2016 | AA17: =X17+1 -> 2024 | AD17: =AA17+1 -> 2025
D18: Direct Benefit | E18: Provincial | G18: Direct Benefit | H18: Provincial | J18: Direct Benefit | K18: Provincial | M18: Direct Benefit | N18: Provincial | P18: Direct Benefit | Q18: Provincial | S18: Direct Benefit | T18: Provincial | V18: Direct Benefit | W18: Provincial | Y18: Direct Benefit | Z18: Provincial | AB18: Direct Benefit | AC18: Provincial | AE18: Direct Benefit | AF18: Provincial
C19: Total | D19: 0.06 | E19: 0.94 | F19: Total | G19: 0.06 | H19: 0.94 | I19: Total | J19: 0.06 | K19: 0.94 | L19: Total | M19: 0.06 | N19: 0.94 | O19: Total | P19: 0.06 | Q19: 0.94 | R19: Total | S19: 0.06 | T19: 0.94 | U19: Total | V19: 0.06 | W19: 0.94 | X19: Total | Y19: 0.06 | Z19: 0.94 | AA19: Total | AB19: 0.06 | AC19: 0.94 | AD19: Total | AE19: 0.06 | AF19: 0.94
A20: Net Fixed Assets (average) | C20: =F82 ->  | D20: =C20*D19 ->  | E20: =C20*E19 ->  | F20: =G82 ->  | G20: =F20*G19 ->  | H20: =F20*H19 ->  | I20: =H82 ->  | J20: =I20*J19 ->  | K20: =I20*K19 ->  | L20: =I82 ->  | M20: =L20*M19 ->  | N20: =L20*N19 ->  | O20: =J82 ->  | P20: =O20*P19 ->  | Q20: =O20*Q19 ->  | R20: =K82 ->  | S20: =R20*S19 ->  | T20: =R20*T19 ->  | U20: =L82 ->  | V20: =U20*V19 ->  | W20: =U20*W19 ->  | X20: =M82 ->  | Y20: =X20*Y19 ->  | Z20: =X20*Z19 ->  | AA20: =N82 ->  | AB20: =AA20*AB19 ->  | AC20: =AA20*AC19 ->  | AD20: =O82 ->  | AE20: =AD20*AE19 ->  | AF20: =AD20*AF19 -> 
A21: Incremental OM&A (on-going, N/A for Provincial Recovery) | C21: ='App.2-FA Proposed REG Invest.'!C64 -> 0 | D21: =C21 -> 0 | F21: ='App.2-FA Proposed REG Invest.'!D64 -> 0 | G21: =F21 -> 0 | I21: ='App.2-FA Proposed REG Invest.'!E64 -> 0 | J21: =I21 -> 0 | L21: ='App.2-FA Proposed REG Invest.'!F64 -> 0 | M21: =L21 -> 0 | O21: ='App.2-FA Proposed REG Invest.'!G64 -> 0 | P21: =O21 -> 0 | R21: ='App.2-FA Proposed REG Invest.'!H64 -> 0 | S21: =R21 -> 0 | U21: ='App.2-FA Proposed REG Invest.'!I64 -> 0 | V21: =U21 -> 0 | X21: ='App.2-FA Proposed REG Invest.'!J64 -> 0 | Y21: =X21 -> 0 | AA21: ='App.2-FA Proposed REG Invest.'!K64 -> 0 | AB21: =AA21 -> 0 | AD21: ='App.2-FA Proposed REG Invest.'!L64 -> 0 | AE21: =AD21 -> 0
A22: Incremental OM&A (start-up, applicable for Provincial Recovery) | C22: ='App.2-FA Proposed REG Invest.'!C63 -> 0 | D22: =C22*D19 -> 0 | E22: =C22*E19 -> 0 | F22: ='App.2-FA Proposed REG Invest.'!D63 -> 0 | G22: =F22*G19 -> 0 | H22: =F22*H19 -> 0 | I22: ='App.2-FA Proposed REG Invest.'!E63 -> 0 | J22: =I22*J19 -> 0 | K22: =I22*K19 -> 0 | L22: ='App.2-FA Proposed REG Invest.'!F63 -> 0 | M22: =L22*M19 -> 0 | N22: =L22*N19 -> 0 | O22: ='App.2-FA Proposed REG Invest.'!G63 -> 0 | P22: =O22*P19 -> 0 | Q22: =O22*Q19 -> 0 | R22: ='App.2-FA Proposed REG Invest.'!H63 -> 0 | S22: =R22*S19 -> 0 | T22: =R22*T19 -> 0 | U22: ='App.2-FA Proposed REG Invest.'!I63 -> 0 | V22: =U22*V19 -> 0 | W22: =U22*W19 -> 0 | X22: ='App.2-FA Proposed REG Invest.'!J63 -> 0 | Y22: =X22*Y19 -> 0 | Z22: =X22*Z19 -> 0 | AA22: ='App.2-FA Proposed REG Invest.'!K63 -> 0 | AB22: =AA22*AB19 -> 0 | AC22: =AA22*AC19 -> 0 | AD22: ='App.2-FA Proposed REG Invest.'!L63 -> 0 | AE22: =AD22*AE19 -> 0 | AF22: =AD22*AF19 -> 0
A23: WCA | D23: =(D21+D22)*$B$23 -> 0 | E23: =E22*$B$23 -> 0 | G23: =(G21+G22)*$B$23 -> 0 | H23: =H22*$B$23 -> 0 | J23: =(J21+J22)*$B$23 -> 0 | K23: =K22*$B$23 -> 0 | M23: =(M21+M22)*$B$23 -> 0 | N23: =N22*$B$23 -> 0 | P23: =(P21+P22)*$B$23 -> 0 | Q23: =Q22*$B$23 -> 0 | S23: =(S21+S22)*$B$23 -> 0 | T23: =T22*$B$23 -> 0 | V23: =(V21+V22)*$B$23 -> 0 | W23: =W22*$B$23 -> 0 | Y23: =(Y21+Y22)*$B$23 -> 0 | Z23: =Z22*$B$23 -> 0 | AB23: =(AB21+AB22)*$B$23 -> 0 | AC23: =AC22*$B$23 -> 0 | AE23: =(AE21+AE22)*$B$23 -> 0 | AF23: =AF22*$B$23 -> 0
A24: Rate Base | D24: =SUM(D20+D23) ->  | E24: =SUM(E20+E23) ->  | G24: =SUM(G20+G23) ->  | H24: =SUM(H20+H23) ->  | J24: =SUM(J20+J23) ->  | K24: =SUM(K20+K23) ->  | M24: =SUM(M20+M23) ->  | N24: =SUM(N20+N23) ->  | P24: =SUM(P20+P23) ->  | Q24: =SUM(Q20+Q23) ->  | S24: =SUM(S20+S23) ->  | T24: =SUM(T20+T23) ->  | V24: =SUM(V20+V23) ->  | W24: =SUM(W20+W23) ->  | Y24: =SUM(Y20+Y23) ->  | Z24: =SUM(Z20+Z23) ->  | AB24: =SUM(AB20+AB23) ->  | AC24: =SUM(AC20+AC23) ->  | AE24: =SUM(AE20+AE23) ->  | AF24: =SUM(AF20+AF23) -> 
A27: Deemed ST Debt | D27: =D24*$B$27 ->  | E27: =E24*$B$27 ->  | G27: =G24*$B$27 ->  | H27: =H24*$B$27 ->  | J27: =J24*$B$27 ->  | K27: =K24*$B$27 ->  | M27: =M24*$B$27 ->  | N27: =N24*$B$27 ->  | P27: =P24*$B$27 ->  | Q27: =Q24*$B$27 ->  | S27: =S24*$B$27 ->  | T27: =T24*$B$27 ->  | V27: =V24*$B$27 ->  | W27: =W24*$B$27 ->  | Y27: =Y24*$B$27 ->  | Z27: =Z24*$B$27 ->  | AB27: =AB24*$B$27 ->  | AC27: =AC24*$B$27 ->  | AE27: =AE24*$B$27 ->  | AF27: =AF24*$B$27 -> 
A28: Deemed LT Debt | D28: =D24*$B$28 ->  | E28: =E24*$B$28 ->  | G28: =G24*$B$28 ->  | H28: =H24*$B$28 ->  | J28: =J24*$B$28 ->  | K28: =K24*$B$28 ->  | M28: =M24*$B$28 ->  | N28: =N24*$B$28 ->  | P28: =P24*$B$28 ->  | Q28: =Q24*$B$28 ->  | S28: =S24*$B$28 ->  | T28: =T24*$B$28 ->  | V28: =V24*$B$28 ->  | W28: =W24*$B$28 ->  | Y28: =Y24*$B$28 ->  | Z28: =Z24*$B$28 ->  | AB28: =AB24*$B$28 ->  | AC28: =AC24*$B$28 ->  | AE28: =AE24*$B$28 ->  | AF28: =AF24*$B$28 -> 
A29: Deemed Equity | D29: =D24*$B$29 ->  | E29: =E24*$B$29 ->  | G29: =G24*$B$29 ->  | H29: =H24*$B$29 ->  | J29: =J24*$B$29 ->  | K29: =K24*$B$29 ->  | M29: =M24*$B$29 ->  | N29: =N24*$B$29 ->  | P29: =P24*$B$29 ->  | Q29: =Q24*$B$29 ->  | S29: =S24*$B$29 ->  | T29: =T24*$B$29 ->  | V29: =V24*$B$29 ->  | W29: =W24*$B$29 ->  | Y29: =Y24*$B$29 ->  | Z29: =Z24*$B$29 ->  | AB29: =AB24*$B$29 ->  | AC29: =AC24*$B$29 ->  | AE29: =AE24*$B$29 ->  | AF29: =AF24*$B$29 -> 
A31: ST Interest | D31: =D27*$B31 ->  | G31: =G27*$B31 ->  | J31: =J27*$B31 ->  | M31: =M27*$B31 ->  | P31: =P27*$B31 ->  | S31: =S27*$B31 ->  | V31: =V27*$B31 ->  | Y31: =Y27*$B31 ->  | AB31: =AB27*$B31 ->  | AE31: =AE27*$B31 -> 
A32: LT Interest | D32: =D28*$B32 -> 
A33: ROE | D33: =D29*$B33 -> 
A34: Cost of Capital Total | D34: =SUM(D31:D33) ->  | E34: =SUM(E31:E33) ->  | G34: =SUM(G31:G33) ->  | H34: =SUM(H31:H33) ->  | J34: =SUM(J31:J33) ->  | K34: =SUM(K31:K33) ->  | M34: =SUM(M31:M33) ->  | N34: =SUM(N31:N33) ->  | P34: =SUM(P31:P33) ->  | Q34: =SUM(Q31:Q33) ->  | S34: =SUM(S31:S33) ->  | T34: =SUM(T31:T33) ->  | V34: =SUM(V31:V33) ->  | W34: =SUM(W31:W33) ->  | Y34: =SUM(Y31:Y33) ->  | Z34: =SUM(Z31:Z33) ->  | AB34: =SUM(AB31:AB33) ->  | AC34: =SUM(AC31:AC33) ->  | AE34: =SUM(AE31:AE33) ->  | AF34: =SUM(AF31:AF33) -> 
A36: OM&A | D36: =D21+D22 -> 0 | E36: =E22 -> 0 | G36: =G21+G22 -> 0 | H36: =H22 -> 0 | J36: =J21+J22 -> 0 | K36: =K22 -> 0 | M36: =M21+M22 -> 0 | N36: =N22 -> 0 | P36: =P21+P22 -> 0 | Q36: =Q22 -> 0 | S36: =S21+S22 -> 0 | T36: =T22 -> 0 | V36: =V21+V22 -> 0 | W36: =W22 -> 0 | Y36: =Y21+Y22 -> 0 | Z36: =Z22 -> 0 | AB36: =AB21+AB22 -> 0 | AC36: =AC22 -> 0 | AE36: =AE21+AE22 -> 0 | AF36: =AF22 -> 0
A37: Amortization | C37: =D77 -> 0 | D37: =C37*D$19 -> 0 | E37: =C37*E$19 -> 0 | F37: =G77 ->  | G37: =F37*G$19 ->  | H37: =F37*H$19 ->  | I37: =H77 ->  | J37: =I37*J$19 ->  | K37: =I37*K$19 ->  | L37: =I77 ->  | M37: =L37*M$19 ->  | N37: =L37*N$19 ->  | O37: =J77 ->  | P37: =O37*P$19 ->  | Q37: =O37*Q$19 ->  | R37: =K77 ->  | S37: =R37*S$19 ->  | T37: =R37*T$19 ->  | U37: =L76+L77 ->  | V37: =U37*V$19 ->  | W37: =U37*W$19 ->  | X37: =M76+M77 ->  | Y37: =X37*Y$19 ->  | Z37: =X37*Z$19 ->  | AA37: =N76+N77 ->  | AB37: =AA37*AB$19 ->  | AC37: =AA37*AC$19 ->  | AD37: =O76+O77 ->  | AE37: =AD37*AE$19 ->  | AF37: =AD37*AF$19 -> 
A38: Grossed-up PILs | D38: =D65 ->  | E38: =E65 ->  | G38: =G65 ->  | H38: =H65 ->  | J38: =J65 ->  | K38: =K65 ->  | M38: =M65 ->  | N38: =N65 ->  | P38: =P65 ->  | Q38: =Q65 ->  | S38: =S65 ->  | T38: =T65 ->  | V38: =V65 ->  | W38: =W65 ->  | Y38: =Y65 ->  | Z38: =Z65 ->  | AB38: =AB65 ->  | AC38: =AC65 ->  | AE38: =AE65 ->  | AF38: =AF65 -> 
A40: Revenue Requirement | D40: =SUM(D34:D38) ->  | E40: =SUM(E34:E38) ->  | G40: =SUM(G34:G38) ->  | H40: =SUM(H34:H38) ->  | J40: =SUM(J34:J38) ->  | K40: =SUM(K34:K38) ->  | M40: =SUM(M34:M38) ->  | N40: =SUM(N34:N38) ->  | P40: =SUM(P34:P38) ->  | Q40: =SUM(Q34:Q38) ->  | S40: =SUM(S34:S38) ->  | T40: =SUM(T34:T38) ->  | V40: =SUM(V34:V38) ->  | W40: =SUM(W34:W38) ->  | Y40: =SUM(Y34:Y38) ->  | Z40: =SUM(Z34:Z38) ->  | AB40: =SUM(AB34:AB38) ->  | AC40: =SUM(AC34:AC38) ->  | AE40: =SUM(AE34:AE38) ->  | AF40: =SUM(AF34:AF38) -> 
A43: Provincial Rate Protection | E43: =E40 ->  | H43: =H40 ->  | K43: =K40 ->  | N43: =N40 ->  | Q43: =Q40 ->  | T43: =T40 ->  | W43: =W40 ->  | Z43: =Z40 ->  | AC43: =AC40 ->  | AF43: =AF40 -> 
A45: Monthly Amount Paid by IESO | E45: =E43/12 ->  | H45: =H43/12 ->  | K45: =K43/12 ->  | N45: =N43/12 ->  | Q45: =Q43/12 ->  | T45: =T43/12 ->  | W45: =W43/12 ->  | Z45: =Z43/12 ->  | AC45: =AC43/12 ->  | AF45: =AF43/12 -> 
A47: Note 1: The distributor should follow the regulatory accounting set out in the Accounting Procedure Handbook Guidance FAQs issued in March 2015. Q10 of the APH FAQs states that: “For approved eligible investments as defined under O.Reg. 330/09 under the OEB Act, a variance account will continue to be used for the purpose of recording variances between the revenue requirement based on actual costs of approved eligible investments and the revenue received from the IESO.” The answer for Q10 provides the accounting guidance for this variance account: “Distributors that have included eligible investments to connect qualifying facilities in their DS plans are to establish the variance Account 1533 Renewable Generation Connection Funding Adder Deferral Account, Sub-account Provincial Rate Protection Payment Variances following OEB approval for investments forecast to enter service beyond the test year for purposes of implementing rate protection pursuant to O.Reg. 330/09. The purpose of this variance account is to track the variance between the distributor’s revenue requirement associated with the portion of the actual capital and/or operating costs that are eligible for rate protection, as incurred by the distributor for eligible renewable enabling and expansion investments, and the rate protection payments collected from the IESO.” The answer further provides the journal entries to record the variances. Distributors should follow the instructions in the answer for recording the journal entries in the variance account 1533.
A49: Note 2: For the Test Year, Costs and Revenues of the Direct Benefit are to be included in the test year applicant Rate Base and Revenues.
A51: PILs Calculation
D52: =F17-1 -> 2016 | G52: =F17 -> 2017 | J52: =I17 -> 2018 | M52: =L17 -> 2019 | P52: =O17 -> 2020 | S52: =R17 -> 2021 Test Year | V52: =U17 -> 2022 | Y52: =X17 -> 2023 | AB52: =AA17 -> 2024 | AE52: =AD17 -> 2025
A53: Income Tax | D53: Direct Benefit | E53: Provincial | G53: Direct Benefit | H53: Provincial | J53: Direct Benefit | K53: Provincial | M53: Direct Benefit | N53: Provincial | P53: Direct Benefit | Q53: Provincial | S53: Direct Benefit | T53: Provincial | V53: Direct Benefit | W53: Provincial | Y53: Direct Benefit | Z53: Provincial | AB53: Direct Benefit | AC53: Provincial | AE53: Direct Benefit | AF53: Provincial
AA54: Total | AD54: Total
A55: Net Income - ROE on Rate Base | D55: =D33 ->  | E55: =E33 ->  | G55: =G33 ->  | H55: =H33 ->  | J55: =J33 ->  | K55: =K33 ->  | M55: =M33 ->  | N55: =N33 ->  | P55: =P33 ->  | Q55: =Q33 ->  | S55: =S33 ->  | T55: =T33 ->  | V55: =V33 ->  | W55: =W33 ->  | Y55: =Y33 ->  | Z55: =Z33 ->  | AB55: =AB33 ->  | AC55: =AC33 ->  | AE55: =AE33 ->  | AF55: =AF33 -> 
A56: Amortization (6% DB and 94% P) | D56: =D37 -> 0 | E56: =E37 -> 0 | G56: =G37 ->  | H56: =H37 ->  | J56: =J37 ->  | K56: =K37 ->  | M56: =M37 ->  | N56: =N37 ->  | P56: =P37 ->  | Q56: =Q37 ->  | S56: =S37 ->  | T56: =T37 ->  | V56: =V37 ->  | W56: =W37 ->  | Y56: =Y37 ->  | Z56: =Z37 ->  | AB56: =AB37 ->  | AC56: =AC37 ->  | AE56: =AE37 ->  | AF56: =AF37 -> 
A57: CCA (6% DB and 94% P) | D57: =-D94*D$19 -> 0 | E57: =-D94*E$19 -> 0 | G57: =-G94*G$19 -> 0 | H57: =-G94*H$19 -> 0 | J57: =-H94*J19 -> 0 | K57: =-H94*K$19 -> 0 | M57: =-I94*M$19 -> 0 | N57: =-I94*N$19 -> 0 | P57: =-J94*P$19 -> 0 | Q57: =-J94*Q$19 -> 0 | S57: =-K94*S$19 -> 0 | T57: =-K94*T$19 -> 0 | V57: =-L94*V$19 -> 0 | W57: =-L94*W$19 -> 0 | Y57: =-M94*Y$19 -> 0 | Z57: =-M94*Z$19 -> 0 | AB57: =-N94*AB$19 -> 0 | AC57: =-N94*AC$19 -> 0 | AE57: =-O94*AE$19 -> 0 | AF57: =-O94*AF$19 -> 0
A58: Taxable income | D58: =SUM(D55:D57) ->  | E58: =SUM(E55:E57) ->  | G58: =SUM(G55:G57) ->  | H58: =SUM(H55:H57) ->  | J58: =SUM(J55:J57) ->  | K58: =SUM(K55:K57) ->  | M58: =SUM(M55:M57) ->  | N58: =SUM(N55:N57) ->  | P58: =SUM(P55:P57) ->  | Q58: =SUM(Q55:Q57) ->  | S58: =SUM(S55:S57) ->  | T58: =SUM(T55:T57) ->  | V58: =SUM(V55:V57) ->  | W58: =SUM(W55:W57) ->  | Y58: =SUM(Y55:Y57) ->  | Z58: =SUM(Z55:Z57) ->  | AB58: =SUM(AB55:AB57) ->  | AC58: =SUM(AC55:AC57) ->  | AE58: =SUM(AE55:AE57) ->  | AF58: =SUM(AF55:AF57) -> 
A60: Tax Rate (to be entered)
A62: Income Taxes Payable | D62: =D58*D60 ->  | E62: =E58*E60 ->  | G62: =G58*G60 ->  | H62: =H58*H60 ->  | J62: =J58*J60 ->  | K62: =K58*K60 ->  | M62: =M58*M60 ->  | N62: =N58*N60 ->  | P62: =P58*P60 ->  | Q62: =Q58*Q60 ->  | S62: =S58*S60 ->  | T62: =T58*T60 ->  | V62: =V58*V60 ->  | W62: =W58*W60 ->  | Y62: =Y58*Y60 ->  | Z62: =Z58*Z60 ->  | AB62: =AB58*AB60 ->  | AC62: =AC58*AC60 ->  | AE62: =AE58*AE60 ->  | AF62: =AF58*AF60 -> 
A63: Gross Up
A64: Income Taxes Payable | D64: =D62/(1-D60) ->  | E64: =E62/(1-E60) ->  | G64: =G62/(1-G60) ->  | H64: =H62/(1-H60) ->  | J64: =J62/(1-J60) ->  | K64: =K62/(1-K60) ->  | M64: =M62/(1-M60) ->  | N64: =N62/(1-N60) ->  | P64: =P62/(1-P60) ->  | Q64: =Q62/(1-Q60) ->  | S64: =S62/(1-S60) ->  | T64: =T62/(1-T60) ->  | V64: =V62/(1-V60) ->  | W64: =W62/(1-W60) ->  | Y64: =Y62/(1-Y60) ->  | Z64: =Z62/(1-Z60) ->  | AB64: =AB62/(1-AB60) ->  | AC64: =AC62/(1-AC60) ->  | AE64: =AE62/(1-AE60) ->  | AF64: =AF62/(1-AF60) -> 
A65: Grossed Up PILs | D65: =SUM(D64:D64) ->  | E65: =SUM(E64:E64) ->  | G65: =SUM(G64:G64) ->  | H65: =SUM(H64:H64) ->  | J65: =SUM(J64:J64) ->  | K65: =SUM(K64:K64) ->  | M65: =SUM(M64:M64) ->  | N65: =SUM(N64:N64) ->  | P65: =SUM(P64:P64) ->  | Q65: =SUM(Q64:Q64) ->  | S65: =SUM(S64:S64) ->  | T65: =SUM(T64:T64) ->  | V65: =SUM(V64:V64) ->  | W65: =SUM(W64:W64) ->  | Y65: =SUM(Y64:Y64) ->  | Z65: =SUM(Z64:Z64) ->  | AB65: =SUM(AB64:AB64) ->  | AC65: =SUM(AC64:AC64) ->  | AE65: =SUM(AE64:AE64) ->  | AF65: =SUM(AF64:AF64) -> 
F68: =G68-1 -> 2016 | G68: =H68-1 -> 2017 | H68: =I68-1 -> 2018 | I68: =J68-1 -> 2019 | J68: =K68-1 -> 2020 | K68: =TestYear -> 2021 | L68: =K68+1 -> 2022 | M68: =L68+1 -> 2023 | N68: =M68+1 -> 2024 | O68: =N68+1 -> 2025
A69: Net Fixed Assets
B70: Enter applicable amortization in years:
A71: Opening Gross Fixed Assets | G71: =F73 -> 0 | H71: =G73 -> 0 | I71: 0 | J71: 0 | K71: 0 | L71: 0 | M71: 0 | N71: 0 | O71: 0
A72: Gross Capital Additions | F72: ='App.2-FA Proposed REG Invest.'!C62 -> 0 | G72: ='App.2-FA Proposed REG Invest.'!D62 -> 0 | H72: ='App.2-FA Proposed REG Invest.'!E62 -> 0 | I72: ='App.2-FA Proposed REG Invest.'!F62 -> 0 | J72: ='App.2-FA Proposed REG Invest.'!G62 -> 0 | K72: ='App.2-FA Proposed REG Invest.'!H62 -> 0 | L72: ='App.2-FA Proposed REG Invest.'!I62 -> 0 | M72: ='App.2-FA Proposed REG Invest.'!J62 -> 0 | N72: ='App.2-FA Proposed REG Invest.'!K62 -> 0 | O72: ='App.2-FA Proposed REG Invest.'!L62 -> 0
A73: Closing Gross Fixed Assets | F73: =SUM(F71:F72) -> 0 | G73: =SUM(G71:G72) -> 0 | H73: 0 | I73: 0 | J73: 0 | K73: 0 | L73: 0 | M73: 0 | N73: 0 | O73: 0
A75: Opening Accumulated Amortization | H75: =+G78 ->  | I75: =H78 -> 
A76: Current Year Amortization (before additions) | F76: =IF(ISERROR(F71/$C$70), 0, F71/$C$70) -> 0 | G76: 0 | H76: 0 | I76: 0 | J76: 0 | K76: 0 | L76: 0 | M76: 0 | N76: 0 | O76: 0
A77: Additions (half year) | F77: =F72/$C$70/2 ->  | L77: =L72/C70/2 ->  | M77: =M72/C70/2 ->  | N77: =N72/C70/2 ->  | O77: =O72/C70/2 -> 
A78: Closing Accumulated Amortization | F78: =SUM(F75+F76+F77) ->  | L78: =SUM(L75:L77) ->  | M78: =SUM(M75:M77) ->  | N78: =SUM(N75:N77) ->  | O78: =SUM(O75:O77) -> 
A80: Opening Net Fixed Assets | F80: =F71-F75 -> 0 | G80: 0 | L80: =K81 ->  | M80: =L81 ->  | N80: =M81 ->  | O80: =N81 -> 
A81: Closing Net Fixed Assets | F81: =F73-F78 ->  | G81: =G73-G78 -> 
A82: Average Net Fixed Assets | F82: =SUM(F80:F81)/2 ->  | G82: =SUM(G80:G81)/2 -> 
A84: UCC for PILs Calculation
F85: =F68 -> 2016 | G85: =G68 -> 2017 | H85: =H68 -> 2018 | I85: 2019 | J85: 2020 | K85: 2021 | L85: 2022 | M85: 2023 | N85: 2024 | O85: 2025
A87: Opening UCC | G87: =F95 -> 0 | H87: =G95 -> 0 | I87: 0 | J87: 0 | K87: 0 | L87: 0 | M87: 0 | N87: 0 | O87: 0
A88: Capital Additions (from Appendix 2-FA) | F88: =F72 -> 0 | G88: =G72 -> 0 | H88: 0 | I88: 0 | J88: 0 | K88: 0 | L88: 0 | M88: 0 | N88: 0 | O88: 0
A89: UCC Before Half Year Rule | F89: =SUM(F87:F88) -> 0 | G89: =SUM(G87:G88) -> 0 | H89: 0 | I89: 0 | J89: 0 | K89: 0 | L89: 0 | M89: 0 | N89: 0 | O89: 0
A90: Half Year Rule (1/2 Additions - Disposals) | F90: =F88/2 -> 0 | G90: =G88/2 -> 0 | H90: 0 | I90: 0 | J90: 0 | K90: 0 | L90: 0 | M90: 0 | N90: 0 | O90: 0
A91: Reduced UCC | F91: =F89-F90 -> 0 | G91: =G89-G90 -> 0 | H91: 0 | I91: 0 | J91: 0 | K91: 0 | L91: 0 | M91: 0 | N91: 0 | O91: 0
A92: CCA Rate Class (to be entered) | F92: =C92 -> 0 | G92: =C92 -> 0 | H92: =G92 -> 0 | I92: 0 | J92: 0 | K92: 0 | L92: 0 | M92: 0 | N92: 0 | O92: 0
A93: CCA Rate (to be entered) | F93: =C93 -> 0 | G93: =C93 -> 0 | H93: 0 | I93: 0 | J93: 0 | K93: 0 | L93: 0 | M93: 0 | N93: 0 | O93: 0
A94: CCA | F94: =F91*F93 -> 0 | G94: =G91*G93 -> 0 | H94: 0 | I94: 0 | J94: 0 | K94: 0 | L94: 0 | M94: 0 | N94: 0 | O94: 0
A95: Closing UCC | F95: =F89-F94 -> 0 | G95: =G89-G94 -> 0 | H95: 0 | I95: 0 | J95: 0 | K95: 0 | L95: 0 | M95: 0 | N95: 0 | O95: 0

Sheet Hidden_REG Improvement (hidden)
A1: Utility Name | B1: EB Number | C1: Test Year | D1: Bridge Year | E1: Last Rebasing Year | F1: Renewable Generation Connection Direct Benefits/Provincial Amount Renewable Enabling Improvement Investments | G1: Year | H1: Amount
A2: ='LDC Info'!$E$14 -> Niagara Peninsula Energy Inc. | B2: =EBNUMBER -> EB-2020-0040 | C2: =TestYear -> 2021 | D2: =BridgeYear -> 2020 | E2: =RebaseYear -> 2015 | F2: Provincial Rate Protection | G2: ='App.2-FB Calc of REG Improvemnt'!C17 -> 2016 | H2: ='App.2-FB Calc of REG Improvemnt'!E43 -> 
A3: ='LDC Info'!$E$14 -> Niagara Peninsula Energy Inc. | B3: EB-2020-0040 | C3: 2021 | D3: 2020 | E3: 2015 | F3: Provincial Rate Protection | G3: ='App.2-FB Calc of REG Improvemnt'!F17 -> 2017 | H3: ='App.2-FB Calc of REG Improvemnt'!H43 -> 
A4: ='LDC Info'!$E$14 -> Niagara Peninsula Energy Inc. | B4: EB-2020-0040 | C4: 2021 | D4: 2020 | E4: 2015 | F4: Provincial Rate Protection | G4: ='App.2-FB Calc of REG Improvemnt'!I17 -> 2018 | H4: ='App.2-FB Calc of REG Improvemnt'!K43 -> 
A5: ='LDC Info'!$E$14 -> Niagara Peninsula Energy Inc. | B5: EB-2020-0040 | C5: 2021 | D5: 2020 | E5: 2015 | F5: Provincial Rate Protection | G5: ='App.2-FB Calc of REG Improvemnt'!L17 -> 2019 | H5: ='App.2-FB Calc of REG Improvemnt'!N43 -> 
A6: ='LDC Info'!$E$14 -> Niagara Peninsula Energy Inc. | B6: EB-2020-0040 | C6: 2021 | D6: 2020 | E6: 2015 | F6: Provincial Rate Protection | G6: ='App.2-FB Calc of REG Improvemnt'!O17 -> 2020 | H6: ='App.2-FB Calc of REG Improvemnt'!Q43 -> 
A7: ='LDC Info'!$E$14 -> Niagara Peninsula Energy Inc. | B7: EB-2020-0040 | C7: 2021 | D7: 2020 | E7: 2015 | F7: Provincial Rate Protection | G7: =LEFT('App.2-FB Calc of REG Improvemnt'!R17,4) -> 2021 | H7: ='App.2-FB Calc of REG Improvemnt'!T43 -> 
A8: ='LDC Info'!$E$14 -> Niagara Peninsula Energy Inc. | B8: EB-2020-0040 | C8: 2021 | D8: 2020 | E8: 2015 | F8: Provincial Rate Protection | G8: ='App.2-FB Calc of REG Improvemnt'!U17 -> 2022 | H8: ='App.2-FB Calc of REG Improvemnt'!W43 -> 
A9: ='LDC Info'!$E$14 -> Niagara Peninsula Energy Inc. | B9: EB-2020-0040 | C9: 2021 | D9: 2020 | E9: 2015 | F9: Provincial Rate Protection | G9: ='App.2-FB Calc of REG Improvemnt'!X17 -> 2023 | H9: ='App.2-FB Calc of REG Improvemnt'!Z43 -> 
A10: ='LDC Info'!$E$14 -> Niagara Peninsula Energy Inc. | B10: EB-2020-0040 | C10: 2021 | D10: 2020 | E10: 2015 | F10: Provincial Rate Protection | G10: ='App.2-FB Calc of REG Improvemnt'!AA17 -> 2024 | H10: ='App.2-FB Calc of REG Improvemnt'!AC43 -> 
A11: ='LDC Info'!$E$14 -> Niagara Peninsula Energy Inc. | B11: EB-2020-0040 | C11: 2021 | D11: 2020 | E11: 2015 | F11: Provincial Rate Protection | G11: ='App.2-FB Calc of REG Improvemnt'!AD17 -> 2025 | H11: ='App.2-FB Calc of REG Improvemnt'!AF43 -> 

Sheet App.2-FC Calc of REG Expansion
Q1: File Number: | R1: =EBNUMBER -> EB-2020-0040
Q2: Exhibit:
Q3: Tab:
A4: TO BE UPDATED AT THE DRAFT RATE ORDER STAGE | Q4: Schedule:
Q5: Page:
Q7: Date:
A9: Appendix 2-FC
A10: Calculation of Renewable Generation Connection Direct Benefits/Provincial Amount: Renewable Expansion Investments
A12: This table will calculate the distributor/provincial shares of the investments entered in Part B of Appendix 2-FA.
A13: Enter values in green shaded cells: WCA percentage, debt percentages, interest rates, kWh, tax rates, amortization period, CCA Class and percentage.
A14: ="For historical investments, enter these variables that were approved your last cost of service test year. For " & TestYear & " and beyond, enter variables as in the application." -> For historical investments, enter these variables that were approved your last cost of service test year. For 2021 and beyond, enter variables as in the application.
A15: Rate Riders are not calculated for the Test Year as these assets and costs are already in the distributor's rate base.
D18: =G18-1 -> 2016 | G18: =J18-1 -> 2017 | J18: =M18-1 -> 2018 | M18: =P18-1 -> 2019 | P18: =BridgeYear -> 2020 | S18: =CONCATENATE(TestYear," Test Year") -> 2021 Test Year | V18: =TestYear+1 -> 2022 | W18: 2016 | Y18: =V18+1 -> 2023 | AB18: =Y18+1 -> 2024 | AE18: =AB18+1 -> 2025
E19: Direct Benefit | F19: Provincial | H19: Direct Benefit | I19: Provincial | K19: Direct Benefit | L19: Provincial | N19: Direct Benefit | O19: Provincial | Q19: Direct Benefit | R19: Provincial | T19: Direct Benefit | U19: Provincial | W19: Direct Benefit | X19: Provincial | Z19: Direct Benefit | AA19: Provincial | AC19: Direct Benefit | AD19: Provincial | AF19: Direct Benefit | AG19: Provincial
D20: Total | E20: 0.17 | F20: 0.83 | G20: Total | H20: 0.17 | I20: 0.83 | J20: Total | K20: 0.17 | L20: 0.83 | M20: Total | N20: 0.17 | O20: 0.83 | P20: Total | Q20: 0.17 | R20: 0.83 | S20: Total | T20: 0.17 | U20: 0.83 | V20: Total | W20: 0.17 | X20: 0.83 | Y20: Total | Z20: 0.17 | AA20: 0.83 | AB20: Total | AC20: 0.17 | AD20: 0.83 | AE20: Total | AF20: 0.17 | AG20: 0.83
A21: Net Fixed Assets (average) | D21: =J82 ->  | E21: =D21*E20 ->  | F21: =D21*F20 ->  | G21: =G82 ->  | H21: =G21*H20 ->  | I21: =G21*I20 ->  | J21: =H82 ->  | K21: =J21*K20 ->  | L21: =J21*L20 ->  | M21: =I82 ->  | N21: =M21*N20 ->  | O21: =M21*O20 ->  | P21: =J82 ->  | Q21: =P21*Q20 ->  | R21: =P21*R20 ->  | S21: =K82 ->  | T21: =S21*T20 ->  | U21: =S21*U20 ->  | V21: =L82 ->  | W21: =V21*W20 ->  | X21: =V21*X20 ->  | Y21: =M82 ->  | Z21: =Y21*Z20 ->  | AA21: =Y21*AA20 ->  | AB21: =N82 ->  | AC21: =AB21*AC20 ->  | AD21: =AB21*AD20 ->  | AE21: =O82 ->  | AF21: =AE21*AF20 ->  | AG21: =AE21*AG20 -> 
A22: Incremental OM&A (on-going, N/A for Provincial Recovery) | D22: ='App.2-FA Proposed REG Invest.'!C$101 -> 0 | E22: =D22 -> 0 | G22: ='App.2-FA Proposed REG Invest.'!D$101 -> 0 | H22: =G22 -> 0 | J22: ='App.2-FA Proposed REG Invest.'!E$101 -> 0 | K22: =J22 -> 0 | M22: ='App.2-FA Proposed REG Invest.'!F$101 -> 0 | N22: =M22 -> 0 | P22: ='App.2-FA Proposed REG Invest.'!G$101 -> 0 | Q22: =P22 -> 0 | S22: ='App.2-FA Proposed REG Invest.'!H$101 -> 0 | T22: =S22 -> 0 | V22: ='App.2-FA Proposed REG Invest.'!I$101 -> 0 | W22: =V22 -> 0 | Y22: ='App.2-FA Proposed REG Invest.'!J$101 -> 0 | Z22: =Y22 -> 0 | AB22: ='App.2-FA Proposed REG Invest.'!K$101 -> 0 | AC22: =AB22 -> 0 | AE22: ='App.2-FA Proposed REG Invest.'!L$101 -> 0 | AF22: =AE22 -> 0
A23: Incremental OM&A (start-up, applicable for Provincial Recovery) | D23: ='App.2-FA Proposed REG Invest.'!C$100 -> 0 | E23: =D23*E20 -> 0 | F23: =D23*F20 -> 0 | G23: ='App.2-FA Proposed REG Invest.'!D$100 -> 0 | H23: =G23*H20 -> 0 | I23: =G23*I20 -> 0 | J23: ='App.2-FA Proposed REG Invest.'!E$100 -> 0 | K23: =J23*K20 -> 0 | L23: =J23*L20 -> 0 | M23: ='App.2-FA Proposed REG Invest.'!F$100 -> 0 | N23: =M23*N20 -> 0 | O23: =M23*O20 -> 0 | P23: ='App.2-FA Proposed REG Invest.'!G$100 -> 0 | Q23: =P23*Q20 -> 0 | R23: =P23*R20 -> 0 | S23: ='App.2-FA Proposed REG Invest.'!H$100 -> 0 | T23: =S23*T20 -> 0 | U23: =S23*U20 -> 0 | V23: ='App.2-FA Proposed REG Invest.'!I$100 -> 0 | W23: =V23*W20 -> 0 | X23: =V23*X20 -> 0 | Y23: ='App.2-FA Proposed REG Invest.'!J$100 -> 0 | Z23: =Y23*Z20 -> 0 | AA23: =Y23*AA20 -> 0 | AB23: ='App.2-FA Proposed REG Invest.'!K$100 -> 0 | AC23: =AB23*AC20 -> 0 | AD23: =AB23*AD20 -> 0 | AE23: ='App.2-FA Proposed REG Invest.'!L$100 -> 0 | AF23: =AE23*AF20 -> 0 | AG23: =AE23*AG20 -> 0
A24: WCA | E24: =(E22+E23)*$B$24 -> 0 | F24: =F23*$B$24 -> 0 | H24: =(H22+H23)*$B$24 -> 0 | I24: =I23*$B$24 -> 0 | K24: =(K22+K23)*$B$24 -> 0 | L24: =L23*$B$24 -> 0 | N24: =(N22+N23)*$B$24 -> 0 | O24: =O23*$B$24 -> 0 | Q24: =(Q22+Q23)*$B$24 -> 0 | R24: =R23*$B$24 -> 0 | T24: =(T22+T23)*$B$24 -> 0 | U24: =U23*$B$24 -> 0 | W24: =(W22+W23)*$B$24 -> 0 | X24: =X23*$B$24 -> 0 | Z24: =(Z22+Z23)*$B$24 -> 0 | AA24: =AA23*$B$24 -> 0 | AC24: =(AC22+AC23)*$B$24 -> 0 | AD24: =AD23*$B$24 -> 0 | AF24: =(AF22+AF23)*$B$24 -> 0 | AG24: =AG23*$B$24 -> 0
A25: Rate Base | E25: =SUM(E21+E24) ->  | F25: =SUM(F21+F24) ->  | H25: =SUM(H21+H24) ->  | I25: =SUM(I21+I24) ->  | K25: =SUM(K21+K24) ->  | L25: =SUM(L21+L24) ->  | N25: =SUM(N21+N24) ->  | O25: =SUM(O21+O24) ->  | Q25: =SUM(Q21+Q24) ->  | R25: =SUM(R21+R24) ->  | T25: =SUM(T21+T24) ->  | U25: =SUM(U21+U24) ->  | W25: =SUM(W21+W24) ->  | X25: =SUM(X21+X24) ->  | Z25: =SUM(Z21+Z24) ->  | AA25: =SUM(AA21+AA24) ->  | AC25: =SUM(AC21+AC24) ->  | AD25: =SUM(AD21+AD24) ->  | AF25: =SUM(AF21+AF24) ->  | AG25: =SUM(AG21+AG24) -> 
A28: Deemed ST Debt | E28: =E25*$B$28 ->  | F28: =F25*$B$28 ->  | H28: =H25*$B$28 ->  | I28: =I25*$B$28 ->  | K28: =K25*$B$28 ->  | L28: =L25*$B$28 ->  | N28: =N25*$B$28 ->  | O28: =O25*$B$28 ->  | Q28: =Q25*$B$28 ->  | R28: =R25*$B$28 ->  | T28: =T25*$B$28 ->  | U28: =U25*$B$28 ->  | W28: =W25*$B$28 ->  | X28: =X25*$B$28 ->  | Z28: =Z25*$B$28 ->  | AA28: =AA25*$B$28 ->  | AC28: =AC25*$B$28 ->  | AD28: =AD25*$B$28 ->  | AF28: =AF25*$B$28 ->  | AG28: =AG25*$B$28 -> 
A29: Deemed LT Debt | E29: =E25*$B$29 ->  | F29: =F25*$B$29 ->  | H29: =H25*$B$29 ->  | I29: =I25*$B$29 ->  | K29: =K25*$B$29 ->  | L29: =L25*$B$29 ->  | N29: =N25*$B$29 ->  | O29: =O25*$B$29 ->  | Q29: =Q25*$B$29 ->  | R29: =R25*$B$29 ->  | T29: =T25*$B$29 ->  | U29: =U25*$B$29 ->  | W29: =W25*$B$29 ->  | X29: =X25*$B$29 ->  | Z29: =Z25*$B$29 ->  | AA29: =AA25*$B$29 ->  | AC29: =AC25*$B$29 ->  | AD29: =AD25*$B$29 ->  | AF29: =AF25*$B$29 ->  | AG29: =AG25*$B$29 -> 
A30: Deemed Equity | E30: =E25*$B$30 ->  | F30: =F25*$B$30 ->  | H30: =H25*$B$30 ->  | I30: =I25*$B$30 ->  | K30: =K25*$B$30 ->  | L30: =L25*$B$30 ->  | N30: =N25*$B$30 ->  | O30: =O25*$B$30 ->  | Q30: =Q25*$B$30 ->  | R30: =R25*$B$30 ->  | T30: =T25*$B$30 ->  | U30: =U25*$B$30 ->  | W30: =W25*$B$30 ->  | X30: =X25*$B$30 ->  | Z30: =Z25*$B$30 ->  | AA30: =AA25*$B$30 ->  | AC30: =AC25*$B$30 ->  | AD30: =AD25*$B$30 ->  | AF30: =AF25*$B$30 ->  | AG30: =AG25*$B$30 -> 
A32: ST Interest | E32: =E28*$B$32 ->  | F32: =F28*$B$32 ->  | H32: =H28*$B$32 ->  | I32: =I28*$B$32 ->  | K32: =K28*$B$32 ->  | L32: =L28*$B$32 ->  | N32: =N28*$B$32 ->  | O32: =O28*$B$32 ->  | Q32: =Q28*$B$32 ->  | R32: =R28*$B$32 ->  | T32: =T28*$B$32 ->  | U32: =U28*$B$32 ->  | W32: =W28*$B$32 ->  | X32: =X28*$B$32 ->  | Z32: =Z28*$B$32 ->  | AA32: =AA28*$B$32 ->  | AC32: =AC28*$B$32 ->  | AD32: =AD28*$B$32 ->  | AF32: =AF28*$B$32 ->  | AG32: =AG28*$B$32 -> 
A33: LT Interest | E33: =E29*$B$33 ->  | F33: =F29*$B$33 ->  | H33: =H29*$B$33 ->  | I33: =I29*$B$33 ->  | K33: =K29*$B$33 ->  | L33: =L29*$B$33 ->  | N33: =N29*$B$33 ->  | O33: =O29*$B$33 ->  | Q33: =Q29*$B$33 ->  | R33: =R29*$B$33 ->  | T33: =T29*$B$33 ->  | U33: =U29*$B$33 ->  | W33: =W29*$B$33 ->  | X33: =X29*$B$33 ->  | Z33: =Z29*$B$33 ->  | AA33: =AA29*$B$33 ->  | AC33: =AC29*$B$33 ->  | AD33: =AD29*$B$33 ->  | AF33: =AF29*$B$33 ->  | AG33: =AG29*$B$33 -> 
A34: ROE | E34: =E30*$B$34 ->  | F34: =F30*$B$34 ->  | H34: =H30*$B$34 ->  | I34: =I30*$B$34 ->  | K34: =K30*$B$34 ->  | L34: =L30*$B$34 ->  | N34: =N30*$B$34 ->  | O34: =O30*$B$34 ->  | Q34: =Q30*$B$34 ->  | R34: =R30*$B$34 ->  | T34: =T30*$B$34 ->  | U34: =U30*$B$34 ->  | W34: =W30*$B$34 ->  | X34: =X30*$B$34 ->  | Z34: =Z30*$B$34 ->  | AA34: =AA30*$B$34 ->  | AC34: =AC30*$B$34 ->  | AD34: =AD30*$B$34 ->  | AF34: =AF30*$B$34 ->  | AG34: =AG30*$B$34 -> 
A35: Cost of Capital Total | E35: =SUM(E32:E34) ->  | F35: =SUM(F32:F34) ->  | H35: =SUM(H32:H34) ->  | I35: =SUM(I32:I34) ->  | K35: =SUM(K32:K34) ->  | L35: =SUM(L32:L34) ->  | N35: =SUM(N32:N34) ->  | O35: =SUM(O32:O34) ->  | Q35: =SUM(Q32:Q34) ->  | R35: =SUM(R32:R34) ->  | T35: =SUM(T32:T34) ->  | U35: =SUM(U32:U34) ->  | W35: =SUM(W32:W34) ->  | X35: =SUM(X32:X34) ->  | Z35: =SUM(Z32:Z34) ->  | AA35: =SUM(AA32:AA34) ->  | AC35: =SUM(AC32:AC34) ->  | AD35: =SUM(AD32:AD34) ->  | AF35: =SUM(AF32:AF34) ->  | AG35: =SUM(AG32:AG34) -> 
A37: OM&A | E37: =E22+E23 -> 0 | F37: =F23 -> 0 | H37: =H22+H23 -> 0 | I37: =I23 -> 0 | K37: =K22+K23 -> 0 | L37: =L23 -> 0 | N37: =N22+N23 -> 0 | O37: =O23 -> 0 | Q37: =Q22+Q23 -> 0 | R37: =R23 -> 0 | T37: =T22+T23 -> 0 | U37: =U23 -> 0 | W37: =W22+W23 -> 0 | X37: =X23 -> 0 | Z37: =Z22+Z23 -> 0 | AA37: =AA23 -> 0 | AC37: =AC22+AC23 -> 0 | AD37: =AD23 -> 0 | AF37: =AF22+AF23 -> 0 | AG37: =AG23 -> 0
A38: Amortization | D38: =D78 -> 0 | E38: =D38*E$20 -> 0 | F38: =D38*F$20 -> 0 | G38: =G78 ->  | H38: =G38*H$20 ->  | I38: =G38*I$20 ->  | J38: =H78 ->  | K38: =J38*K$20 ->  | L38: =J38*L$20 ->  | M38: =I78 ->  | N38: =M38*N$20 ->  | O38: =M38*O$20 ->  | P38: =J78 ->  | Q38: =P38*Q$20 ->  | R38: =P38*R$20 ->  | S38: =K76+K77 ->  | T38: =S38*T$20 ->  | U38: =S38*U$20 ->  | V38: =L76+L77 ->  | W38: =V38*W$20 ->  | X38: =V38*X$20 ->  | Y38: =M76+M77 ->  | Z38: =Y38*Z$20 ->  | AA38: =Y38*AA$20 ->  | AB38: =N76+N77 ->  | AC38: =AB38*AC$20 ->  | AD38: =AB38*AD$20 ->  | AE38: =O76+O77 ->  | AF38: =AE38*AF$20 ->  | AG38: =AE38*AG$20 -> 
A39: Grossed-up PILs | E39: =E66 ->  | F39: =F66 ->  | H39: =H66 ->  | I39: =I66 ->  | K39: =K66 ->  | L39: =L66 ->  | N39: =N66 ->  | O39: =O66 ->  | Q39: =Q66 ->  | R39: =R66 ->  | T39: =T66 ->  | U39: =U66 ->  | W39: =W66 ->  | X39: =X66 ->  | Z39: =Z66 ->  | AA39: =AA66 ->  | AC39: =AC66 ->  | AD39: =AD66 ->  | AF39: =AF66 ->  | AG39: =AG66 -> 
A41: Revenue Requirement | E41: =SUM(E35:E39) ->  | F41: =SUM(F35:F39) ->  | H41: =SUM(H35:H39) ->  | I41: =SUM(I35:I39) ->  | K41: =SUM(K35:K39) ->  | L41: =SUM(L35:L39) ->  | N41: =SUM(N35:N39) ->  | O41: =SUM(O35:O39) ->  | Q41: =SUM(Q35:Q39) ->  | R41: =SUM(R35:R39) ->  | T41: =SUM(T35:T39) ->  | U41: =SUM(U35:U39) ->  | W41: =SUM(W35:W39) ->  | X41: =SUM(X35:X39) ->  | Z41: =SUM(Z35:Z39) ->  | AA41: =SUM(AA35:AA39) ->  | AC41: =SUM(AC35:AC39) ->  | AD41: =SUM(AD35:AD39) ->  | AF41: =SUM(AF35:AF39) ->  | AG41: =SUM(AG35:AG39) -> 
A44: Provincial Rate Protection | F44: =F41 ->  | I44: =I41 ->  | L44: =L41 ->  | O44: =O41 ->  | R44: =R41 ->  | U44: =U41 ->  | X44: =X41 ->  | AA44: =AA41 ->  | AD44: =AD41 ->  | AG44: =AG41 -> 
A46: Monthly Amount Paid by IESO | F46: =F44/12 ->  | I46: =I44/12 ->  | L46: =L44/12 ->  | O46: =O44/12 ->  | R46: =R44/12 ->  | U46: =U44/12 ->  | X46: =X44/12 ->  | AA46: =AA44/12 ->  | AD46: =AD44/12 ->  | AG46: =AG44/12 -> 
A48: Note 1: The distributor should follow the regulatory accounting set out in the Accounting Procedure Handbook Guidance FAQs issued in March 2015. Q10 of the APH FAQs states that: “For approved eligible investments as defined under O.Reg. 330/09 under the OEB Act, a variance account will continue to be used for the purpose of recording variances between the revenue requirement based on actual costs of approved eligible investments and the revenue received from the IESO.” The answer for Q10 provides the accounting guidance for this variance account: “Distributors that have included eligible investments to connect qualifying facilities in their DS plans are to establish the variance Account 1533 Renewable Generation Connection Funding Adder Deferral Account, Sub-account Provincial Rate Protection Payment Variances following OEB approval for investments forecast to enter service beyond the test year for purposes of implementing rate protection pursuant to O.Reg. 330/09. The purpose of this variance account is to track the variance between the distributor’s revenue requirement associated with the portion of the actual capital and/or operating costs that are eligible for rate protection, as incurred by the distributor for eligible renewable enabling and expansion investments, and the rate protection payments collected from the IESO.” The answer further provides the journal entries to record the variances. Distributors should follow the instructions in the answer for recording the journal entries in the variance account 1533.
A50: Note 2: For the Test Year, Costs and Revenues of the Direct Benefit are to be included in the test year applicant Rate Base and Revenues.
A52: PILs Calculation
E53: =D18 -> 2016 | H53: =G18 -> 2017 | K53: =J18 -> 2018 | N53: =M18 -> 2019 | Q53: =P18 -> 2020 | T53: =S18 -> 2021 Test Year | W53: =V18 -> 2022 | Z53: =Y18 -> 2023 | AC53: =AB18 -> 2024 | AF53: =AE18 -> 2025
A54: Income Tax | E54: Direct Benefit | F54: Provincial | H54: Direct Benefit | I54: Provincial | K54: Direct Benefit | L54: Provincial | N54: Direct Benefit | O54: Provincial | Q54: Direct Benefit | R54: Provincial | T54: Direct Benefit | U54: Provincial | W54: Direct Benefit | X54: Provincial | Z54: Direct Benefit | AA54: Provincial | AC54: Direct Benefit | AD54: Provincial | AF54: Direct Benefit | AG54: Provincial
Y55: Total | AB55: Total | AE55: Total
A56: Net Income - ROE on Rate Base | E56: =E34 ->  | F56: =F34 ->  | H56: =H34 ->  | I56: =I34 ->  | K56: =K34 ->  | L56: =L34 ->  | N56: =N34 ->  | O56: =O34 ->  | Q56: =Q34 ->  | R56: =R34 ->  | T56: =T34 ->  | U56: =U34 ->  | W56: =W34 ->  | X56: =X34 ->  | Z56: =Z34 ->  | AA56: =AA34 ->  | AC56: =AC34 ->  | AD56: =AD34 ->  | AF56: =AF34 ->  | AG56: =AG34 -> 
A57: Amortization (17% DB and 83% P) | E57: =E38 -> 0 | F57: =F38 -> 0 | H57: =H38 ->  | I57: =I38 ->  | K57: =K38 ->  | L57: =L38 ->  | N57: =N38 ->  | O57: =O38 ->  | Q57: =Q38 ->  | R57: =R38 ->  | T57: =T38 ->  | U57: =U38 ->  | W57: =W38 ->  | X57: =X38 ->  | Z57: =Z38 ->  | AA57: =AA38 ->  | AC57: =AC38 ->  | AD57: =AD38 ->  | AF57: =AF38 ->  | AG57: =AG38 -> 
A58: CCA (17% DB and 83% P) | E58: =-D94*E$20 -> 0 | F58: =-D94*F$20 -> 0 | H58: =-G94*H$20 -> 0 | I58: =-G94*I$20 -> 0 | K58: =-H94*K$20 -> 0 | L58: =-H94*L$20 -> 0 | N58: =-I94*N$20 -> 0 | O58: =-I94*O$20 -> 0 | Q58: =-J94*Q$20 -> 0 | R58: =-J94*R$20 -> 0 | T58: =-K94*T$20 -> 0 | U58: =-K94*U$20 -> 0 | W58: =-L94*W$20 -> 0 | X58: =-L94*X$20 -> 0 | Z58: =-M94*Z$20 -> 0 | AA58: =-M94*AA$20 -> 0 | AC58: =-N94*AC$20 -> 0 | AD58: =-N94*AD$20 -> 0 | AF58: =-O94*AF$20 -> 0 | AG58: =-O94*AG$20 -> 0
A59: Taxable income | E59: =SUM(E56:E58) ->  | F59: =SUM(F56:F58) ->  | H59: =SUM(H56:H58) ->  | I59: =SUM(I56:I58) ->  | K59: =SUM(K56:K58) ->  | L59: =SUM(L56:L58) ->  | N59: =SUM(N56:N58) ->  | O59: =SUM(O56:O58) ->  | Q59: =SUM(Q56:Q58) ->  | R59: =SUM(R56:R58) ->  | T59: =SUM(T56:T58) ->  | U59: =SUM(U56:U58) ->  | W59: =SUM(W56:W58) ->  | X59: =SUM(X56:X58) ->  | Z59: =SUM(Z56:Z58) ->  | AA59: =SUM(AA56:AA58) ->  | AC59: =SUM(AC56:AC58) ->  | AD59: =SUM(AD56:AD58) ->  | AF59: =SUM(AF56:AF58) ->  | AG59: =SUM(AG56:AG58) -> 
A61: Tax Rate (to be entered)
A63: Income Taxes Payable | E63: =E59*E61 ->  | F63: =F59*F61 ->  | H63: =H59*H61 ->  | I63: =I59*I61 ->  | K63: =K59*K61 ->  | L63: =L59*L61 ->  | N63: =N59*N61 ->  | O63: =O59*O61 ->  | Q63: =Q59*Q61 ->  | R63: =R59*R61 ->  | T63: =T59*T61 ->  | U63: =U59*U61 ->  | W63: =W59*W61 ->  | X63: =X59*X61 ->  | Z63: =Z59*Z61 ->  | AA63: =AA59*AA61 ->  | AC63: =AC59*AC61 ->  | AD63: =AD59*AD61 ->  | AF63: =AF59*AF61 ->  | AG63: =AG59*AG61 -> 
A64: Gross Up
A65: Income Taxes Payable | E65: =E63/(1-E61) ->  | F65: =F63/(1-F61) ->  | H65: =H63/(1-H61) ->  | I65: =I63/(1-I61) ->  | K65: =K63/(1-K61) ->  | L65: =L63/(1-L61) ->  | N65: =N63/(1-N61) ->  | O65: =O63/(1-O61) ->  | Q65: =Q63/(1-Q61) ->  | R65: =R63/(1-R61) ->  | T65: =T63/(1-T61) ->  | U65: =U63/(1-U61) ->  | W65: =W63/(1-W61) ->  | X65: =X63/(1-X61) ->  | Z65: =Z63/(1-Z61) ->  | AA65: =AA63/(1-AA61) ->  | AC65: =AC63/(1-AC61) ->  | AD65: =AD63/(1-AD61) ->  | AF65: =AF63/(1-AF61) ->  | AG65: =AG63/(1-AG61) -> 
A66: Grossed Up PILs | E66: =SUM(E65:E65) ->  | F66: =SUM(F65:F65) ->  | H66: =SUM(H65:H65) ->  | I66: =SUM(I65:I65) ->  | K66: =SUM(K65:K65) ->  | L66: =SUM(L65:L65) ->  | N66: =SUM(N65:N65) ->  | O66: =SUM(O65:O65) ->  | Q66: =SUM(Q65:Q65) ->  | R66: =SUM(R65:R65) ->  | T66: =SUM(T65:T65) ->  | U66: =SUM(U65:U65) ->  | W66: =SUM(W65:W65) ->  | X66: =SUM(X65:X65) ->  | Z66: =SUM(Z65:Z65) ->  | AA66: =SUM(AA65:AA65) ->  | AC66: =SUM(AC65:AC65) ->  | AD66: =SUM(AD65:AD65) ->  | AF66: =SUM(AF65:AF65) ->  | AG66: =SUM(AG65:AG65) -> 
A69: Net Fixed Assets | F69: =E53 -> 2016 | G69: =H53 -> 2017 | H69: =K53 -> 2018 | I69: =N53 -> 2019 | J69: =Q53 -> 2020 | K69: =T53 -> 2021 Test Year | L69: =W53 -> 2022 | M69: =Z53 -> 2023 | N69: =AC53 -> 2024 | O69: =AF53 -> 2025
A70: Enter applicable amortization in years:
A71: Opening Gross Fixed Assets | G71: =F73 -> 0 | H71: =G73 -> 0 | I71: =H73 -> 0 | J71: =I73 -> 0 | K71: 0 | L71: 0 | M71: =L73 -> 0 | N71: 0 | O71: 0
A72: Gross Capital Additions | F72: ='App.2-FA Proposed REG Invest.'!C99 -> 0 | G72: ='App.2-FA Proposed REG Invest.'!D99 -> 0 | H72: ='App.2-FA Proposed REG Invest.'!E99 -> 0 | I72: ='App.2-FA Proposed REG Invest.'!F99 -> 0 | J72: ='App.2-FA Proposed REG Invest.'!G99 -> 0 | K72: ='App.2-FA Proposed REG Invest.'!H99 -> 0 | L72: ='App.2-FA Proposed REG Invest.'!I99 -> 0 | M72: ='App.2-FA Proposed REG Invest.'!J99 -> 0 | N72: ='App.2-FA Proposed REG Invest.'!K99 -> 0 | O72: ='App.2-FA Proposed REG Invest.'!L99 -> 0
A73: Closing Gross Fixed Assets | F73: =SUM(F71:F72) -> 0 | G73: =SUM(G71:G72) -> 0 | H73: 0 | I73: 0 | J73: 0 | K73: 0 | L73: 0 | M73: 0 | N73: 0 | O73: 0
A75: Opening Accumulated Amortization | G75: =+F78 ->  | H75: =+G78 ->  | I75: =H78 ->  | J75: =I78 -> 
